{"text_format":"1","workbook":"xlsx","n_sheets":8,"sheets":["Eingabe","Gesamt","NRW-Junior","NRW-Senior","NRW-Elite-XL","NRW-Elite-XL-18","Prog","NRW-Open"],"not_rendered":{"charts":0,"images":0,"macros":1,"external_links":0,"defined_names":7,"comments":1,"pivot_tables":0},"unopened":[{"sheet":"Prog","index":6,"reason":"part_missing"}],"bounds":{"document_bytes":16777216,"sheet_cells":100000,"rows_first":2000,"rows_last":500,"rows_between":2000,"halvings":0,"cell_chars":16384,"cell_head_chars":4096},"cells_cut":0,"cells_raw":0,"read":"whole","date_system":"1900"}

{"sheet":"Eingabe","index":0,"n_rows":22,"n_cols":6,"rows_kept":22,"cut":false,"hidden":true,"merged":[[1,1,1,5],[18,1,18,2],[19,1,19,2],[20,1,20,2],[18,4,18,5],[19,4,19,5],[20,4,20,5]]}
[]
[null,"Zeitmessung Seifenkisten Derby Mettingen"]
[]
[]
[null,"V6.3"]
[null,null,"Bahn 1 PR",null,"Bahn 2 PB"]
[]
[null,"Lauf ",4,null,4]
[]
[null,"Start-Nr",708,709,709]
[]
[null,"Zeit",37.799999999999997,null,37.9]
[]
[null,null,"Hauptlauf / Endlauf  ?",null,"Endlauf"]
[null,"Endlauf-Daten übertragen und gespeichet"]
[null,null,null,null,null,"  "]
[null,{"$f":"LOOKUP(C10,Gesamt!A4:A1000,Gesamt!B4:B1000)","v":"EXL18"},null,null,null,{"$f":"LOOKUP(E10,Gesamt!A4:A1000,Gesamt!B4:B1000)","v":"EXL18"}]
[]
[null,{"$f":"LOOKUP(C10,Gesamt!A4:A1000,Gesamt!E4:E1000)","v":"Dominik"},null,null,{"$f":"LOOKUP(E10,Gesamt!A4:A1000,Gesamt!E4:E1000)","v":"Florian"}]
[null,{"$f":"LOOKUP(C10,Gesamt!A4:A1000,Gesamt!D4:D1000)","v":"Leismann"},null,null,{"$f":"LOOKUP(E10,Gesamt!A4:A1000,Gesamt!D4:D1000)","v":"Lange"}]
[null,{"$f":"LOOKUP(C10,Gesamt!A4:A1000,Gesamt!F4:F1000)","v":"Mettingen"},null,null,{"$f":"LOOKUP(E10,Gesamt!A4:A1000,Gesamt!F4:F1000)","v":"Mettingen"}]
[null,"3724 PR  00:00:37.805",null,null,"3725 PB  00:00:37.904"]

{"sheet":"Gesamt","index":1,"n_rows":853,"n_cols":20,"rows_kept":853,"cut":false,"hidden":true,"merged":[]}
["10.06.2018 DSKD  Derby Mettingen"]
[null,null,null,null,"Bahn 1","Bahn 2",1,1,1,1,1,1,"Lauf gewertet?\n0 oder 1",1,1,1,1,1,1]
["Nr","Klasse","NRW","Name","Vorname","Verein","H1","H2","H3","H4","H5","H6","Summe","E1","E2","E3","E4","E5","E6","Summe"]
[101,"JUN",null,"Lampe","Ida","Mettingen",38.909999999999997,38.81,38.74,39.049999999999997,null,null,{"$f":"(G4*$G$2 +H4*$H$2+I4*$I$2+J4*$J$2 +K4*$K$2+L4*$L$2)","v":155.51},38.93,38.9,38.79,38.76,null,null,{"$f":"(N4*$N$2 +O4*$O$2+P4*$P$2+Q4*$Q$2 +R4*$R$2+S4*$S$2)","v":155.38}]
[102,"JUN",null,"Paschedag","Mia","Stromberg",38.770000000000003,38.85,38.69,38.96,null,null,{"$f":"(G5*$G$2 +H5*$H$2+I5*$I$2+J5*$J$2 +K5*$K$2+L5*$L$2)","v":155.27000000000001},2,null,null,null,null,null,{"$f":"(N5*$N$2 +O5*$O$2+P5*$P$2+Q5*$Q$2 +R5*$R$2+S5*$S$2)","v":2}]
[103,"JUN",null,"Freudenstein","Romy","Mettingen",38.92,38.96,38.729999999999997,38.94,null,null,155.55000000000001,38.79,38.729999999999997,38.72,38.67,null,null,154.91]
[104,"JUN",null,"Schier","Finn","Stromberg",39.42,39.44,39.69,39.74,null,null,158.29,null,null,null,null,null,null,0]
[105,"JUN",null,"Bednarski","Max","Mettingen",null,null,null,null,null,null,0,null,null,null,null,null,null,0]
[106,"JUN",null,"Plath","Marvin","Mettingen",39.04,39.01,38.950000000000003,39.32,null,null,156.32,39,38.9,38.92,38.92,null,null,155.74]
[107,"JUN",null,"Plath","Johanna","Mettingen",null,null,null,null,null,null,0,null,null,null,null,null,null,0]
[108,"JUN",null,"Pufahl","Maximilian","Mettingen",39.17,39.07,38.99,39.26,null,null,156.49,39.049999999999997,39.11,38.94,39.01,null,null,156.11000000000001]
[109,"JUN",null,"Demleitner","Angelike","Bergkamen",39.29,39.28,39.28,39.49,null,null,157.34,null,null,null,null,null,null,0]
[110,"JUN",null,"Claus","Florentina","Bergkamen",39.200000000000003,39.26,39.450000000000003,39.31,null,null,157.22,null,null,null,null,null,null,0]
[111,"JUN",null,"Meyhoff","Moritz","Mettingen",38.97,38.869999999999997,38.99,38.85,null,null,155.68,38.869999999999997,38.97,38.81,38.72,null,null,155.37]
[112,"JUN",null,"Gahler","Hendrik","Mettingen",null,null,null,null,null,null,0,null,null,null,null,null,null,0]
[113,"JUN",null,"Bednarski","Jonathan","Mettingen",null,null,null,null,null,null,0,null,null,null,null,null,null,0]
[114,"JUN",null,"Reutter","Elisabeth","Stromberg",null,null,null,null,null,null,0,null,null,null,null,null,null,0]
[115,"JUN",null,"Stoffers","Martha","Stromberg",null,null,null,null,null,null,0,null,null,null,null,null,null,0]
[116,"JUN",null,"Hiegemann","Mathilda","Stromberg",null,null,null,null,null,null,0,null,null,null,null,null,null,0]
[117,"JUN",null,"Ording","Louisa","Stromberg",39.47,39.44,39.64,39.479999999999997,null,null,158.03,null,null,null,null,null,null,0]
[118,"JUN",null,"Pflug","Fabian","Stromberg",null,null,null,null,null,null,0,null,null,null,null,null,null,0]
[119,"JUN",null,"Krüger","Michelle","Billerbeck",null,null,null,null,null,null,0,null,null,null,null,null,null,0]
[120,"JUN",null,"Enders","Julius","Billerbeck",null,null,null,null,null,null,0,null,null,null,null,null,null,0]
[121,"JUN",null,"Stoffers","Christina","Stromberg",null,null,null,null,null,null,0,null,null,null,null,null,null,0]
[122,"JUN",null,"Grützner","Lennox","Billerbeck",null,null,null,null,null,null,0,null,null,null,null,null,null,0]
[123,"JUN",null,"Paschedag","Lena","Stromberg",null,null,null,null,null,null,0,null,null,null,null,null,null,0]
[124,"JUN",null,"Crook","Florian","Mettingen",38.96,38.89,38.94,39.11,null,null,155.9,38.85,38.729999999999997,38.909999999999997,38.619999999999997,null,null,155.11000000000001]
[125,"JUN",null,"Meyhoff","Finn","Mettingen",38.83,38.880000000000003,38.99,39.049999999999997,null,null,155.75,38.92,38.9,38.79,38.79,null,null,155.4]
[126,"JUN",null,null,null,null,null,null,null,null,null,null,0,null,null,null,null,null,null,0]
[127,"JUN",null,"Meister","Till","Mettingen",39.6,39.270000000000003,39.79,39.590000000000003,null,null,158.25,39.4,39.14,39.49,39.19,null,null,157.22]
[128,"JUN",null,null,null,null,null,null,null,null,null,null,0,null,null,null,null,null,null,0]
[129,"JUN",null,null,null,null,null,null,null,null,null,null,0,null,null,null,null,null,null,0]
[130,"JUN",null,"Kleinsorge","Henri","Mettingen",44.04,41.76,41.17,40.79,null,null,167.76,40.53,40.46,40.03,39.75,null,null,160.77000000000001]
[131,"JUN",null,null,null,null,null,null,null,null,null,null,0,null,null,null,null,null,null,0]
[132,"JUN",null,null,null,null,null,null,null,null,null,null,0,null,null,null,null,null,null,0]
[133,"JUN",null,null,null,null,null,null,null,null,null,null,0,null,null,null,null,null,null,0]
[134,"JUN",null,null,null,null,null,null,null,null,null,null,0,null,null,null,null,null,null,0]
[135,"JUN",null,null,null,null,null,null,null,null,null,null,0,null,null,null,null,null,null,0]
[136,null,null,null,null,null,null,null,null,null,null,null,0,null,null,null,null,null,null,0]
[137,null,null,null,null,null,null,null,null,null,null,null,0,null,null,null,null,null,null,0]
[138,null,null,null,null,null,null,null,null,null,null,null,0,null,null,null,null,null,null,0]
[139,null,null,null,null,null,null,null,null,null,null,null,0,null,null,null,null,null,null,0]
[140,null,null,null,null,null,null,null,null,null,null,null,0,null,null,null,null,null,null,0]
[141,null,null,null,null,null,null,null,null,null,null,null,0,null,null,null,null,null,null,0]
[142,null,null,null,null,null,null,null,null,null,null,null,0,null,null,null,null,null,null,0]
[143,null,null,null,null,null,null,null,null,null,null,null,0,null,null,null,null,null,null,0]
[144,null,null,null,null,null,null,null,null,null,null,null,0,null,null,null,null,null,null,0]
[145,null,null,null,null,null,null,null,null,null,null,null,0,null,null,null,null,null,null,0]
[146,null,null,null,null,null,null,null,null,null,null,null,0,null,null,null,null,null,null,0]
[147,null,null,null,null,null,null,null,null,null,null,null,0,null,null,null,null,null,null,0]
[148,null,null,null,null,null,null,null,null,null,null,null,0,null,null,null,null,null,null,0]
[149,null,null,null,null,null,null,null,null,null,null,null,0,null,null,null,null,null,null,0]
[150,null,null,null,null,null,null,null,null,null,null,null,0,null,null,null,null,null,null,0]
[151,null,null,null,null,null,null,null,null,null,null,null,0,null,null,null,null,null,null,0]
[152,null,null,null,null,null,null,null,null,null,null,null,0,null,null,null,null,null,null,0]
[153,null,null,null,null,null,null,null,null,null,null,null,0,null,null,null,null,null,null,0]
[154,null,null,null,null,null,null,null,null,null,null,null,0,null,null,null,null,null,null,0]
[155,null,null,null,null,null,null,null,null,null,null,null,0,null,null,null,null,null,null,0]
[156,null,null,null,null,null,null,null,null,null,null,null,0,null,null,null,null,null,null,0]
[157,null,null,null,null,null,null,null,null,null,null,null,0,null,null,null,null,null,null,0]
[158,null,null,null,null,null,null,null,null,null,null,null,0,null,null,null,null,null,null,0]
[159,null,null,null,null,null,null,null,null,null,null,null,0,null,null,null,null,null,null,0]
[160,null,null,null,null,null,null,null,null,null,null,null,0,null,null,null,null,null,null,0]
[161,null,null,null,null,null,null,null,null,null,null,null,0,null,null,null,null,null,null,0]
[162,null,null,null,null,null,null,null,null,null,null,null,0,null,null,null,null,null,null,0]
[163,null,null,null,null,null,null,null,null,null,null,null,0,null,null,null,null,null,null,0]
[164,null,null,null,null,null,null,null,null,null,null,null,0,null,null,null,null,null,null,0]
[165,null,null,null,null,null,null,null,null,null,null,null,0,null,null,null,null,null,null,0]
[166,null,null,null,null,null,null,null,null,null,null,null,{"$f":"(G69*$G$2 +H69*$H$2+I69*$I$2+J69*$J$2 +K69*$K$2+L69*$L$2)","v":0},null,null,null,null,null,null,{"$f":"(N69*$N$2 +O69*$O$2+P69*$P$2+Q69*$Q$2 +R69*$R$2+S69*$S$2)","v":0}]
[167,null,null,null,null,null,null,null,null,null,null,null,0,null,null,null,null,null,null,0]
[168,null,null,null,null,null,null,null,null,null,null,null,0,null,null,null,null,null,null,0]
[169,null,null,null,null,null,null,null,null,null,null,null,0,null,null,null,null,null,null,0]
[170,null,null,null,null,null,null,null,null,null,null,null,0,null,null,null,null,null,null,0]
[171,null,null,null,null,null,null,null,null,null,null,null,0,null,null,null,null,null,null,0]
[172,null,null,null,null,null,null,null,null,null,null,null,0,null,null,null,null,null,null,0]
[173,null,null,null,null,null,null,null,null,null,null,null,0,null,null,null,null,null,null,0]
[174,null,null,null,null,null,null,null,null,null,null,null,0,null,null,null,null,null,null,0]
[175,null,null,null,null,null,null,null,null,null,null,null,0,null,null,null,null,null,null,0]
[176,null,null,null,null,null,null,null,null,null,null,null,0,null,null,null,null,null,null,0]
[177,null,null,null,null,null,null,null,null,null,null,null,0,null,null,null,null,null,null,0]
[178,null,null,null,null,null,null,null,null,null,null,null,0,null,null,null,null,null,null,0]
[179,null,null,null,null,null,null,null,null,null,null,null,0,null,null,null,null,null,null,0]
[180,null,null,null,null,null,null,null,null,null,null,null,0,null,null,null,null,null,null,0]
[181,null,null,null,null,null,null,null,null,null,null,null,0,null,null,null,null,null,null,0]
[182,null,null,null,null,null,null,null,null,null,null,null,0,null,null,null,null,null,null,0]
[183,null,null,null,null,null,null,null,null,null,null,null,0,null,null,null,null,null,null,0]
[184,null,null,null,null,null,null,null,null,null,null,null,0,null,null,null,null,null,null,0]
[185,null,null,null,null,null,null,null,null,null,null,null,0,null,null,null,null,null,null,0]
[186,null,null,null,null,null,null,null,null,null,null,null,0,null,null,null,null,null,null,0]
[187,null,null,null,null,null,null,null,null,null,null,null,0,null,null,null,null,null,null,0]
[188,null,null,null,null,null,null,null,null,null,null,null,0,null,null,null,null,null,null,0]
[189,null,null,null,null,null,null,null,null,null,null,null,0,null,null,null,null,null,null,0]
[190,null,null,null,null,null,null,null,null,null,null,null,0,null,null,null,null,null,null,0]
[191,null,null,null,null,null,null,null,null,null,null,null,0,null,null,null,null,null,null,0]
[192,null,null,null,null,null,null,null,null,null,null,null,0,null,null,null,null,null,null,0]
[193,null,null,null,null,null,null,null,null,null,null,null,0,null,null,null,null,null,null,0]
[194,null,null,null,null,null,null,null,null,null,null,null,0,null,null,null,null,null,null,0]
[195,null,null,null,null,null,null,null,null,null,null,null,0,null,null,null,null,null,null,0]
[196,null,null,null,null,null,null,null,null,null,null,null,0,null,null,null,null,null,null,0]
[197,null,null,null,null,null,null,null,null,null,null,null,0,null,null,null,null,null,null,0]
[198,null,null,null,null,null,null,null,null,null,null,null,0,null,null,null,null,null,null,0]
[199,null,null,null,null,null,null,null,null,null,null,null,0,null,null,null,null,null,null,0]
[200,null,null,null,null,null,null,null,null,null,null,null,0,null,null,null,null,null,null,0]
[201,null,null,null,null,null,null,null,null,null,null,null,0,null,null,null,null,null,null,0]
[202,null,null,null,null,null,null,null,null,null,null,null,0,null,null,null,null,null,null,0]
[203,null,null,null,null,null,null,null,null,null,null,null,0,null,null,null,null,null,null,0]
[204,null,null,null,null,null,null,null,null,null,null,null,0,null,null,null,null,null,null,0]
[205,null,null,null,null,null,null,null,null,null,null,null,0,null,null,null,null,null,null,0]
[206,null,null,null,null,null,null,null,null,null,null,null,0,null,null,null,null,null,null,0]
[207,null,null,null,null,null,null,null,null,null,null,null,0,null,null,null,null,null,null,0]
[208,null,null,null,null,null,null,null,null,null,null,null,0,null,null,null,null,null,null,0]
[209,null,null,null,null,null,null,null,null,null,null,null,0,null,null,null,null,null,null,0]
[210,null,null,null,null,null,null,null,null,null,null,null,0,null,null,null,null,null,null,0]
[211,null,null,null,null,null,null,null,null,null,null,null,0,null,null,null,null,null,null,0]
[212,null,null,null,null,null,null,null,null,null,null,null,0,null,null,null,null,null,null,0]
[213,null,null,null,null,null,null,null,null,null,null,null,0,null,null,null,null,null,null,0]
[214,null,null,null,null,null,null,null,null,null,null,null,0,null,null,null,null,null,null,0]
[215,null,null,null,null,null,null,null,null,null,null,null,0,null,null,null,null,null,null,0]
[216,null,null,null,null,null,null,null,null,null,null,null,0,null,null,null,null,null,null,0]
[217,null,null,null,null,null,null,null,null,null,null,null,0,null,null,null,null,null,null,0]
[218,null,null,null,null,null,null,null,null,null,null,null,0,null,null,null,null,null,null,0]
[219,null,null,null,null,null,null,null,null,null,null,null,0,null,null,null,null,null,null,0]
[220,null,null,null,null,null,null,null,null,null,null,null,0,null,null,null,null,null,null,0]
[221,null,null,null,null,null,null,null,null,null,null,null,0,null,null,null,null,null,null,0]
[222,null,null,null,null,null,null,null,null,null,null,null,0,null,null,null,null,null,null,0]
[223,null,null,null,null,null,null,null,null,null,null,null,0,null,null,null,null,null,null,0]
[224,null,null,null,null,null,null,null,null,null,null,null,0,null,null,null,null,null,null,0]
[225,null,null,null,null,null,null,null,null,null,null,null,0,null,null,null,null,null,null,0]
[226,null,null,null,null,null,null,null,null,null,null,null,0,null,null,null,null,null,null,0]
[227,null,null,null,null,null,null,null,null,null,null,null,0,null,null,null,null,null,null,0]
[228,null,null,null,null,null,null,null,null,null,null,null,0,null,null,null,null,null,null,0]
[229,null,null,null,null,null,null,null,null,null,null,null,0,null,null,null,null,null,null,0]
[230,null,null,null,null,null,null,null,null,null,null,null,{"$f":"(G133*$G$2 +H133*$H$2+I133*$I$2+J133*$J$2 +K133*$K$2+L133*$L$2)","v":0},null,null,null,null,null,null,{"$f":"(N133*$N$2 +O133*$O$2+P133*$P$2+Q133*$Q$2 +R133*$R$2+S133*$S$2)","v":0}]
[231,null,null,null,null,null,null,null,null,null,null,null,0,null,null,null,null,null,null,0]
[232,null,null,null,null,null,null,null,null,null,null,null,0,null,null,null,null,null,null,0]
[233,null,null,null,null,null,null,null,null,null,null,null,0,null,null,null,null,null,null,0]
[234,null,null,null,null,null,null,null,null,null,null,null,0,null,null,null,null,null,null,0]
[235,null,null,null,null,null,null,null,null,null,null,null,0,null,null,null,null,null,null,0]
[236,null,null,null,null,null,null,null,null,null,null,null,0,null,null,null,null,null,null,0]
[237,null,null,null,null,null,null,null,null,null,null,null,0,null,null,null,null,null,null,0]
[238,null,null,null,null,null,null,null,null,null,null,null,0,null,null,null,null,null,null,0]
[239,null,null,null,null,null,null,null,null,null,null,null,0,null,null,null,null,null,null,0]
[240,null,null,null,null,null,null,null,null,null,null,null,0,null,null,null,null,null,null,0]
[241,null,null,null,null,null,null,null,null,null,null,null,0,null,null,null,null,null,null,0]
[242,null,null,null,null,null,null,null,null,null,null,null,0,null,null,null,null,null,null,0]
[243,null,null,null,null,null,null,null,null,null,null,null,0,null,null,null,null,null,null,0]
[244,null,null,null,null,null,null,null,null,null,null,null,0,null,null,null,null,null,null,0]
[245,null,null,null,null,null,null,null,null,null,null,null,0,null,null,null,null,null,null,0]
[246,null,null,null,null,null,null,null,null,null,null,null,0,null,null,null,null,null,null,0]
[247,null,null,null,null,null,null,null,null,null,null,null,0,null,null,null,null,null,null,0]
[248,null,null,null,null,null,null,null,null,null,null,null,0,null,null,null,null,null,null,0]
[249,null,null,null,null,null,null,null,null,null,null,null,0,null,null,null,null,null,null,0]
[250,null,null,null,null,null,null,null,null,null,null,null,0,null,null,null,null,null,null,0]
[251,null,null,null,null,null,null,null,null,null,null,null,0,null,null,null,null,null,null,0]
[252,null,null,null,null,null,null,null,null,null,null,null,0,null,null,null,null,null,null,0]
[253,null,null,null,null,null,null,null,null,null,null,null,0,null,null,null,null,null,null,0]
[254,null,null,null,null,null,null,null,null,null,null,null,0,null,null,null,null,null,null,0]
[255,null,null,null,null,null,null,null,null,null,null,null,0,null,null,null,null,null,null,0]
[256,null,null,null,null,null,null,null,null,null,null,null,0,null,null,null,null,null,null,0]
[257,null,null,null,null,null,null,null,null,null,null,null,0,null,null,null,null,null,null,0]
[258,null,null,null,null,null,null,null,null,null,null,null,0,null,null,null,null,null,null,0]
[259,null,null,null,null,null,null,null,null,null,null,null,0,null,null,null,null,null,null,0]
[260,null,null,null,null,null,null,null,null,null,null,null,0,null,null,null,null,null,null,0]
[261,null,null,null,null,null,null,null,null,null,null,null,0,null,null,null,null,null,null,0]
[262,null,null,null,null,null,null,null,null,null,null,null,0,null,null,null,null,null,null,0]
[263,null,null,null,null,null,null,null,null,null,null,null,0,null,null,null,null,null,null,0]
[264,null,null,null,null,null,null,null,null,null,null,null,0,null,null,null,null,null,null,0]
[265,null,null,null,null,null,null,null,null,null,null,null,0,null,null,null,null,null,null,0]
[266,null,null,null,null,null,null,null,null,null,null,null,0,null,null,null,null,null,null,0]
[267,null,null,null,null,null,null,null,null,null,null,null,0,null,null,null,null,null,null,0]
[268,null,null,null,null,null,null,null,null,null,null,null,0,null,null,null,null,null,null,0]
[269,null,null,null,null,null,null,null,null,null,null,null,0,null,null,null,null,null,null,0]
[270,null,null,null,null,null,null,null,null,null,null,null,0,null,null,null,null,null,null,0]
[271,null,null,null,null,null,null,null,null,null,null,null,0,null,null,null,null,null,null,0]
[272,null,null,null,null,null,null,null,null,null,null,null,0,null,null,null,null,null,null,0]
[273,null,null,null,null,null,null,null,null,null,null,null,0,null,null,null,null,null,null,0]
[274,null,null,null,null,null,null,null,null,null,null,null,0,null,null,null,null,null,null,0]
[275,null,null,null,null,null,null,null,null,null,null,null,0,null,null,null,null,null,null,0]
[276,null,null,null,null,null,null,null,null,null,null,null,0,null,null,null,null,null,null,0]
[277,null,null,null,null,null,null,null,null,null,null,null,0,null,null,null,null,null,null,0]
[278,null,null,null,null,null,null,null,null,null,null,null,0,null,null,null,null,null,null,0]
[279,null,null,null,null,null,null,null,null,null,null,null,0,null,null,null,null,null,null,0]
[280,null,null,null,null,null,null,null,null,null,null,null,0,null,null,null,null,null,null,0]
[281,null,null,null,null,null,null,null,null,null,null,null,0,null,null,null,null,null,null,0]
[282,null,null,null,null,null,null,null,null,null,null,null,0,null,null,null,null,null,null,0]
[283,null,null,null,null,null,null,null,null,null,null,null,0,null,null,null,null,null,null,0]
[284,null,null,null,null,null,null,null,null,null,null,null,0,null,null,null,null,null,null,0]
[285,null,null,null,null,null,null,null,null,null,null,null,0,null,null,null,null,null,null,0]
[286,null,null,null,null,null,null,null,null,null,null,null,0,null,null,null,null,null,null,0]
[287,null,null,null,null,null,null,null,null,null,null,null,0,null,null,null,null,null,null,0]
[288,null,null,null,null,null,null,null,null,null,null,null,0,null,null,null,null,null,null,0]
[289,null,null,null,null,null,null,null,null,null,null,null,0,null,null,null,null,null,null,0]
[290,null,null,null,null,null,null,null,null,null,null,null,0,null,null,null,null,null,null,0]
[291,null,null,null,null,null,null,null,null,null,null,null,0,null,null,null,null,null,null,0]
[292,null,null,null,null,null,null,null,null,null,null,null,0,null,null,null,null,null,null,0]
[293,null,null,null,null,null,null,null,null,null,null,null,0,null,null,null,null,null,null,0]
[294,null,null,null,null,null,null,null,null,null,null,null,{"$f":"(G197*$G$2 +H197*$H$2+I197*$I$2+J197*$J$2 +K197*$K$2+L197*$L$2)","v":0},null,null,null,null,null,null,{"$f":"(N197*$N$2 +O197*$O$2+P197*$P$2+Q197*$Q$2 +R197*$R$2+S197*$S$2)","v":0}]
[295,null,null,null,null,null,null,null,null,null,null,null,0,null,null,null,null,null,null,0]
[296,null,null,null,null,null,null,null,null,null,null,null,0,null,null,null,null,null,null,0]
[297,null,null,null,null,null,null,null,null,null,null,null,0,null,null,null,null,null,null,0]
[298,null,null,null,null,null,null,null,null,null,null,null,0,null,null,null,null,null,null,0]
[299,null,null,null,null,null,null,null,null,null,null,null,0,null,null,null,null,null,null,0]
[300,null,null,null,null,null,null,null,null,null,null,null,0,null,null,null,null,null,null,0]
[301,"SEN",null,"Lampe","Pia","Mettingen",37.74,37.78,37.659999999999997,37.69,null,null,150.87,37.67,37.72,37.64,37.700000000000003,null,null,150.72999999999999]
[302,"SEN",null,"Gößling","Jule","Mettingen",null,null,null,null,null,null,0,null,null,null,null,null,null,0]
[303,"SEN",null,"Freudenstein","Rieke","Mettingen",37.729999999999997,37.770000000000003,37.78,37.68,null,null,150.96,37.74,37.840000000000003,37.69,37.81,null,null,151.08000000000001]
[304,"SEN",null,"Kessling","Sophie","Mettingen",null,null,null,null,null,null,0,null,null,null,null,null,null,0]
[305,"SEN",null,"Zaruba","Max","Mettingen",37.67,37.67,37.69,37.64,null,null,150.66999999999999,37.58,37.78,37.58,37.64,null,null,150.58000000000001]
[306,"SEN",null,"Lutterbach","Roman","Simmerath",null,null,null,null,null,null,0,null,null,null,null,null,null,0]
[307,"SEN",null,"Meyer","Henry","Mettingen",null,null,null,null,null,null,0,null,null,null,null,null,null,0]
[308,"SEN",null,"Becker","Robin","Bergkamen",null,null,null,null,null,null,0,null,null,null,null,null,null,0]
[309,"SEN",null,"Lutterbach","Eric","Simmerath",null,null,null,null,null,null,0,null,null,null,null,null,null,0]
[310,"SEN",null,"Ricker","Sarah","Billerbeck",null,null,null,null,null,null,0,null,null,null,null,null,null,0]
[311,"SEN",null,"Lammers","Laura","ConAction",null,null,null,null,null,null,0,null,null,null,null,null,null,0]
[312,"SEN",null,"Neuhaus","Robin","Mettingen",37.56,37.700000000000003,37.67,37.5,null,null,150.43,37.520000000000003,37.549999999999997,37.43,37.49,null,null,149.99]
[313,"SEN",null,"Meyer","Johann","Mettingen",37.71,37.729999999999997,37.67,37.61,null,null,150.72,37.590000000000003,37.729999999999997,37.630000000000003,37.58,null,null,150.53]
[314,"SEN",null,"Wetter","Stefanie","Billerbeck",null,null,null,null,null,null,0,null,null,null,null,null,null,0]
[315,"SEN",null,"Steinberg","Kimberly","Billerbeck",null,null,null,null,null,null,0,null,null,null,null,null,null,0]
[316,"SEN",null,"Wratny","Nikolai","Bergkamen",null,null,null,null,null,null,0,null,null,null,null,null,null,0]
[317,"SEN",null,"Sternberg","Luise","Billerbeck",null,null,null,null,null,null,0,null,null,null,null,null,null,0]
[318,"SEN",null,"Szabowski","Mara","Billerbeck",null,null,null,null,null,null,0,null,null,null,null,null,null,0]
[319,"SEN",null,"Sonneborn","Ina","Stromberg",37.58,37.58,37.57,37.49,null,null,150.22,null,null,null,null,null,null,0]
[320,"SEN",null,"Stoffers","Lisa","Stromberg",null,null,null,null,null,null,0,null,null,null,null,null,null,0]
[321,"SEN",null,null,null,null,null,null,null,null,null,null,0,null,null,null,null,null,null,0]
[322,"SEN",null,"Grützner","Lennox","Billerbeck",null,null,null,null,null,null,0,null,null,null,null,null,null,0]
[323,"SEN",null,null,null,null,null,null,null,null,null,null,0,null,null,null,null,null,null,0]
[324,"SEN",null,null,null,null,null,null,null,null,null,null,0,null,null,null,null,null,null,0]
[325,"SEN",null,null,null,null,null,null,null,null,null,null,0,null,null,null,null,null,null,0]
[326,"SEN",null,null,null,null,null,null,null,null,null,null,0,null,null,null,null,null,null,0]
[327,"SEN",null,null,null,null,null,null,null,null,null,null,0,null,null,null,null,null,null,0]
[328,"SEN",null,null,null,null,null,null,null,null,null,null,0,null,null,null,null,null,null,0]
[329,"SEN",null,null,null,null,null,null,null,null,null,null,0,null,null,null,null,null,null,0]
[330,"SEN",null,null,null,null,null,null,null,null,null,null,0,null,null,null,null,null,null,0]
[331,"SEN",null,null,null,null,null,null,null,null,null,null,0,null,null,null,null,null,null,0]
[332,"SEN",null,null,null,null,null,null,null,null,null,null,0,null,null,null,null,null,null,0]
[333,"SEN",null,null,null,null,null,null,null,null,null,null,0,null,null,null,null,null,null,0]
[334,"SEN",null,null,null,null,null,null,null,null,null,null,0,null,null,null,null,null,null,0]
[335,"SEN",null,null,null,null,null,null,null,null,null,null,0,null,null,null,null,null,null,0]
[336,"SEN",null,null,null,null,null,null,null,null,null,null,0,null,null,null,null,null,null,0]
[337,"SEN",null,null,null,null,null,null,null,null,null,null,0,null,null,null,null,null,null,0]
[338,"SEN",null,null,null,null,null,null,null,null,null,null,0,null,null,null,null,null,null,0]
[339,null,null,null,null,null,null,null,null,null,null,null,0,null,null,null,null,null,null,0]
[340,null,null,null,null,null,null,null,null,null,null,null,0,null,null,null,null,null,null,0]
[341,null,null,null,null,null,null,null,null,null,null,null,0,null,null,null,null,null,null,0]
[342,null,null,null,null,null,null,null,null,null,null,null,0,null,null,null,null,null,null,0]
[343,null,null,null,null,null,null,null,null,null,null,null,0,null,null,null,null,null,null,0]
[344,null,null,null,null,null,null,null,null,null,null,null,0,null,null,null,null,null,null,0]
[345,null,null,null,null,null,null,null,null,null,null,null,0,null,null,null,null,null,null,0]
[346,null,null,null,null,null,null,null,null,null,null,null,0,null,null,null,null,null,null,0]
[347,null,null,null,null,null,null,null,null,null,null,null,0,null,null,null,null,null,null,0]
[348,null,null,null,null,null,null,null,null,null,null,null,0,null,null,null,null,null,null,0]
[349,null,null,null,null,null,null,null,null,null,null,null,0,null,null,null,null,null,null,0]
[350,null,null,null,null,null,null,null,null,null,null,null,0,null,null,null,null,null,null,0]
[351,null,null,null,null,null,null,null,null,null,null,null,0,null,null,null,null,null,null,0]
[352,null,null,null,null,null,null,null,null,null,null,null,0,null,null,null,null,null,null,0]
[353,null,null,null,null,null,null,null,null,null,null,null,0,null,null,null,null,null,null,0]
[354,null,null,null,null,null,null,null,null,null,null,null,0,null,null,null,null,null,null,0]
[355,null,null,null,null,null,null,null,null,null,null,null,0,null,null,null,null,null,null,0]
[356,null,null,null,null,null,null,null,null,null,null,null,0,null,null,null,null,null,null,0]
[357,null,null,null,null,null,null,null,null,null,null,null,0,null,null,null,null,null,null,0]
[358,null,null,null,null,null,null,null,null,null,null,null,{"$f":"(G261*$G$2 +H261*$H$2+I261*$I$2+J261*$J$2 +K261*$K$2+L261*$L$2)","v":0},null,null,null,null,null,null,{"$f":"(N261*$N$2 +O261*$O$2+P261*$P$2+Q261*$Q$2 +R261*$R$2+S261*$S$2)","v":0}]
[359,null,null,null,null,null,null,null,null,null,null,null,0,null,null,null,null,null,null,0]
[360,null,null,null,null,null,null,null,null,null,null,null,0,null,null,null,null,null,null,0]
[361,null,null,null,null,null,null,null,null,null,null,null,0,null,null,null,null,null,null,0]
[362,null,null,null,null,null,null,null,null,null,null,null,0,null,null,null,null,null,null,0]
[363,null,null,null,null,null,null,null,null,null,null,null,0,null,null,null,null,null,null,0]
[364,null,null,null,null,null,null,null,null,null,null,null,0,null,null,null,null,null,null,0]
[365,null,null,null,null,null,null,null,null,null,null,null,0,null,null,null,null,null,null,0]
[366,null,null,null,null,null,null,null,null,null,null,null,0,null,null,null,null,null,null,0]
[367,null,null,null,null,null,null,null,null,null,null,null,0,null,null,null,null,null,null,0]
[368,null,null,null,null,null,null,null,null,null,null,null,0,null,null,null,null,null,null,0]
[369,null,null,null,null,null,null,null,null,null,null,null,0,null,null,null,null,null,null,0]
[370,null,null,null,null,null,null,null,null,null,null,null,0,null,null,null,null,null,null,0]
[371,null,null,null,null,null,null,null,null,null,null,null,0,null,null,null,null,null,null,0]
[372,null,null,null,null,null,null,null,null,null,null,null,0,null,null,null,null,null,null,0]
[373,null,null,null,null,null,null,null,null,null,null,null,0,null,null,null,null,null,null,0]
[374,null,null,null,null,null,null,null,null,null,null,null,0,null,null,null,null,null,null,0]
[375,null,null,null,null,null,null,null,null,null,null,null,0,null,null,null,null,null,null,0]
[376,null,null,null,null,null,null,null,null,null,null,null,0,null,null,null,null,null,null,0]
[377,null,null,null,null,null,null,null,null,null,null,null,0,null,null,null,null,null,null,0]
[378,null,null,null,null,null,null,null,null,null,null,null,0,null,null,null,null,null,null,0]
[379,null,null,null,null,null,null,null,null,null,null,null,0,null,null,null,null,null,null,0]
[380,null,null,null,null,null,null,null,null,null,null,null,0,null,null,null,null,null,null,0]
[381,null,null,null,null,null,null,null,null,null,null,null,0,null,null,null,null,null,null,0]
[382,null,null,null,null,null,null,null,null,null,null,null,0,null,null,null,null,null,null,0]
[383,null,null,null,null,null,null,null,null,null,null,null,0,null,null,null,null,null,null,0]
[384,null,null,null,null,null,null,null,null,null,null,null,0,null,null,null,null,null,null,0]
[385,null,null,null,null,null,null,null,null,null,null,null,0,null,null,null,null,null,null,0]
[386,null,null,null,null,null,null,null,null,null,null,null,0,null,null,null,null,null,null,0]
[387,null,null,null,null,null,null,null,null,null,null,null,0,null,null,null,null,null,null,0]
[388,null,null,null,null,null,null,null,null,null,null,null,0,null,null,null,null,null,null,0]
[389,null,null,null,null,null,null,null,null,null,null,null,0,null,null,null,null,null,null,0]
[390,null,null,null,null,null,null,null,null,null,null,null,0,null,null,null,null,null,null,0]
[391,null,null,null,null,null,null,null,null,null,null,null,0,null,null,null,null,null,null,0]
[392,null,null,null,null,null,null,null,null,null,null,null,0,null,null,null,null,null,null,0]
[393,null,null,null,null,null,null,null,null,null,null,null,0,null,null,null,null,null,null,0]
[394,null,null,null,null,null,null,null,null,null,null,null,0,null,null,null,null,null,null,0]
[395,null,null,null,null,null,null,null,null,null,null,null,0,null,null,null,null,null,null,0]
[396,null,null,null,null,null,null,null,null,null,null,null,0,null,null,null,null,null,null,0]
[397,null,null,null,null,null,null,null,null,null,null,null,0,null,null,null,null,null,null,0]
[398,null,null,null,null,null,null,null,null,null,null,null,0,null,null,null,null,null,null,0]
[399,null,null,null,null,null,null,null,null,null,null,null,0,null,null,null,null,null,null,0]
[400,null,null,null,null,null,null,null,null,null,null,null,0,null,null,null,null,null,null,0]
[401,"Jun","Berlin","Milbach","Loreley","Joker Team",41.21,40.92,38.96,40.39,null,null,161.47999999999999,null,null,null,null,null,null,0]
[402,"Jun","Berlin","Milbach","Leif","Joker Team",38.97,38.97,41.1,38.74,null,null,157.78,null,null,null,null,null,null,0]
[403,"Sen","Berlin","Reuscher","Sanja","Joker Team",37.840000000000003,38.07,37.880000000000003,37.93,null,null,151.72,null,null,null,null,null,null,0]
[404,"Sen","Berlin","Reuscher","Silas","Joker Team",37.909999999999997,38.119999999999997,38,38.04,null,null,152.07,null,null,null,null,null,null,0]
[405,"EXL18","Berlin","Gutlowski","Svea","Joker Team",38.32,38.47,38.29,38.28,null,null,153.36000000000001,null,null,null,null,null,null,0]
[406,"EXL18","Berlin","Schneider","Ingo","Joker Team",38.19,38.26,38.119999999999997,38.26,null,null,152.83000000000001,null,null,null,null,null,null,0]
[407,"Open","Berlin","Schneider","Gabriele","Joker Team",49.78,50.31,49.36,39.81,null,null,189.26,null,null,null,null,null,null,0]
[408,null,null,null,null,null,null,null,null,null,null,null,0,null,null,null,null,null,null,0]
[409,null,null,null,null,null,null,null,null,null,null,null,0,null,null,null,null,null,null,0]
[410,null,null,null,null,null,null,null,null,null,null,null,0,null,null,null,null,null,null,0]
[411,null,null,null,null,null,null,null,null,null,null,null,0,null,null,null,null,null,null,0]
[412,null,null,null,null,null,null,null,null,null,null,null,0,null,null,null,null,null,null,0]
[413,null,null,null,null,null,null,null,null,null,null,null,0,null,null,null,null,null,null,0]
[414,null,null,null,null,null,null,null,null,null,null,null,0,null,null,null,null,null,null,0]
[415,null,null,null,null,null,null,null,null,null,null,null,0,null,null,null,null,null,null,0]
[416,null,null,null,null,null,null,null,null,null,null,null,0,null,null,null,null,null,null,0]
[417,null,null,null,null,null,null,null,null,null,null,null,0,null,null,null,null,null,null,0]
[418,null,null,null,null,null,null,null,null,null,null,null,0,null,null,null,null,null,null,0]
[419,null,null,null,null,null,null,null,null,null,null,null,0,null,null,null,null,null,null,0]
[420,null,null,null,null,null,null,null,null,null,null,null,0,null,null,null,null,null,null,0]
[421,null,null,null,null,null,null,null,null,null,null,null,0,null,null,null,null,null,null,0]
[422,null,null,null,null,null,null,null,null,null,null,null,{"$f":"(G325*$G$2 +H325*$H$2+I325*$I$2+J325*$J$2 +K325*$K$2+L325*$L$2)","v":0},null,null,null,null,null,null,{"$f":"(N325*$N$2 +O325*$O$2+P325*$P$2+Q325*$Q$2 +R325*$R$2+S325*$S$2)","v":0}]
[423,null,null,null,null,null,null,null,null,null,null,null,0,null,null,null,null,null,null,0]
[424,null,null,null,null,null,null,null,null,null,null,null,0,null,null,null,null,null,null,0]
[425,null,null,null,null,null,null,null,null,null,null,null,0,null,null,null,null,null,null,0]
[426,null,null,null,null,null,null,null,null,null,null,null,0,null,null,null,null,null,null,0]
[427,null,null,null,null,null,null,null,null,null,null,null,0,null,null,null,null,null,null,0]
[428,null,null,null,null,null,null,null,null,null,null,null,0,null,null,null,null,null,null,0]
[429,null,null,null,null,null,null,null,null,null,null,null,0,null,null,null,null,null,null,0]
[430,null,null,null,null,null,null,null,null,null,null,null,0,null,null,null,null,null,null,0]
[431,null,null,null,null,null,null,null,null,null,null,null,0,null,null,null,null,null,null,0]
[432,null,null,null,null,null,null,null,null,null,null,null,0,null,null,null,null,null,null,0]
[433,null,null,null,null,null,null,null,null,null,null,null,0,null,null,null,null,null,null,0]
[434,null,null,null,null,null,null,null,null,null,null,null,0,null,null,null,null,null,null,0]
[435,null,null,null,null,null,null,null,null,null,null,null,0,null,null,null,null,null,null,0]
[436,null,null,null,null,null,null,null,null,null,null,null,0,null,null,null,null,null,null,0]
[437,null,null,null,null,null,null,null,null,null,null,null,0,null,null,null,null,null,null,0]
[438,null,null,null,null,null,null,null,null,null,null,null,0,null,null,null,null,null,null,0]
[439,null,null,null,null,null,null,null,null,null,null,null,0,null,null,null,null,null,null,0]
[440,null,null,null,null,null,null,null,null,null,null,null,0,null,null,null,null,null,null,0]
[441,null,null,null,null,null,null,null,null,null,null,null,0,null,null,null,null,null,null,0]
[442,null,null,null,null,null,null,null,null,null,null,null,0,null,null,null,null,null,null,0]
[443,null,null,null,null,null,null,null,null,null,null,null,0,null,null,null,null,null,null,0]
[444,null,null,null,null,null,null,null,null,null,null,null,0,null,null,null,null,null,null,0]
[445,null,null,null,null,null,null,null,null,null,null,null,0,null,null,null,null,null,null,0]
[446,null,null,null,null,null,null,null,null,null,null,null,0,null,null,null,null,null,null,0]
[447,null,null,null,null,null,null,null,null,null,null,null,0,null,null,null,null,null,null,0]
[448,null,null,null,null,null,null,null,null,null,null,null,0,null,null,null,null,null,null,0]
[449,null,null,null,null,null,null,null,null,null,null,null,0,null,null,null,null,null,null,0]
[450,null,null,null,null,null,null,null,null,null,null,null,0,null,null,null,null,null,null,0]
[451,null,null,null,null,null,null,null,null,null,null,null,0,null,null,null,null,null,null,0]
[452,null,null,null,null,null,null,null,null,null,null,null,0,null,null,null,null,null,null,0]
[453,null,null,null,null,null,null,null,null,null,null,null,0,null,null,null,null,null,null,0]
[454,null,null,null,null,null,null,null,null,null,null,null,0,null,null,null,null,null,null,0]
[455,null,null,null,null,null,null,null,null,null,null,null,0,null,null,null,null,null,null,0]
[456,null,null,null,null,null,null,null,null,null,null,null,0,null,null,null,null,null,null,0]
[457,null,null,null,null,null,null,null,null,null,null,null,0,null,null,null,null,null,null,0]
[458,null,null,null,null,null,null,null,null,null,null,null,0,null,null,null,null,null,null,0]
[459,null,null,null,null,null,null,null,null,null,null,null,0,null,null,null,null,null,null,0]
[460,null,null,null,null,null,null,null,null,null,null,null,0,null,null,null,null,null,null,0]
[461,null,null,null,null,null,null,null,null,null,null,null,0,null,null,null,null,null,null,0]
[462,null,null,null,null,null,null,null,null,null,null,null,0,null,null,null,null,null,null,0]
[463,null,null,null,null,null,null,null,null,null,null,null,0,null,null,null,null,null,null,0]
[464,null,null,null,null,null,null,null,null,null,null,null,0,null,null,null,null,null,null,0]
[465,null,null,null,null,null,null,null,null,null,null,null,0,null,null,null,null,null,null,0]
[466,null,null,null,null,null,null,null,null,null,null,null,0,null,null,null,null,null,null,0]
[467,null,null,null,null,null,null,null,null,null,null,null,0,null,null,null,null,null,null,0]
[468,null,null,null,null,null,null,null,null,null,null,null,0,null,null,null,null,null,null,0]
[469,null,null,null,null,null,null,null,null,null,null,null,0,null,null,null,null,null,null,0]
[470,null,null,null,null,null,null,null,null,null,null,null,0,null,null,null,null,null,null,0]
[471,null,null,null,null,null,null,null,null,null,null,null,0,null,null,null,null,null,null,0]
[472,null,null,null,null,null,null,null,null,null,null,null,0,null,null,null,null,null,null,0]
[473,null,null,null,null,null,null,null,null,null,null,null,0,null,null,null,null,null,null,0]
[474,null,null,null,null,null,null,null,null,null,null,null,0,null,null,null,null,null,null,0]
[475,null,null,null,null,null,null,null,null,null,null,null,0,null,null,null,null,null,null,0]
[476,null,null,null,null,null,null,null,null,null,null,null,0,null,null,null,null,null,null,0]
[477,null,null,null,null,null,null,null,null,null,null,null,0,null,null,null,null,null,null,0]
[478,null,null,null,null,null,null,null,null,null,null,null,0,null,null,null,null,null,null,0]
[479,null,null,null,null,null,null,null,null,null,null,null,0,null,null,null,null,null,null,0]
[480,null,null,null,null,null,null,null,null,null,null,null,0,null,null,null,null,null,null,0]
[481,null,null,null,null,null,null,null,null,null,null,null,0,null,null,null,null,null,null,0]
[482,null,null,null,null,null,null,null,null,null,null,null,0,null,null,null,null,null,null,0]
[483,null,null,null,null,null,null,null,null,null,null,null,0,null,null,null,null,null,null,0]
[484,null,null,null,null,null,null,null,null,null,null,null,0,null,null,null,null,null,null,0]
[485,null,null,null,null,null,null,null,null,null,null,null,0,null,null,null,null,null,null,0]
[486,null,null,null,null,null,null,null,null,null,null,null,{"$f":"(G389*$G$2 +H389*$H$2+I389*$I$2+J389*$J$2 +K389*$K$2+L389*$L$2)","v":0},null,null,null,null,null,null,{"$f":"(N389*$N$2 +O389*$O$2+P389*$P$2+Q389*$Q$2 +R389*$R$2+S389*$S$2)","v":0}]
[487,null,null,null,null,null,null,null,null,null,null,null,0,null,null,null,null,null,null,0]
[488,null,null,null,null,null,null,null,null,null,null,null,0,null,null,null,null,null,null,0]
[489,null,null,null,null,null,null,null,null,null,null,null,0,null,null,null,null,null,null,0]
[490,null,null,null,null,null,null,null,null,null,null,null,0,null,null,null,null,null,null,0]
[491,null,null,null,null,null,null,null,null,null,null,null,0,null,null,null,null,null,null,0]
[492,null,null,null,null,null,null,null,null,null,null,null,0,null,null,null,null,null,null,0]
[493,null,null,null,null,null,null,null,null,null,null,null,0,null,null,null,null,null,null,0]
[494,null,null,null,null,null,null,null,null,null,null,null,0,null,null,null,null,null,null,0]
[495,null,null,null,null,null,null,null,null,null,null,null,0,null,null,null,null,null,null,0]
[496,null,null,null,null,null,null,null,null,null,null,null,0,null,null,null,null,null,null,0]
[497,null,null,null,null,null,null,null,null,null,null,null,0,null,null,null,null,null,null,0]
[498,null,null,null,null,null,null,null,null,null,null,null,0,null,null,null,null,null,null,0]
[499,null,null,null,null,null,null,null,null,null,null,null,0,null,null,null,null,null,null,0]
[500,null,null,null,null,null,null,null,null,null,null,null,0,null,null,null,null,null,null,0]
[501,"EXL",null,"Ricker","Jana-Lena","Billerbeck",null,null,null,null,null,null,0,null,null,null,null,null,null,0]
[502,"EXL",null,"Schmidt","Marvin","Varel",37.71,37.840000000000003,37.700000000000003,37.799999999999997,null,null,151.05000000000001,null,null,null,null,null,null,0]
[503,"EXL",null,"Niessen","Nicolas","Simmerath",null,null,null,null,null,null,0,null,null,null,null,null,null,0]
[504,"EXL",null,"Schlösser","Timon","Stromberg",38.19,38.270000000000003,38.17,38.19,null,null,152.82,null,null,null,null,null,null,0]
[505,"EXL",null,"Marx","Fabian","ConAction",38.14,38.25,38.08,38.19,null,null,152.66,null,null,null,null,null,null,0]
[506,"EXL",null,"Elges","Erik","Stromberg",null,null,null,null,null,null,0,null,null,null,null,null,null,0]
[507,"EXL",null,"Wetter","Sabrina","Billerbeck",null,null,null,null,null,null,0,null,null,null,null,null,null,0]
[508,"EXL",null,"Meyer","Henry","Mettingen",37.71,37.729999999999997,37.57,37.729999999999997,null,null,150.74,37.72,37.729999999999997,37.79,37.729999999999997,null,null,150.97]
[509,"EXL",null,null,null,null,null,null,null,null,null,null,0,null,null,null,null,null,null,0]
[510,"EXL",null,null,null,null,null,null,null,null,null,null,0,null,null,null,null,null,null,0]
[511,"EXL",null,null,null,null,null,null,null,null,null,null,0,null,null,null,null,null,null,0]
[512,null,null,null,null,null,null,null,null,null,null,null,0,null,null,null,null,null,null,0]
[513,null,null,null,null,null,null,null,null,null,null,null,0,null,null,null,null,null,null,0]
[514,null,null,null,null,null,null,null,null,null,null,null,0,null,null,null,null,null,null,0]
[515,null,null,null,null,null,null,null,null,null,null,null,0,null,null,null,null,null,null,0]
[516,null,null,null,null,null,null,null,null,null,null,null,0,null,null,null,null,null,null,0]
[517,null,null,null,null,null,null,null,null,null,null,null,0,null,null,null,null,null,null,0]
[518,null,null,null,null,null,null,null,null,null,null,null,0,null,null,null,null,null,null,0]
[519,null,null,null,null,null,null,null,null,null,null,null,0,null,null,null,null,null,null,0]
[520,null,null,null,null,null,null,null,null,null,null,null,0,null,null,null,null,null,null,0]
[521,null,null,null,null,null,null,null,null,null,null,null,0,null,null,null,null,null,null,0]
[522,null,null,null,null,null,null,null,null,null,null,null,0,null,null,null,null,null,null,0]
[523,null,null,null,null,null,null,null,null,null,null,null,0,null,null,null,null,null,null,0]
[524,null,null,null,null,null,null,null,null,null,null,null,0,null,null,null,null,null,null,0]
[525,null,null,null,null,null,null,null,null,null,null,null,0,null,null,null,null,null,null,0]
[526,null,null,null,null,null,null,null,null,null,null,null,0,null,null,null,null,null,null,0]
[527,null,null,null,null,null,null,null,null,null,null,null,0,null,null,null,null,null,null,0]
[528,null,null,null,null,null,null,null,null,null,null,null,0,null,null,null,null,null,null,0]
[529,null,null,null,null,null,null,null,null,null,null,null,0,null,null,null,null,null,null,0]
[530,null,null,null,null,null,null,null,null,null,null,null,0,null,null,null,null,null,null,0]
[531,null,null,null,null,null,null,null,null,null,null,null,0,null,null,null,null,null,null,0]
[532,null,null,null,null,null,null,null,null,null,null,null,0,null,null,null,null,null,null,0]
[533,null,null,null,null,null,null,null,null,null,null,null,0,null,null,null,null,null,null,0]
[534,null,null,null,null,null,null,null,null,null,null,null,0,null,null,null,null,null,null,0]
[535,null,null,null,null,null,null,null,null,null,null,null,0,null,null,null,null,null,null,0]
[536,null,null,null,null,null,null,null,null,null,null,null,0,null,null,null,null,null,null,0]
[537,null,null,null,null,null,null,null,null,null,null,null,0,null,null,null,null,null,null,0]
[538,null,null,null,null,null,null,null,null,null,null,null,0,null,null,null,null,null,null,0]
[539,null,null,null,null,null,null,null,null,null,null,null,0,null,null,null,null,null,null,0]
[540,null,null,null,null,null,null,null,null,null,null,null,0,null,null,null,null,null,null,0]
[541,null,null,null,null,null,null,null,null,null,null,null,0,null,null,null,null,null,null,0]
[542,null,null,null,null,null,null,null,null,null,null,null,0,null,null,null,null,null,null,0]
[543,null,null,null,null,null,null,null,null,null,null,null,0,null,null,null,null,null,null,0]
[544,null,null,null,null,null,null,null,null,null,null,null,0,null,null,null,null,null,null,0]
[545,null,null,null,null,null,null,null,null,null,null,null,0,null,null,null,null,null,null,0]
[546,null,null,null,null,null,null,null,null,null,null,null,0,null,null,null,null,null,null,0]
[547,null,null,null,null,null,null,null,null,null,null,null,0,null,null,null,null,null,null,0]
[548,null,null,null,null,null,null,null,null,null,null,null,0,null,null,null,null,null,null,0]
[549,null,null,null,null,null,null,null,null,null,null,null,0,null,null,null,null,null,null,0]
[550,null,null,null,null,null,null,null,null,null,null,null,{"$f":"(G453*$G$2 +H453*$H$2+I453*$I$2+J453*$J$2 +K453*$K$2+L453*$L$2)","v":0},null,null,null,null,null,null,{"$f":"(N453*$N$2 +O453*$O$2+P453*$P$2+Q453*$Q$2 +R453*$R$2+S453*$S$2)","v":0}]
[551,null,null,null,null,null,null,null,null,null,null,null,0,null,null,null,null,null,null,0]
[552,null,null,null,null,null,null,null,null,null,null,null,0,null,null,null,null,null,null,0]
[553,null,null,null,null,null,null,null,null,null,null,null,0,null,null,null,null,null,null,0]
[554,null,null,null,null,null,null,null,null,null,null,null,0,null,null,null,null,null,null,0]
[555,null,null,null,null,null,null,null,null,null,null,null,0,null,null,null,null,null,null,0]
[556,null,null,null,null,null,null,null,null,null,null,null,0,null,null,null,null,null,null,0]
[557,null,null,null,null,null,null,null,null,null,null,null,0,null,null,null,null,null,null,0]
[558,null,null,null,null,null,null,null,null,null,null,null,0,null,null,null,null,null,null,0]
[559,null,null,null,null,null,null,null,null,null,null,null,0,null,null,null,null,null,null,0]
[560,null,null,null,null,null,null,null,null,null,null,null,0,null,null,null,null,null,null,0]
[561,null,null,null,null,null,null,null,null,null,null,null,0,null,null,null,null,null,null,0]
[562,null,null,null,null,null,null,null,null,null,null,null,0,null,null,null,null,null,null,0]
[563,null,null,null,null,null,null,null,null,null,null,null,0,null,null,null,null,null,null,0]
[564,null,null,null,null,null,null,null,null,null,null,null,0,null,null,null,null,null,null,0]
[565,null,null,null,null,null,null,null,null,null,null,null,0,null,null,null,null,null,null,0]
[566,null,null,null,null,null,null,null,null,null,null,null,0,null,null,null,null,null,null,0]
[567,null,null,null,null,null,null,null,null,null,null,null,0,null,null,null,null,null,null,0]
[568,null,null,null,null,null,null,null,null,null,null,null,0,null,null,null,null,null,null,0]
[569,null,null,null,null,null,null,null,null,null,null,null,0,null,null,null,null,null,null,0]
[570,null,null,null,null,null,null,null,null,null,null,null,0,null,null,null,null,null,null,0]
[571,null,null,null,null,null,null,null,null,null,null,null,0,null,null,null,null,null,null,0]
[572,null,null,null,null,null,null,null,null,null,null,null,0,null,null,null,null,null,null,0]
[573,null,null,null,null,null,null,null,null,null,null,null,0,null,null,null,null,null,null,0]
[574,null,null,null,null,null,null,null,null,null,null,null,0,null,null,null,null,null,null,0]
[575,null,null,null,null,null,null,null,null,null,null,null,0,null,null,null,null,null,null,0]
[576,null,null,null,null,null,null,null,null,null,null,null,0,null,null,null,null,null,null,0]
[577,null,null,null,null,null,null,null,null,null,null,null,0,null,null,null,null,null,null,0]
[578,null,null,null,null,null,null,null,null,null,null,null,0,null,null,null,null,null,null,0]
[579,null,null,null,null,null,null,null,null,null,null,null,0,null,null,null,null,null,null,0]
[580,null,null,null,null,null,null,null,null,null,null,null,0,null,null,null,null,null,null,0]
[581,null,null,null,null,null,null,null,null,null,null,null,0,null,null,null,null,null,null,0]
[582,null,null,null,null,null,null,null,null,null,null,null,0,null,null,null,null,null,null,0]
[583,null,null,null,null,null,null,null,null,null,null,null,0,null,null,null,null,null,null,0]
[584,null,null,null,null,null,null,null,null,null,null,null,0,null,null,null,null,null,null,0]
[585,null,null,null,null,null,null,null,null,null,null,null,0,null,null,null,null,null,null,0]
[586,null,null,null,null,null,null,null,null,null,null,null,0,null,null,null,null,null,null,0]
[587,null,null,null,null,null,null,null,null,null,null,null,0,null,null,null,null,null,null,0]
[588,null,null,null,null,null,null,null,null,null,null,null,0,null,null,null,null,null,null,0]
[589,null,null,null,null,null,null,null,null,null,null,null,0,null,null,null,null,null,null,0]
[590,null,null,null,null,null,null,null,null,null,null,null,0,null,null,null,null,null,null,0]
[591,null,null,null,null,null,null,null,null,null,null,null,0,null,null,null,null,null,null,0]
[592,null,null,null,null,null,null,null,null,null,null,null,0,null,null,null,null,null,null,0]
[593,null,null,null,null,null,null,null,null,null,null,null,0,null,null,null,null,null,null,0]
[594,null,null,null,null,null,null,null,null,null,null,null,0,null,null,null,null,null,null,0]
[595,null,null,null,null,null,null,null,null,null,null,null,0,null,null,null,null,null,null,0]
[596,null,null,null,null,null,null,null,null,null,null,null,0,null,null,null,null,null,null,0]
[597,null,null,null,null,null,null,null,null,null,null,null,0,null,null,null,null,null,null,0]
[598,null,null,null,null,null,null,null,null,null,null,null,0,null,null,null,null,null,null,0]
[599,null,null,null,null,null,null,null,null,null,null,null,0,null,null,null,null,null,null,0]
[600,null,null,null,null,null,null,null,null,null,null,null,0,null,null,null,null,null,null,0]
[601,null,null,null,null,null,null,null,null,null,null,null,0,null,null,null,null,null,null,0]
[602,null,null,null,null,null,null,null,null,null,null,null,0,null,null,null,null,null,null,0]
[603,null,null,null,null,null,null,null,null,null,null,null,0,null,null,null,null,null,null,0]
[604,null,null,null,null,null,null,null,null,null,null,null,0,null,null,null,null,null,null,0]
[605,null,null,null,null,null,null,null,null,null,null,null,0,null,null,null,null,null,null,0]
[606,null,null,null,null,null,null,null,null,null,null,null,0,null,null,null,null,null,null,0]
[607,null,null,null,null,null,null,null,null,null,null,null,0,null,null,null,null,null,null,0]
[608,null,null,null,null,null,null,null,null,null,null,null,0,null,null,null,null,null,null,0]
[609,null,null,null,null,null,null,null,null,null,null,null,0,null,null,null,null,null,null,0]
[610,null,null,null,null,null,null,null,null,null,null,null,0,null,null,null,null,null,null,0]
[611,null,null,null,null,null,null,null,null,null,null,null,0,null,null,null,null,null,null,0]
[612,null,null,null,null,null,null,null,null,null,null,null,0,null,null,null,null,null,null,0]
[613,null,null,null,null,null,null,null,null,null,null,null,0,null,null,null,null,null,null,0]
[614,null,null,null,null,null,null,null,null,null,null,null,{"$f":"(G517*$G$2 +H517*$H$2+I517*$I$2+J517*$J$2 +K517*$K$2+L517*$L$2)","v":0},null,null,null,null,null,null,{"$f":"(N517*$N$2 +O517*$O$2+P517*$P$2+Q517*$Q$2 +R517*$R$2+S517*$S$2)","v":0}]
[615,null,null,null,null,null,null,null,null,null,null,null,0,null,null,null,null,null,null,0]
[616,null,null,null,null,null,null,null,null,null,null,null,0,null,null,null,null,null,null,0]
[617,null,null,null,null,null,null,null,null,null,null,null,0,null,null,null,null,null,null,0]
[618,null,null,null,null,null,null,null,null,null,null,null,0,null,null,null,null,null,null,0]
[619,null,null,null,null,null,null,null,null,null,null,null,0,null,null,null,null,null,null,0]
[620,null,null,null,null,null,null,null,null,null,null,null,0,null,null,null,null,null,null,0]
[621,null,null,null,null,null,null,null,null,null,null,null,0,null,null,null,null,null,null,0]
[622,null,null,null,null,null,null,null,null,null,null,null,0,null,null,null,null,null,null,0]
[623,null,null,null,null,null,null,null,null,null,null,null,0,null,null,null,null,null,null,0]
[624,null,null,null,null,null,null,null,null,null,null,null,0,null,null,null,null,null,null,0]
[625,null,null,null,null,null,null,null,null,null,null,null,0,null,null,null,null,null,null,0]
[626,null,null,null,null,null,null,null,null,null,null,null,0,null,null,null,null,null,null,0]
[627,null,null,null,null,null,null,null,null,null,null,null,0,null,null,null,null,null,null,0]
[628,null,null,null,null,null,null,null,null,null,null,null,0,null,null,null,null,null,null,0]
[629,null,null,null,null,null,null,null,null,null,null,null,0,null,null,null,null,null,null,0]
[630,null,null,null,null,null,null,null,null,null,null,null,0,null,null,null,null,null,null,0]
[631,null,null,null,null,null,null,null,null,null,null,null,0,null,null,null,null,null,null,0]
[632,null,null,null,null,null,null,null,null,null,null,null,0,null,null,null,null,null,null,0]
[633,null,null,null,null,null,null,null,null,null,null,null,0,null,null,null,null,null,null,0]
[634,null,null,null,null,null,null,null,null,null,null,null,0,null,null,null,null,null,null,0]
[635,null,null,null,null,null,null,null,null,null,null,null,0,null,null,null,null,null,null,0]
[636,null,null,null,null,null,null,null,null,null,null,null,0,null,null,null,null,null,null,0]
[637,null,null,null,null,null,null,null,null,null,null,null,0,null,null,null,null,null,null,0]
[638,null,null,null,null,null,null,null,null,null,null,null,0,null,null,null,null,null,null,0]
[639,null,null,null,null,null,null,null,null,null,null,null,0,null,null,null,null,null,null,0]
[640,null,null,null,null,null,null,null,null,null,null,null,0,null,null,null,null,null,null,0]
[641,null,null,null,null,null,null,null,null,null,null,null,0,null,null,null,null,null,null,0]
[642,null,null,null,null,null,null,null,null,null,null,null,0,null,null,null,null,null,null,0]
[643,null,null,null,null,null,null,null,null,null,null,null,0,null,null,null,null,null,null,0]
[644,null,null,null,null,null,null,null,null,null,null,null,0,null,null,null,null,null,null,0]
[645,null,null,null,null,null,null,null,null,null,null,null,0,null,null,null,null,null,null,0]
[646,null,null,null,null,null,null,null,null,null,null,null,0,null,null,null,null,null,null,0]
[647,null,null,null,null,null,null,null,null,null,null,null,0,null,null,null,null,null,null,0]
[648,null,null,null,null,null,null,null,null,null,null,null,0,null,null,null,null,null,null,0]
[649,null,null,null,null,null,null,null,null,null,null,null,0,null,null,null,null,null,null,0]
[650,null,null,null,null,null,null,null,null,null,null,null,0,null,null,null,null,null,null,0]
[651,null,null,null,null,null,null,null,null,null,null,null,0,null,null,null,null,null,null,0]
[652,null,null,null,null,null,null,null,null,null,null,null,0,null,null,null,null,null,null,0]
[653,null,null,null,null,null,null,null,null,null,null,null,0,null,null,null,null,null,null,0]
[654,null,null,null,null,null,null,null,null,null,null,null,0,null,null,null,null,null,null,0]
[655,null,null,null,null,null,null,null,null,null,null,null,0,null,null,null,null,null,null,0]
[656,null,null,null,null,null,null,null,null,null,null,null,0,null,null,null,null,null,null,0]
[657,null,null,null,null,null,null,null,null,null,null,null,0,null,null,null,null,null,null,0]
[658,null,null,null,null,null,null,null,null,null,null,null,0,null,null,null,null,null,null,0]
[659,null,null,null,null,null,null,null,null,null,null,null,0,null,null,null,null,null,null,0]
[660,null,null,null,null,null,null,null,null,null,null,null,0,null,null,null,null,null,null,0]
[661,null,null,null,null,null,null,null,null,null,null,null,0,null,null,null,null,null,null,0]
[662,null,null,null,null,null,null,null,null,null,null,null,0,null,null,null,null,null,null,0]
[663,null,null,null,null,null,null,null,null,null,null,null,0,null,null,null,null,null,null,0]
[664,null,null,null,null,null,null,null,null,null,null,null,0,null,null,null,null,null,null,0]
[665,null,null,null,null,null,null,null,null,null,null,null,0,null,null,null,null,null,null,0]
[666,null,null,null,null,null,null,null,null,null,null,null,0,null,null,null,null,null,null,0]
[667,null,null,null,null,null,null,null,null,null,null,null,0,null,null,null,null,null,null,0]
[668,null,null,null,null,null,null,null,null,null,null,null,0,null,null,null,null,null,null,0]
[669,null,null,null,null,null,null,null,null,null,null,null,0,null,null,null,null,null,null,0]
[670,null,null,null,null,null,null,null,null,null,null,null,0,null,null,null,null,null,null,0]
[671,null,null,null,null,null,null,null,null,null,null,null,0,null,null,null,null,null,null,0]
[672,null,null,null,null,null,null,null,null,null,null,null,0,null,null,null,null,null,null,0]
[673,null,null,null,null,null,null,null,null,null,null,null,0,null,null,null,null,null,null,0]
[674,null,null,null,null,null,null,null,null,null,null,null,0,null,null,null,null,null,null,0]
[675,null,null,null,null,null,null,null,null,null,null,null,0,null,null,null,null,null,null,0]
[676,null,null,null,null,null,null,null,null,null,null,null,0,null,null,null,null,null,null,0]
[677,null,null,null,null,null,null,null,null,null,null,null,0,null,null,null,null,null,null,0]
[678,null,null,null,null,null,null,null,null,null,null,null,{"$f":"(G581*$G$2 +H581*$H$2+I581*$I$2+J581*$J$2 +K581*$K$2+L581*$L$2)","v":0},null,null,null,null,null,null,{"$f":"(N581*$N$2 +O581*$O$2+P581*$P$2+Q581*$Q$2 +R581*$R$2+S581*$S$2)","v":0}]
[679,null,null,null,null,null,null,null,null,null,null,null,0,null,null,null,null,null,null,0]
[680,null,null,null,null,null,null,null,null,null,null,null,0,null,null,null,null,null,null,0]
[681,null,null,null,null,null,null,null,null,null,null,null,0,null,null,null,null,null,null,0]
[682,null,null,null,null,null,null,null,null,null,null,null,0,null,null,null,null,null,null,0]
[683,null,null,null,null,null,null,null,null,null,null,null,0,null,null,null,null,null,null,0]
[684,null,null,null,null,null,null,null,null,null,null,null,0,null,null,null,null,null,null,0]
[685,null,null,null,null,null,null,null,null,null,null,null,0,null,null,null,null,null,null,0]
[686,null,null,null,null,null,null,null,null,null,null,null,0,null,null,null,null,null,null,0]
[687,null,null,null,null,null,null,null,null,null,null,null,0,null,null,null,null,null,null,0]
[688,null,null,null,null,null,null,null,null,null,null,null,0,null,null,null,null,null,null,0]
[689,null,null,null,null,null,null,null,null,null,null,null,0,null,null,null,null,null,null,0]
[690,null,null,null,null,null,null,null,null,null,null,null,0,null,null,null,null,null,null,0]
[691,null,null,null,null,null,null,null,null,null,null,null,0,null,null,null,null,null,null,0]
[692,null,null,null,null,null,null,null,null,null,null,null,0,null,null,null,null,null,null,0]
[693,null,null,null,null,null,null,null,null,null,null,null,0,null,null,null,null,null,null,0]
[694,null,null,null,null,null,null,null,null,null,null,null,0,null,null,null,null,null,null,0]
[695,null,null,null,null,null,null,null,null,null,null,null,0,null,null,null,null,null,null,0]
[696,null,null,null,null,null,null,null,null,null,null,null,0,null,null,null,null,null,null,0]
[697,null,null,null,null,null,null,null,null,null,null,null,0,null,null,null,null,null,null,0]
[698,null,null,null,null,null,null,null,null,null,null,null,0,null,null,null,null,null,null,0]
[699,null,null,null,null,null,null,null,null,null,null,null,0,null,null,null,null,null,null,0]
[700,null,null,null,null,null,null,null,null,null,null,null,0,null,null,null,null,null,null,0]
[701,"EXL18",null,"Voß","Marie-Charlotte","Bergkamen",37.770000000000003,37.799999999999997,37.72,37.72,null,null,151.01,null,null,null,null,null,null,0]
[702,"EXL18",null,"Schmidt","Imke","Varel",null,null,null,null,null,null,0,null,null,null,null,null,null,0]
[703,"EXL18",null,"van Loo","Julian","ConAction",38.130000000000003,38.11,37.97,38.1,null,null,152.31,null,null,null,null,null,null,0]
[704,"EXL18",null,"Wetter","Sebastian","Billerbeck",null,null,null,null,null,null,0,null,null,null,null,null,null,0]
[705,"EXL18",null,"Wettendorf","Kathrin","Stromberg",37.74,37.76,37.729999999999997,37.81,null,null,151.04,null,null,null,null,null,null,0]
[706,"EXL18",null,"Kelch","Maria","Bergkamen",38.090000000000003,38.11,37.81,37.97,null,null,151.97999999999999,null,null,null,null,null,null,0]
[707,"EXL18",null,"Freudenstein","Thomas","Mettingen",null,null,null,null,null,null,0,null,null,null,null,null,null,0]
[708,"EXL18",null,"Leismann","Dominik","Mettingen",37.94,37.99,37.97,37.950000000000003,null,null,151.85,37.909999999999997,38,37.93,37.799999999999997,null,null,151.63999999999999]
[709,"EXL18",null,"Lange","Florian","Mettingen",37.76,37.99,37.799999999999997,37.82,null,null,151.37,37.9,37.86,37.950000000000003,37.9,null,null,151.61000000000001]
[710,"EXL18",null,"Ricker","Kristina","Billerbeck",null,null,null,null,null,null,0,null,null,null,null,null,null,0]
[711,"EXL18",null,"Sulitze","Jessica","Bergkamen",null,null,null,null,null,null,0,null,null,null,null,null,null,0]
[712,"EXL18",null,"Rohls","Sebastian","Stromberg",37.94,37.99,37.82,37.979999999999997,null,null,151.72999999999999,null,null,null,null,null,null,0]
[713,"EXL18",null,"Schröer","Sabrina","Mettingen",37.99,38.119999999999997,38.04,38.1,null,null,152.25,null,null,null,null,null,null,0]
[714,"EXL18",null,"Roeben","Frank","Simmerath",null,null,null,null,null,null,0,null,null,null,null,null,null,0]
[715,"EXL18",null,"Leismann","Pascal","Mettingen",null,null,null,null,null,null,0,null,null,null,null,null,null,0]
[716,"EXL18",null,"Hollunder","Christina","Billerbeck",null,null,null,null,null,null,0,null,null,null,null,null,null,0]
[717,"EXL18",null,"Isaac","Marvin","Simmerath",null,null,null,null,null,null,0,null,null,null,null,null,null,0]
[718,"EXL18",null,"Ricker","Claudia","Billerbeck",null,null,null,null,null,null,0,null,null,null,null,null,null,0]
[719,"EXL18",null,"Lammers","Laura","ConAction",37.94,37.89,38.020000000000003,37.93,null,null,151.78,null,null,null,null,null,null,0]
[720,"EXL18",null,"Helms","Markus","Billerbeck",null,null,null,null,null,null,0,null,null,null,null,null,null,0]
[721,"EXL18",null,null,null,null,null,null,null,null,null,null,0,null,null,null,null,null,null,0]
[722,"EXL18",null,null,null,null,null,null,null,null,null,null,0,null,null,null,null,null,null,0]
[723,"EXL18",null,null,null,null,null,null,null,null,null,null,0,null,null,null,null,null,null,0]
[724,"EXL18",null,null,null,null,null,null,null,null,null,null,0,null,null,null,null,null,null,0]
[725,"EXL18",null,null,null,null,null,null,null,null,null,null,0,null,null,null,null,null,null,0]
[726,"EXL18",null,null,null,null,null,null,null,null,null,null,0,null,null,null,null,null,null,0]
[727,"EXL18",null,null,null,null,null,null,null,null,null,null,0,null,null,null,null,null,null,0]
[728,"EXL18",null,null,null,null,null,null,null,null,null,null,0,null,null,null,null,null,null,0]
[729,"EXL18",null,null,null,null,null,null,null,null,null,null,0,null,null,null,null,null,null,0]
[730,"EXL18",null,null,null,null,null,null,null,null,null,null,0,null,null,null,null,null,null,0]
[731,"EXL18",null,null,null,null,null,null,null,null,null,null,0,null,null,null,null,null,null,0]
[732,"EXL18",null,null,null,null,null,null,null,null,null,null,0,null,null,null,null,null,null,0]
[733,"EXL18",null,null,null,null,null,null,null,null,null,null,0,null,null,null,null,null,null,0]
[734,"EXL18",null,null,null,null,null,null,null,null,null,null,0,null,null,null,null,null,null,0]
[735,null,null,null,null,null,null,null,null,null,null,null,0,null,null,null,null,null,null,0]
[736,null,null,null,null,null,null,null,null,null,null,null,0,null,null,null,null,null,null,0]
[737,null,null,null,null,null,null,null,null,null,null,null,0,null,null,null,null,null,null,0]
[738,null,null,null,null,null,null,null,null,null,null,null,0,null,null,null,null,null,null,0]
[739,null,null,null,null,null,null,null,null,null,null,null,0,null,null,null,null,null,null,0]
[740,null,null,null,null,null,null,null,null,null,null,null,0,null,null,null,null,null,null,0]
[741,null,null,null,null,null,null,null,null,null,null,null,0,null,null,null,null,null,null,0]
[742,null,null,null,null,null,null,null,null,null,null,null,{"$f":"(G645*$G$2 +H645*$H$2+I645*$I$2+J645*$J$2 +K645*$K$2+L645*$L$2)","v":0},null,null,null,null,null,null,{"$f":"(N645*$N$2 +O645*$O$2+P645*$P$2+Q645*$Q$2 +R645*$R$2+S645*$S$2)","v":0}]
[743,null,null,null,null,null,null,null,null,null,null,null,0,null,null,null,null,null,null,0]
[744,null,null,null,null,null,null,null,null,null,null,null,0,null,null,null,null,null,null,0]
[745,null,null,null,null,null,null,null,null,null,null,null,0,null,null,null,null,null,null,0]
[746,null,null,null,null,null,null,null,null,null,null,null,0,null,null,null,null,null,null,0]
[747,null,null,null,null,null,null,null,null,null,null,null,0,null,null,null,null,null,null,0]
[748,null,null,null,null,null,null,null,null,null,null,null,0,null,null,null,null,null,null,0]
[749,null,null,null,null,null,null,null,null,null,null,null,0,null,null,null,null,null,null,0]
[750,null,null,null,null,null,null,null,null,null,null,null,0,null,null,null,null,null,null,0]
[751,null,null,null,null,null,null,null,null,null,null,null,0,null,null,null,null,null,null,0]
[752,null,null,null,null,null,null,null,null,null,null,null,0,null,null,null,null,null,null,0]
[753,null,null,null,null,null,null,null,null,null,null,null,0,null,null,null,null,null,null,0]
[754,null,null,null,null,null,null,null,null,null,null,null,0,null,null,null,null,null,null,0]
[755,null,null,null,null,null,null,null,null,null,null,null,0,null,null,null,null,null,null,0]
[756,null,null,null,null,null,null,null,null,null,null,null,0,null,null,null,null,null,null,0]
[757,null,null,null,null,null,null,null,null,null,null,null,0,null,null,null,null,null,null,0]
[758,null,null,null,null,null,null,null,null,null,null,null,0,null,null,null,null,null,null,0]
[759,null,null,null,null,null,null,null,null,null,null,null,0,null,null,null,null,null,null,0]
[760,null,null,null,null,null,null,null,null,null,null,null,0,null,null,null,null,null,null,0]
[761,null,null,null,null,null,null,null,null,null,null,null,0,null,null,null,null,null,null,0]
[762,null,null,null,null,null,null,null,null,null,null,null,0,null,null,null,null,null,null,0]
[763,null,null,null,null,null,null,null,null,null,null,null,0,null,null,null,null,null,null,0]
[764,null,null,null,null,null,null,null,null,null,null,null,0,null,null,null,null,null,null,0]
[765,null,null,null,null,null,null,null,null,null,null,null,0,null,null,null,null,null,null,0]
[766,null,null,null,null,null,null,null,null,null,null,null,0,null,null,null,null,null,null,0]
[767,null,null,null,null,null,null,null,null,null,null,null,0,null,null,null,null,null,null,0]
[768,null,null,null,null,null,null,null,null,null,null,null,0,null,null,null,null,null,null,0]
[769,null,null,null,null,null,null,null,null,null,null,null,0,null,null,null,null,null,null,0]
[770,null,null,null,null,null,null,null,null,null,null,null,0,null,null,null,null,null,null,0]
[771,null,null,null,null,null,null,null,null,null,null,null,0,null,null,null,null,null,null,0]
[772,null,null,null,null,null,null,null,null,null,null,null,0,null,null,null,null,null,null,0]
[773,null,null,null,null,null,null,null,null,null,null,null,0,null,null,null,null,null,null,0]
[774,null,null,null,null,null,null,null,null,null,null,null,0,null,null,null,null,null,null,0]
[775,null,null,null,null,null,null,null,null,null,null,null,0,null,null,null,null,null,null,0]
[776,null,null,null,null,null,null,null,null,null,null,null,0,null,null,null,null,null,null,0]
[777,null,null,null,null,null,null,null,null,null,null,null,0,null,null,null,null,null,null,0]
[778,null,null,null,null,null,null,null,null,null,null,null,0,null,null,null,null,null,null,0]
[779,null,null,null,null,null,null,null,null,null,null,null,0,null,null,null,null,null,null,0]
[780,null,null,null,null,null,null,null,null,null,null,null,0,null,null,null,null,null,null,0]
[781,null,null,null,null,null,null,null,null,null,null,null,0,null,null,null,null,null,null,0]
[782,null,null,null,null,null,null,null,null,null,null,null,0,null,null,null,null,null,null,0]
[783,null,null,null,null,null,null,null,null,null,null,null,0,null,null,null,null,null,null,0]
[784,null,null,null,null,null,null,null,null,null,null,null,0,null,null,null,null,null,null,0]
[785,null,null,null,null,null,null,null,null,null,null,null,0,null,null,null,null,null,null,0]
[786,null,null,null,null,null,null,null,null,null,null,null,0,null,null,null,null,null,null,0]
[787,null,null,null,null,null,null,null,null,null,null,null,0,null,null,null,null,null,null,0]
[788,null,null,null,null,null,null,null,null,null,null,null,0,null,null,null,null,null,null,0]
[789,null,null,null,null,null,null,null,null,null,null,null,0,null,null,null,null,null,null,0]
[790,null,null,null,null,null,null,null,null,null,null,null,0,null,null,null,null,null,null,0]
[791,null,null,null,null,null,null,null,null,null,null,null,0,null,null,null,null,null,null,0]
[792,null,null,null,null,null,null,null,null,null,null,null,0,null,null,null,null,null,null,0]
[793,null,null,null,null,null,null,null,null,null,null,null,0,null,null,null,null,null,null,0]
[794,null,null,null,null,null,null,null,null,null,null,null,0,null,null,null,null,null,null,0]
[795,null,null,null,null,null,null,null,null,null,null,null,0,null,null,null,null,null,null,0]
[796,null,null,null,null,null,null,null,null,null,null,null,0,null,null,null,null,null,null,0]
[797,null,null,null,null,null,null,null,null,null,null,null,0,null,null,null,null,null,null,0]
[798,null,null,null,null,null,null,null,null,null,null,null,0,null,null,null,null,null,null,0]
[799,null,null,null,null,null,null,null,null,null,null,null,0,null,null,null,null,null,null,0]
[800,null,null,null,null,null,null,null,null,null,null,null,0,null,null,null,null,null,null,0]
[801,null,null,null,null,null,null,null,null,null,null,null,0,null,null,null,null,null,null,0]
[802,null,null,null,null,null,null,null,null,null,null,null,0,null,null,null,null,null,null,0]
[803,null,null,null,null,null,null,null,null,null,null,null,0,null,null,null,null,null,null,0]
[804,null,null,null,null,null,null,null,null,null,null,null,0,null,null,null,null,null,null,0]
[805,null,null,null,null,null,null,null,null,null,null,null,0,null,null,null,null,null,null,0]
[806,null,null,null,null,null,null,null,null,null,null,null,{"$f":"(G709*$G$2 +H709*$H$2+I709*$I$2+J709*$J$2 +K709*$K$2+L709*$L$2)","v":0},null,null,null,null,null,null,{"$f":"(N709*$N$2 +O709*$O$2+P709*$P$2+Q709*$Q$2 +R709*$R$2+S709*$S$2)","v":0}]
[807,null,null,null,null,null,null,null,null,null,null,null,0,null,null,null,null,null,null,0]
[808,null,null,null,null,null,null,null,null,null,null,null,0,null,null,null,null,null,null,0]
[809,null,null,null,null,null,null,null,null,null,null,null,0,null,null,null,null,null,null,0]
[810,null,null,null,null,null,null,null,null,null,null,null,0,null,null,null,null,null,null,0]
[811,null,null,null,null,null,null,null,null,null,null,null,0,null,null,null,null,null,null,0]
[812,null,null,null,null,null,null,null,null,null,null,null,0,null,null,null,null,null,null,0]
[813,null,null,null,null,null,null,null,null,null,null,null,0,null,null,null,null,null,null,0]
[814,null,null,null,null,null,null,null,null,null,null,null,0,null,null,null,null,null,null,0]
[815,null,null,null,null,null,null,null,null,null,null,null,0,null,null,null,null,null,null,0]
[816,null,null,null,null,null,null,null,null,null,null,null,0,null,null,null,null,null,null,0]
[817,null,null,null,null,null,null,null,null,null,null,null,0,null,null,null,null,null,null,0]
[818,null,null,null,null,null,null,null,null,null,null,null,0,null,null,null,null,null,null,0]
[819,null,null,null,null,null,null,null,null,null,null,null,0,null,null,null,null,null,null,0]
[820,null,null,null,null,null,null,null,null,null,null,null,0,null,null,null,null,null,null,0]
[821,null,null,null,null,null,null,null,null,null,null,null,0,null,null,null,null,null,null,0]
[822,null,null,null,null,null,null,null,null,null,null,null,0,null,null,null,null,null,null,0]
[823,null,null,null,null,null,null,null,null,null,null,null,0,null,null,null,null,null,null,0]
[824,null,null,null,null,null,null,null,null,null,null,null,0,null,null,null,null,null,null,0]
[825,null,null,null,null,null,null,null,null,null,null,null,0,null,null,null,null,null,null,0]
[826,null,null,null,null,null,null,null,null,null,null,null,0,null,null,null,null,null,null,0]
[827,null,null,null,null,null,null,null,null,null,null,null,0,null,null,null,null,null,null,0]
[828,null,null,null,null,null,null,null,null,null,null,null,0,null,null,null,null,null,null,0]
[829,null,null,null,null,null,null,null,null,null,null,null,0,null,null,null,null,null,null,0]
[830,null,null,null,null,null,null,null,null,null,null,null,0,null,null,null,null,null,null,0]
[831,null,null,null,null,null,null,null,null,null,null,null,0,null,null,null,null,null,null,0]
[832,null,null,null,null,null,null,null,null,null,null,null,0,null,null,null,null,null,null,0]
[833,null,null,null,null,null,null,null,null,null,null,null,0,null,null,null,null,null,null,0]
[834,null,null,null,null,null,null,null,null,null,null,null,0,null,null,null,null,null,null,0]
[835,null,null,null,null,null,null,null,null,null,null,null,0,null,null,null,null,null,null,0]
[836,null,null,null,null,null,null,null,null,null,null,null,0,null,null,null,null,null,null,0]
[837,null,null,null,null,null,null,null,null,null,null,null,0,null,null,null,null,null,null,0]
[838,null,null,null,null,null,null,null,null,null,null,null,0,null,null,null,null,null,null,0]
[839,null,null,null,null,null,null,null,null,null,null,null,0,null,null,null,null,null,null,0]
[840,null,null,null,null,null,null,null,null,null,null,null,0,null,null,null,null,null,null,0]
[841,null,null,null,null,null,null,null,null,null,null,null,0,null,null,null,null,null,null,0]
[842,null,null,null,null,null,null,null,null,null,null,null,0,null,null,null,null,null,null,0]
[843,null,null,null,null,null,null,null,null,null,null,null,0,null,null,null,null,null,null,0]
[844,null,null,null,null,null,null,null,null,null,null,null,0,null,null,null,null,null,null,0]
[845,null,null,null,null,null,null,null,null,null,null,null,0,null,null,null,null,null,null,0]
[846,null,null,null,null,null,null,null,null,null,null,null,0,null,null,null,null,null,null,0]
[847,null,null,null,null,null,null,null,null,null,null,null,0,null,null,null,null,null,null,0]
[848,null,null,null,null,null,null,null,null,null,null,null,0,null,null,null,null,null,null,0]
[849,null,null,null,null,null,null,null,null,null,null,null,0,null,null,null,null,null,null,0]
[850,null,null,null,null,null,null,null,null,null,null,null,0,null,null,null,null,null,null,0]
[851,null,null,null,null,null,null,null,null,null,null,null,0,null,null,null,null,null,null,0]
[852,null,null,null,null,null,null,null,null,null,null,null,0,null,null,null,null,null,null,0]
[853,null,null,null,null,null,null,null,null,null,null,null,0,null,null,null,null,null,null,0]
[854,null,null,null,null,null,null,null,null,null,null,null,0,null,null,null,null,null,null,0]
[855,null,null,null,null,null,null,null,null,null,null,null,0,null,null,null,null,null,null,0]
[856,null,null,null,null,null,null,null,null,null,null,null,0,null,null,null,null,null,null,0]
[857,null,null,null,null,null,null,null,null,null,null,null,0,null,null,null,null,null,null,0]
[858,null,null,null,null,null,null,null,null,null,null,null,0,null,null,null,null,null,null,0]
[859,null,null,null,null,null,null,null,null,null,null,null,0,null,null,null,null,null,null,0]
[860,null,null,null,null,null,null,null,null,null,null,null,0,null,null,null,null,null,null,0]
[861,null,null,null,null,null,null,null,null,null,null,null,0,null,null,null,null,null,null,0]
[862,null,null,null,null,null,null,null,null,null,null,null,0,null,null,null,null,null,null,0]
[863,null,null,null,null,null,null,null,null,null,null,null,0,null,null,null,null,null,null,0]
[864,null,null,null,null,null,null,null,null,null,null,null,0,null,null,null,null,null,null,0]
[865,null,null,null,null,null,null,null,null,null,null,null,0,null,null,null,null,null,null,0]
[866,null,null,null,null,null,null,null,null,null,null,null,0,null,null,null,null,null,null,0]
[867,null,null,null,null,null,null,null,null,null,null,null,0,null,null,null,null,null,null,0]
[868,null,null,null,null,null,null,null,null,null,null,null,0,null,null,null,null,null,null,0]
[869,null,null,null,null,null,null,null,null,null,null,null,0,null,null,null,null,null,null,0]
[870,null,null,null,null,null,null,null,null,null,null,null,{"$f":"(G773*$G$2 +H773*$H$2+I773*$I$2+J773*$J$2 +K773*$K$2+L773*$L$2)","v":0},null,null,null,null,null,null,{"$f":"(N773*$N$2 +O773*$O$2+P773*$P$2+Q773*$Q$2 +R773*$R$2+S773*$S$2)","v":0}]
[871,null,null,null,null,null,null,null,null,null,null,null,0,null,null,null,null,null,null,0]
[872,null,null,null,null,null,null,null,null,null,null,null,0,null,null,null,null,null,null,0]
[873,null,null,null,null,null,null,null,null,null,null,null,0,null,null,null,null,null,null,0]
[874,null,null,null,null,null,null,null,null,null,null,null,0,null,null,null,null,null,null,0]
[875,null,null,null,null,null,null,null,null,null,null,null,0,null,null,null,null,null,null,0]
[876,null,null,null,null,null,null,null,null,null,null,null,0,null,null,null,null,null,null,0]
[877,null,null,null,null,null,null,null,null,null,null,null,0,null,null,null,null,null,null,0]
[878,null,null,null,null,null,null,null,null,null,null,null,0,null,null,null,null,null,null,0]
[879,null,null,null,null,null,null,null,null,null,null,null,0,null,null,null,null,null,null,0]
[880,null,null,null,null,null,null,null,null,null,null,null,0,null,null,null,null,null,null,0]
[881,null,null,null,null,null,null,null,null,null,null,null,0,null,null,null,null,null,null,0]
[882,null,null,null,null,null,null,null,null,null,null,null,0,null,null,null,null,null,null,0]
[883,null,null,null,null,null,null,null,null,null,null,null,0,null,null,null,null,null,null,0]
[884,null,null,null,null,null,null,null,null,null,null,null,0,null,null,null,null,null,null,0]
[885,null,null,null,null,null,null,null,null,null,null,null,0,null,null,null,null,null,null,0]
[886,null,null,null,null,null,null,null,null,null,null,null,0,null,null,null,null,null,null,0]
[887,null,null,null,null,null,null,null,null,null,null,null,0,null,null,null,null,null,null,0]
[888,null,null,null,null,null,null,null,null,null,null,null,0,null,null,null,null,null,null,0]
[889,null,null,null,null,null,null,null,null,null,null,null,0,null,null,null,null,null,null,0]
[890,null,null,null,null,null,null,null,null,null,null,null,0,null,null,null,null,null,null,0]
[891,null,null,null,null,null,null,null,null,null,null,null,0,null,null,null,null,null,null,0]
[892,null,null,null,null,null,null,null,null,null,null,null,0,null,null,null,null,null,null,0]
[893,null,null,null,null,null,null,null,null,null,null,null,0,null,null,null,null,null,null,0]
[894,null,null,null,null,null,null,null,null,null,null,null,0,null,null,null,null,null,null,0]
[895,null,null,null,null,null,null,null,null,null,null,null,0,null,null,null,null,null,null,0]
[896,null,null,null,null,null,null,null,null,null,null,null,0,null,null,null,null,null,null,0]
[897,null,null,null,null,null,null,null,null,null,null,null,0,null,null,null,null,null,null,0]
[898,null,null,null,null,null,null,null,null,null,null,null,0,null,null,null,null,null,null,0]
[899,null,null,null,null,null,null,null,null,null,null,null,0,null,null,null,null,null,null,0]
[900,null,null,null,null,null,null,null,null,null,null,null,0,null,null,null,null,null,null,0]
[901,"Open",null,"Schmidt","Michael","Varel",37.58,37.630000000000003,37.68,37.46,null,null,{"$f":"IF($G$2=1,\nIF(H804>1,(ABS(G804-H804)),0)+\nIF(I804>1,(ABS(G804-I804)),0)+\nIF(J804>1,(ABS(G804-J804)),0)+\nIF(K804>1,(ABS(G804-K804)),0)+\nIF(L804>1,(ABS(G804-L804)),0),\n\nIF(I804>1,(ABS(H804-I804)),0)+\nIF(J804>1,(ABS(H804-J804)),0)+\nIF(K804>1,(ABS(H804-K804)),0) )","v":0.27},null,null,null,null,null,null,{"$f":"IF($N$2=1,IF(O804>1,(ABS(N804-O804)),0)+IF(P804>1,(ABS(N804-P804)),0)+IF(Q804>1,(ABS(N804-Q804)),0),IF(P804>1,(ABS(O804-P804)),0)+IF(Q804>1,(ABS(O804-Q804)),0)+IF(R804>1,(ABS(O804-R804)),0) )","v":0}]
[902,"Open",null,"Crook","Florian","Mettingen",null,null,null,null,null,null,{"$f":"IF($G$2=1,\nIF(H805>1,(ABS(G805-H805)),0)+\nIF(I805>1,(ABS(G805-I805)),0)+\nIF(J805>1,(ABS(G805-J805)),0)+\nIF(K805>1,(ABS(G805-K805)),0)+\nIF(L805>1,(ABS(G805-L805)),0),\n\nIF(I805>1,(ABS(H805-I805)),0)+\nIF(J805>1,(ABS(H805-J805)),0)+\nIF(K805>1,(ABS(H805-K805)),0) )","v":0},null,null,null,null,null,null,{"$f":"IF($N$2=1,IF(O805>1,(ABS(N805-O805)),0)+IF(P805>1,(ABS(N805-P805)),0)+IF(Q805>1,(ABS(N805-Q805)),0),IF(P805>1,(ABS(O805-P805)),0)+IF(Q805>1,(ABS(O805-Q805)),0)+IF(R805>1,(ABS(O805-R805)),0) )","v":0}]
[903,"Open",null,"Gerigk-Lorenz","Frank","Overath",38.97,38.89,38.76,38.71,null,null,0.55000000000000004,null,null,null,null,null,null,0]
[904,"Open",null,"Gaidosch","Udo","Overath",40.090000000000003,40,39.82,39.81,null,null,0.64,null,null,null,null,null,null,0]
[905,"Open",null,"Ricker","Andreas","Billerbeck",null,null,null,null,null,null,0,null,null,null,null,null,null,0]
[906,"Open",null,"Szabowski","Marco","Billerbeck",null,null,null,null,null,null,0,null,null,null,null,null,null,0]
[907,"Open",null,"Szabowski","Peter","Billerbeck",null,null,null,null,null,null,0,null,null,null,null,null,null,0]
[908,"Open",null,"Pahlings","Anna","ConAction",null,null,null,null,null,null,0,null,null,null,null,null,null,0]
[909,"Open",null,"Pahlings","Kai","ConAction",null,null,null,null,null,null,0,null,null,null,null,null,null,0]
[910,"Open",null,"Drücker","Gavin","Stromberg",null,null,null,null,null,null,0,null,null,null,null,null,null,0]
[911,"Open",null,"Drücker","Guido","Stromberg",null,null,null,null,null,null,0,null,null,null,null,null,null,0]
[912,"Open",null,"Wetter","Sabrina","Billerbeck",null,null,null,null,null,null,0,null,null,null,null,null,null,0]
[913,"Open",null,"Pahlings","Iris","ConAction",null,null,null,null,null,null,0,null,null,null,null,null,null,0]
[914,"Open",null,"Schulz","Tobias",null,null,null,null,null,null,null,0,null,null,null,null,null,null,0]
[915,"Open",null,"Enders","Simon","Billerbeck",null,null,null,null,null,null,0,null,null,null,null,null,null,0]
[916,"Open",null,"Szabowski","Mara","Billerbeck",null,null,null,null,null,null,0,null,null,null,null,null,null,0]
[917,"Open",null,"Pahlings","Detlev","ConAction",null,null,null,null,null,null,0,null,null,null,null,null,null,0]
[918,"Open",null,"Thoben","Jonas",null,null,null,null,null,null,null,0,null,null,null,null,null,null,0]
[919,"Open",null,"Schlösser","Jürgen","Stromberg",43.64,43.99,44.1,43.72,null,null,0.89,null,null,null,null,null,null,0]
[920,"Open",null,"Frede","John",null,null,null,null,null,null,null,0,null,null,null,null,null,null,0]
[921,"Open",null,"Niessen","Nicolas","Simmerath",null,null,null,null,null,null,0,null,null,null,null,null,null,0]
[922,"Open",null,"Paradowska","Joana","Mettingen",null,null,null,null,null,null,0,null,null,null,null,null,null,0]
[923,"Open",null,"Ricker","Oliver","Billerbeck",null,null,null,null,null,null,0,null,null,null,null,null,null,0]
[924,"Open",null,"Angenendt","Philip","Billerbeck",null,null,null,null,null,null,0,null,null,null,null,null,null,0]
[925,"Open",null,null,null,null,null,null,null,null,null,null,0,null,null,null,null,null,null,0]
[926,"Open",null,null,null,null,null,null,null,null,null,null,0,null,null,null,null,null,null,0]
[927,"Open",null,null,null,null,null,null,null,null,null,null,0,null,null,null,null,null,null,0]
[928,"Open",null,null,null,null,null,null,null,null,null,null,0,null,null,null,null,null,null,0]
[929,null,null,null,null,null,null,null,null,null,null,null,0,null,null,null,null,null,null,0]
[930,null,null,null,null,null,null,null,null,null,null,null,0,null,null,null,null,null,null,0]
[931,null,null,null,null,null,null,null,null,null,null,null,0,null,null,null,null,null,null,0]
[932,null,null,null,null,null,null,null,null,null,null,null,0,null,null,null,null,null,null,0]
[933,null,null,null,null,null,null,null,null,null,null,null,0,null,null,null,null,null,null,0]
[934,null,null,null,null,null,null,null,null,null,null,null,0,null,null,null,null,null,null,0]
[935,null,null,null,null,null,null,null,null,null,null,null,0,null,null,null,null,null,null,0]
[936,null,null,null,null,null,null,null,null,null,null,null,0,null,null,null,null,null,null,0]
[937,null,null,null,null,null,null,null,null,null,null,null,0,null,null,null,null,null,null,0]
[938,null,null,null,null,null,null,null,null,null,null,null,0,null,null,null,null,null,null,0]
[939,null,null,null,null,null,null,null,null,null,null,null,0,null,null,null,null,null,null,0]
[940,null,null,null,null,null,null,null,null,null,null,null,0,null,null,null,null,null,null,0]
[941,null,null,null,null,null,null,null,null,null,null,null,0,null,null,null,null,null,null,0]
[942,null,null,null,null,null,null,null,null,null,null,null,0,null,null,null,null,null,null,0]
[943,null,null,null,null,null,null,null,null,null,null,null,0,null,null,null,null,null,null,0]
[944,null,null,null,null,null,null,null,null,null,null,null,0,null,null,null,null,null,null,0]
[945,null,null,null,null,null,null,null,null,null,null,null,0,null,null,null,null,null,null,0]
[946,null,null,null,null,null,null,null,null,null,null,null,0,null,null,null,null,null,null,0]
[947,null,null,null,null,null,null,null,null,null,null,null,0,null,null,null,null,null,null,0]
[948,null,null,null,null,null,null,null,null,null,null,null,0,null,null,null,null,null,null,0]
[949,null,null,null,null,null,null,null,null,null,null,null,0,null,null,null,null,null,null,0]
[999,"! ! !",null,"Einzel","! ! !","Start",38.97,38.89,38.76,38.71,null,null,null,39.4,41.53,39.49,40.659999999999997]

{"sheet":"NRW-Junior","index":2,"n_rows":203,"n_cols":16,"rows_kept":203,"cut":false,"hidden":false,"merged":[]}
[{"$f":"Gesamt!A1","v":"10.06.2018 DSKD  Derby Mettingen"}]
["  NRW-Qualifikation JUNIOR - Klasse  "]
[]
["Wird der Lauf gewertet?   dann 0 oder 1 eintragen",null,null,null,null,null,1,1,1,1,1,1]
["Bestzeit je Lauf",null,null,null,null,null,{"$f":"MIN(G9:G203)","v":38.770000000000003},38.81,38.69,38.74,100,0]
[]
["Start\nNummer","Gruppe","startet","Name","Vorname","Verein","Lauf 1","Lauf 2","Lauf 3","Lauf 4","Lauf 5","Lauf 6","Summe der gewerteten Läufe",null,"Platz","Urkunde"]
[]
[102,"JUN",null,"Paschedag","Mia","Stromberg",38.770000000000003,38.85,38.69,38.96,null,null,{"$f":"(G9*$G$4+H9*$H$4+I9*$I$4+J9*$J$4+K9*$K$4+L9*$L$4)","v":155.27000000000001},{"$f":"IF(M9>0,M9*-1,-1000)","v":-155.27000000000001},{"$f":"IF(M9>0,RANK(N9,N:N),0)","v":1}]
[101,"JUN",null,"Lampe","Ida","Mettingen",38.909999999999997,38.81,38.74,39.049999999999997,null,null,155.51,-155.51,2]
[103,"JUN",null,"Freudenstein","Romy","Mettingen",38.92,38.96,38.729999999999997,38.94,null,null,155.55000000000001,-155.55000000000001,3]
[111,"JUN",null,"Meyhoff","Moritz","Mettingen",38.97,38.869999999999997,38.99,38.85,null,null,155.68,-155.68,4]
[105,"JUN",null,"Bednarski","Max","Mettingen",null,null,null,null,null,null,0,-1000,0]
[125,"JUN",null,"Meyhoff","Finn","Mettingen",38.83,38.880000000000003,38.99,39.049999999999997,null,null,155.75,-155.75,5]
[107,"JUN",null,"Plath","Johanna","Mettingen",null,null,null,null,null,null,0,-1000,0]
[124,"JUN",null,"Crook","Florian","Mettingen",38.96,38.89,38.94,39.11,null,null,155.9,-155.9,6]
[106,"JUN",null,"Plath","Marvin","Mettingen",39.04,39.01,38.950000000000003,39.32,null,null,156.32,-156.32,7]
[108,"JUN",null,"Pufahl","Maximilian","Mettingen",39.17,39.07,38.99,39.26,null,null,156.49,-156.49,8]
[110,"JUN",null,"Claus","Florentina","Bergkamen",39.200000000000003,39.26,39.450000000000003,39.31,null,null,157.22,-157.22,9]
[112,"JUN",null,"Gahler","Hendrik","Mettingen",null,null,null,null,null,null,0,-1000,0]
[113,"JUN",null,"Bednarski","Jonathan","Mettingen",null,null,null,null,null,null,0,-1000,0]
[114,"JUN",null,"Reutter","Elisabeth","Stromberg",null,null,null,null,null,null,0,-1000,0]
[115,"JUN",null,"Stoffers","Martha","Stromberg",null,null,null,null,null,null,0,-1000,0]
[116,"JUN",null,"Hiegemann","Mathilda","Stromberg",null,null,null,null,null,null,0,-1000,0]
[109,"JUN",null,"Demleitner","Angelike","Bergkamen",39.29,39.28,39.28,39.49,null,null,157.34,-157.34,10]
[118,"JUN",null,"Pflug","Fabian","Stromberg",null,null,null,null,null,null,0,-1000,0]
[119,"JUN",null,"Krüger","Michelle","Billerbeck",null,null,null,null,null,null,0,-1000,0]
[120,"JUN",null,"Enders","Julius","Billerbeck",null,null,null,null,null,null,0,-1000,0]
[121,"JUN",null,"Stoffers","Christina","Stromberg",null,null,null,null,null,null,0,-1000,0]
[122,"JUN",null,"Grützner","Lennox","Billerbeck",null,null,null,null,null,null,0,-1000,0]
[123,"JUN",null,"Paschedag","Lena","Stromberg",null,null,null,null,null,null,0,-1000,0]
[117,"JUN",null,"Ording","Louisa","Stromberg",39.47,39.44,39.64,39.479999999999997,null,null,158.03,-158.03,11]
[127,"JUN",null,"Meister","Till","Mettingen",39.6,39.270000000000003,39.79,39.590000000000003,null,null,158.25,-158.25,12]
[126,"JUN",null,null,null,null,null,null,null,null,null,null,0,-1000,0]
[104,"JUN",null,"Schier","Finn","Stromberg",39.42,39.44,39.69,39.74,null,null,158.29,-158.29,13]
[128,"JUN",null,null,null,null,null,null,null,null,null,null,0,-1000,0]
[129,"JUN",null,null,null,null,null,null,null,null,null,null,0,-1000,0]
[130,"JUN",null,"Kleinsorge","Henri","Mettingen",44.04,41.76,41.17,40.79,null,null,167.76,-167.76,14]
[131,"JUN",null,null,null,null,null,null,null,null,null,null,0,-1000,0]
[132,"JUN",null,null,null,null,null,null,null,null,null,null,0,-1000,0]
[133,"JUN",null,null,null,null,null,null,null,null,null,null,{"$f":"(G41*$G$4+H41*$H$4+I41*$I$4+J41*$J$4+K41*$K$4+L41*$L$4)","v":0},{"$f":"IF(M41>0,M41*-1,-1000)","v":-1000},{"$f":"IF(M41>0,RANK(N41,N:N),0)","v":0}]
[134,"JUN",null,null,null,null,null,null,null,null,null,null,0,-1000,0]
[135,"JUN",null,null,null,null,null,null,null,null,null,null,0,-1000,0]
[136,"JUN",null,null,null,null,null,null,null,null,null,null,0,-1000,0]
[137,"JUN",null,null,null,null,null,null,null,null,null,null,0,-1000,0]
[138,"JUN",null,null,null,null,null,null,null,null,null,null,0,-1000,0]
[139,"JUN",null,null,null,null,null,null,null,null,null,null,0,-1000,0]
[140,"JUN",null,null,null,null,null,null,null,null,null,null,0,-1000,0]
[141,"JUN",null,null,null,null,null,null,null,null,null,null,0,-1000,0]
[142,"JUN",null,null,null,null,null,null,null,null,null,null,0,-1000,0]
[143,"JUN",null,null,null,null,null,null,null,null,null,null,0,-1000,0]
[144,"JUN",null,null,null,null,null,null,null,null,null,null,0,-1000,0]
[145,"JUN",null,null,null,null,null,null,null,null,null,null,0,-1000,0]
[146,"JUN",null,null,null,null,null,null,null,null,null,null,0,-1000,0]
[147,"JUN",null,null,null,null,null,null,null,null,null,null,0,-1000,0]
[148,"JUN",null,null,null,null,null,null,null,null,null,null,0,-1000,0]
[149,"JUN",null,null,null,null,null,null,null,null,null,null,0,-1000,0]
[null,null,null,null,null,null,null,null,null,null,null,null,0,-1000,0]
[402,"Jun","Berlin","Milbach","Leif","Joker Team",38.97,38.97,41.1,38.74,100,null,257.77999999999997,-257.77999999999997,15]
[401,"Jun","Berlin","Milbach","Loreley","Joker Team",41.21,40.92,38.96,40.39,100,null,261.48,-261.48,16]
[null,null,null,null,null,null,null,null,null,null,null,null,{"$f":"(G61*$G$4+H61*$H$4+I61*$I$4+J61*$J$4+K61*$K$4+L61*$L$4)","v":0},{"$f":"IF(M61>0,M61*-1,-1000)","v":-1000},{"$f":"IF(M61>0,RANK(N61,N:N),0)","v":0}]
[null,null,null,null,null,null,null,null,null,null,null,null,0,-1000,0]
[null,null,null,null,null,null,null,null,null,null,null,null,0,-1000,0]
[null,null,null,null,null,null,null,null,null,null,null,null,0,-1000,0]
[null,null,null,null,null,null,null,null,null,null,null,null,0,-1000,0]
[null,null,null,null,null,null,null,null,null,null,null,null,0,-1000,0]
[null,null,null,null,null,null,null,null,null,null,null,null,0,-1000,0]
[null,null,null,null,null,null,null,null,null,null,null,null,0,-1000,0]
[null,null,null,null,null,null,null,null,null,null,null,null,0,-1000,0]
[null,null,null,null,null,null,null,null,null,null,null,null,0,-1000,0]
[null,null,null,null,null,null,null,null,null,null,null,null,0,-1000,0]
[null,null,null,null,null,null,null,null,null,null,null,null,0,-1000,0]
[null,null,null,null,null,null,null,null,null,null,null,null,{"$f":"(G73*$G$4+H73*$H$4+I73*$I$4+J73*$J$4+K73*$K$4+L73*$L$4)","v":0},{"$f":"IF(M73>0,M73*-1,-1000)","v":-1000},{"$f":"IF(M73>0,RANK(N73,N:N),0)","v":0}]
[null,null,null,null,null,null,null,null,null,null,null,null,0,-1000,0]
[null,null,null,null,null,null,null,null,null,null,null,null,0,-1000,0]
[null,null,null,null,null,null,null,null,null,null,null,null,0,-1000,0]
[null,null,null,null,null,null,null,null,null,null,null,null,0,-1000,0]
[null,null,null,null,null,null,null,null,null,null,null,null,0,-1000,0]
[null,null,null,null,null,null,null,null,null,null,null,null,0,-1000,0]
[null,null,null,null,null,null,null,null,null,null,null,null,0,-1000,0]
[null,null,null,null,null,null,null,null,null,null,null,null,0,-1000,0]
[null,null,null,null,null,null,null,null,null,null,null,null,0,-1000,0]
[null,null,null,null,null,null,null,null,null,null,null,null,0,-1000,0]
[null,null,null,null,null,null,null,null,null,null,null,null,0,-1000,0]
[null,null,null,null,null,null,null,null,null,null,null,null,0,-1000,0]
[null,null,null,null,null,null,null,null,null,null,null,null,0,-1000,0]
[null,null,null,null,null,null,null,null,null,null,null,null,0,-1000,0]
[null,null,null,null,null,null,null,null,null,null,null,null,0,-1000,0]
[null,null,null,null,null,null,null,null,null,null,null,null,0,-1000,0]
[null,null,null,null,null,null,null,null,null,null,null,null,0,-1000,0]
[null,null,null,null,null,null,null,null,null,null,null,null,0,-1000,0]
[null,null,null,null,null,null,null,null,null,null,null,null,0,-1000,0]
[null,null,null,null,null,null,null,null,null,null,null,null,0,-1000,0]
[null,null,null,null,null,null,null,null,null,null,null,null,0,-1000,0]
[null,null,null,null,null,null,null,null,null,null,null,null,0,-1000,0]
[null,null,null,null,null,null,null,null,null,null,null,null,0,-1000,0]
[null,null,null,null,null,null,null,null,null,null,null,null,0,-1000,0]
[null,null,null,null,null,null,null,null,null,null,null,null,0,-1000,0]
[null,null,null,null,null,null,null,null,null,null,null,null,0,-1000,0]
[null,null,null,null,null,null,null,null,null,null,null,null,0,-1000,0]
[null,null,null,null,null,null,null,null,null,null,null,null,0,-1000,0]
[null,null,null,null,null,null,null,null,null,null,null,null,0,-1000,0]
[null,null,null,null,null,null,null,null,null,null,null,null,0,-1000,0]
[null,null,null,null,null,null,null,null,null,null,null,null,0,-1000,0]
[null,null,null,null,null,null,null,null,null,null,null,null,{"$f":"(G105*$G$4+H105*$H$4+I105*$I$4+J105*$J$4+K105*$K$4+L105*$L$4)","v":0},{"$f":"IF(M105>0,M105*-1,-1000)","v":-1000},{"$f":"IF(M105>0,RANK(N105,N:N),0)","v":0}]
[null,null,null,null,null,null,null,null,null,null,null,null,0,-1000,0]
[null,null,null,null,null,null,null,null,null,null,null,null,0,-1000,0]
[null,null,null,null,null,null,null,null,null,null,null,null,0,-1000,0]
[null,null,null,null,null,null,null,null,null,null,null,null,0,-1000,0]
[null,null,null,null,null,null,null,null,null,null,null,null,0,-1000,0]
[null,null,null,null,null,null,null,null,null,null,null,null,0,-1000,0]
[null,null,null,null,null,null,null,null,null,null,null,null,0,-1000,0]
[null,null,null,null,null,null,null,null,null,null,null,null,0,-1000,0]
[null,null,null,null,null,null,null,null,null,null,null,null,0,-1000,0]
[null,null,null,null,null,null,null,null,null,null,null,null,0,-1000,0]
[null,null,null,null,null,null,null,null,null,null,null,null,0,-1000,0]
[null,null,null,null,null,null,null,null,null,null,null,null,0,-1000,0]
[null,null,null,null,null,null,null,null,null,null,null,null,0,-1000,0]
[null,null,null,null,null,null,null,null,null,null,null,null,0,-1000,0]
[null,null,null,null,null,null,null,null,null,null,null,null,0,-1000,0]
[null,null,null,null,null,null,null,null,null,null,null,null,0,-1000,0]
[null,null,null,null,null,null,null,null,null,null,null,null,0,-1000,0]
[null,null,null,null,null,null,null,null,null,null,null,null,0,-1000,0]
[null,null,null,null,null,null,null,null,null,null,null,null,0,-1000,0]
[null,null,null,null,null,null,null,null,null,null,null,null,0,-1000,0]
[null,null,null,null,null,null,null,null,null,null,null,null,0,-1000,0]
[null,null,null,null,null,null,null,null,null,null,null,null,0,-1000,0]
[null,null,null,null,null,null,null,null,null,null,null,null,0,-1000,0]
[null,null,null,null,null,null,null,null,null,null,null,null,0,-1000,0]
[null,null,null,null,null,null,null,null,null,null,null,null,0,-1000,0]
[null,null,null,null,null,null,null,null,null,null,null,null,0,-1000,0]
[null,null,null,null,null,null,null,null,null,null,null,null,0,-1000,0]
[null,null,null,null,null,null,null,null,null,null,null,null,0,-1000,0]
[null,null,null,null,null,null,null,null,null,null,null,null,0,-1000,0]
[null,null,null,null,null,null,null,null,null,null,null,null,0,-1000,0]
[null,null,null,null,null,null,null,null,null,null,null,null,0,-1000,0]
[null,null,null,null,null,null,null,null,null,null,null,null,{"$f":"(G137*$G$4+H137*$H$4+I137*$I$4+J137*$J$4+K137*$K$4+L137*$L$4)","v":0},{"$f":"IF(M137>0,M137*-1,-1000)","v":-1000},{"$f":"IF(M137>0,RANK(N137,N:N),0)","v":0}]
[null,null,null,null,null,null,null,null,null,null,null,null,0,-1000,0]
[null,null,null,null,null,null,null,null,null,null,null,null,0,-1000,0]
[null,null,null,null,null,null,null,null,null,null,null,null,0,-1000,0]
[null,null,null,null,null,null,null,null,null,null,null,null,0,-1000,0]
[null,null,null,null,null,null,null,null,null,null,null,null,0,-1000,0]
[null,null,null,null,null,null,null,null,null,null,null,null,0,-1000,0]
[null,null,null,null,null,null,null,null,null,null,null,null,0,-1000,0]
[null,null,null,null,null,null,null,null,null,null,null,null,0,-1000,0]
[null,null,null,null,null,null,null,null,null,null,null,null,0,-1000,0]
[null,null,null,null,null,null,null,null,null,null,null,null,0,-1000,0]
[null,null,null,null,null,null,null,null,null,null,null,null,0,-1000,0]
[null,null,null,null,null,null,null,null,null,null,null,null,0,-1000,0]
[null,null,null,null,null,null,null,null,null,null,null,null,0,-1000,0]
[null,null,null,null,null,null,null,null,null,null,null,null,0,-1000,0]
[null,null,null,null,null,null,null,null,null,null,null,null,0,-1000,0]
[null,null,null,null,null,null,null,null,null,null,null,null,0,-1000,0]
[null,null,null,null,null,null,null,null,null,null,null,null,0,-1000,0]
[null,null,null,null,null,null,null,null,null,null,null,null,0,-1000,0]
[null,null,null,null,null,null,null,null,null,null,null,null,0,-1000,0]
[null,null,null,null,null,null,null,null,null,null,null,null,0,-1000,0]
[null,null,null,null,null,null,null,null,null,null,null,null,0,-1000,0]
[null,null,null,null,null,null,null,null,null,null,null,null,0,-1000,0]
[null,null,null,null,null,null,null,null,null,null,null,null,0,-1000,0]
[null,null,null,null,null,null,null,null,null,null,null,null,0,-1000,0]
[null,null,null,null,null,null,null,null,null,null,null,null,0,-1000,0]
[null,null,null,null,null,null,null,null,null,null,null,null,0,-1000,0]
[null,null,null,null,null,null,null,null,null,null,null,null,0,-1000,0]
[null,null,null,null,null,null,null,null,null,null,null,null,0,-1000,0]
[null,null,null,null,null,null,null,null,null,null,null,null,0,-1000,0]
[null,null,null,null,null,null,null,null,null,null,null,null,0,-1000,0]
[null,null,null,null,null,null,null,null,null,null,null,null,0,-1000,0]
[null,null,null,null,null,null,null,null,null,null,null,null,{"$f":"(G169*$G$4+H169*$H$4+I169*$I$4+J169*$J$4+K169*$K$4+L169*$L$4)","v":0},{"$f":"IF(M169>0,M169*-1,-1000)","v":-1000},{"$f":"IF(M169>0,RANK(N169,N:N),0)","v":0}]
[null,null,null,null,null,null,null,null,null,null,null,null,0,-1000,0]
[null,null,null,null,null,null,null,null,null,null,null,null,0,-1000,0]
[null,null,null,null,null,null,null,null,null,null,null,null,0,-1000,0]
[null,null,null,null,null,null,null,null,null,null,null,null,0,-1000,0]
[null,null,null,null,null,null,null,null,null,null,null,null,0,-1000,0]
[null,null,null,null,null,null,null,null,null,null,null,null,0,-1000,0]
[null,null,null,null,null,null,null,null,null,null,null,null,0,-1000,0]
[null,null,null,null,null,null,null,null,null,null,null,null,0,-1000,0]
[null,null,null,null,null,null,null,null,null,null,null,null,0,-1000,0]
[null,null,null,null,null,null,null,null,null,null,null,null,0,-1000,0]
[null,null,null,null,null,null,null,null,null,null,null,null,0,-1000,0]
[null,null,null,null,null,null,null,null,null,null,null,null,0,-1000,0]
[null,null,null,null,null,null,null,null,null,null,null,null,0,-1000,0]
[null,null,null,null,null,null,null,null,null,null,null,null,0,-1000,0]
[null,null,null,null,null,null,null,null,null,null,null,null,0,-1000,0]
[null,null,null,null,null,null,null,null,null,null,null,null,0,-1000,0]
[null,null,null,null,null,null,null,null,null,null,null,null,0,-1000,0]
[null,null,null,null,null,null,null,null,null,null,null,null,0,-1000,0]
[null,null,null,null,null,null,null,null,null,null,null,null,0,-1000,0]
[null,null,null,null,null,null,null,null,null,null,null,null,0,-1000,0]
[null,null,null,null,null,null,null,null,null,null,null,null,0,-1000,0]
[null,null,null,null,null,null,null,null,null,null,null,null,0,-1000,0]
[null,null,null,null,null,null,null,null,null,null,null,null,0,-1000,0]
[null,null,null,null,null,null,null,null,null,null,null,null,0,-1000,0]
[null,null,null,null,null,null,null,null,null,null,null,null,0,-1000,0]
[null,null,null,null,null,null,null,null,null,null,null,null,0,-1000,0]
[null,null,null,null,null,null,null,null,null,null,null,null,0,-1000,0]
[null,null,null,null,null,null,null,null,null,null,null,null,0,-1000,0]
[null,null,null,null,null,null,null,null,null,null,null,null,0,-1000,0]
[null,null,null,null,null,null,null,null,null,null,null,null,0,-1000,0]
[null,null,null,null,null,null,null,null,null,null,null,null,0,-1000,0]
[null,null,null,null,null,null,null,null,null,null,null,null,{"$f":"(G201*$G$4+H201*$H$4+I201*$I$4+J201*$J$4+K201*$K$4+L201*$L$4)","v":0},{"$f":"IF(M201>0,M201*-1,-1000)","v":-1000},{"$f":"IF(M201>0,RANK(N201,N:N),0)","v":0}]
[null,null,null,null,null,null,null,null,null,null,null,null,0,-1000,0]
[null,null,null,null,null,null,null,null,null,null,null,null,0,-1000,0]

{"sheet":"NRW-Senior","index":3,"n_rows":203,"n_cols":16,"rows_kept":203,"cut":false,"hidden":false,"merged":[]}
[{"$f":"Gesamt!A1","v":"10.06.2018 DSKD  Derby Mettingen"}]
["  NRW-Qualifikation SENIOR - Klasse  "]
[]
["Wird der Lauf gewertet?   dann 0 oder 1 eintragen",null,null,null,null,null,1,1,1,1,1,1]
["Bestzeit je Lauf",null,null,null,null,null,{"$f":"MIN(G9:G203)","v":37.56},37.58,37.57,37.49,100,0]
[]
["Start\nNummer","Gruppe","startet","Name","Vorname","Verein","Lauf 1","Lauf 2","Lauf 3","Lauf 4","Lauf 5","Lauf 6","Summe der gewerteten Läufe",null,"Platz","Urkunde"]
[]
[319,"SEN",null,"Sonneborn","Ina","Stromberg",37.58,37.58,37.57,37.49,null,null,{"$f":"(G9*$G$4+H9*$H$4+I9*$I$4+J9*$J$4+K9*$K$4+L9*$L$4)","v":150.22},{"$f":"IF(M9>0,M9*-1,-1000)","v":-150.22},{"$f":"IF(M9>0,RANK(N9,N:N),0)","v":1}]
[302,"SEN",null,"Gößling","Jule","Mettingen",null,null,null,null,null,null,0,-1000,0]
[312,"SEN",null,"Neuhaus","Robin","Mettingen",37.56,37.700000000000003,37.67,37.5,null,null,150.43,-150.43,2]
[304,"SEN",null,"Kessling","Sophie","Mettingen",null,null,null,null,null,null,0,-1000,0]
[305,"SEN",null,"Zaruba","Max","Mettingen",37.67,37.67,37.69,37.64,null,null,150.66999999999999,-150.66999999999999,3]
[306,"SEN",null,"Lutterbach","Roman","Simmerath",null,null,null,null,null,null,0,-1000,0]
[307,"SEN",null,"Meyer","Henry","Mettingen",null,null,null,null,null,null,0,-1000,0]
[308,"SEN",null,"Becker","Robin","Bergkamen",null,null,null,null,null,null,0,-1000,0]
[309,"SEN",null,"Lutterbach","Eric","Simmerath",null,null,null,null,null,null,0,-1000,0]
[310,"SEN",null,"Ricker","Sarah","Billerbeck",null,null,null,null,null,null,0,-1000,0]
[311,"SEN",null,"Lammers","Laura","ConAction",null,null,null,null,null,null,0,-1000,0]
[313,"SEN",null,"Meyer","Johann","Mettingen",37.71,37.729999999999997,37.67,37.61,null,null,150.72,-150.72,4]
[301,"SEN",null,"Lampe","Pia","Mettingen",37.74,37.78,37.659999999999997,37.69,null,null,150.87,-150.87,5]
[314,"SEN",null,"Wetter","Stefanie","Billerbeck",null,null,null,null,null,null,0,-1000,0]
[315,"SEN",null,"Steinberg","Kimberly","Billerbeck",null,null,null,null,null,null,0,-1000,0]
[316,"SEN",null,"Wratny","Nikolai","Bergkamen",null,null,null,null,null,null,0,-1000,0]
[317,"SEN",null,"Sternberg","Luise","Billerbeck",null,null,null,null,null,null,0,-1000,0]
[318,"SEN",null,"Szabowski","Mara","Billerbeck",null,null,null,null,null,null,0,-1000,0]
[303,"SEN",null,"Freudenstein","Rieke","Mettingen",37.729999999999997,37.770000000000003,37.78,37.68,null,null,150.96,-150.96,6]
[320,"SEN",null,"Stoffers","Lisa","Stromberg",null,null,null,null,null,null,0,-1000,0]
[321,"SEN",null,null,null,null,null,null,null,null,null,null,0,-1000,0]
[322,"SEN",null,"Grützner","Lennox","Billerbeck",null,null,null,null,null,null,0,-1000,0]
[323,"SEN",null,null,null,null,null,null,null,null,null,null,0,-1000,0]
[324,"SEN",null,null,null,null,null,null,null,null,null,null,0,-1000,0]
[325,"SEN",null,null,null,null,null,null,null,null,null,null,0,-1000,0]
[326,"SEN",null,null,null,null,null,null,null,null,null,null,0,-1000,0]
[327,"SEN",null,null,null,null,null,null,null,null,null,null,0,-1000,0]
[328,"SEN",null,null,null,null,null,null,null,null,null,null,0,-1000,0]
[329,"SEN",null,null,null,null,null,null,null,null,null,null,0,-1000,0]
[330,"SEN",null,null,null,null,null,null,null,null,null,null,0,-1000,0]
[331,"SEN",null,null,null,null,null,null,null,null,null,null,0,-1000,0]
[332,"SEN",null,null,null,null,null,null,null,null,null,null,0,-1000,0]
[333,"SEN",null,null,null,null,null,null,null,null,null,null,0,-1000,0]
[334,"SEN",null,null,null,null,null,null,null,null,null,null,0,-1000,0]
[335,"SEN",null,null,null,null,null,null,null,null,null,null,0,-1000,0]
[336,"SEN",null,null,null,null,null,null,null,null,null,null,0,-1000,0]
[337,"SEN",null,null,null,null,null,null,null,null,null,null,0,-1000,0]
[338,"SEN",null,null,null,null,null,null,null,null,null,null,0,-1000,0]
[339,"SEN",null,null,null,null,null,null,null,null,null,null,0,-1000,0]
[340,"SEN",null,null,null,null,null,null,null,null,null,null,0,-1000,0]
[341,"SEN",null,null,null,null,null,null,null,null,null,null,0,-1000,0]
[342,"SEN",null,null,null,null,null,null,null,null,null,null,0,-1000,0]
[403,"SEN","Berlin","Reuscher","Sanja","Joker Team",37.840000000000003,38.07,37.880000000000003,37.93,100,null,251.72,-251.72,7]
[404,"SEN","Berlin","Reuscher","Silas","Joker Team",37.909999999999997,38.119999999999997,38,38.04,100,null,252.07,-252.07,8]
[null,null,null,null,null,null,null,null,null,null,null,null,{"$f":"(G53*$G$4+H53*$H$4+I53*$I$4+J53*$J$4+K53*$K$4+L53*$L$4)","v":0},{"$f":"IF(M53>0,M53*-1,-1000)","v":-1000},{"$f":"IF(M53>0,RANK(N53,N:N),0)","v":0}]
[null,null,null,null,null,null,null,null,null,null,null,null,0,-1000,0]
[null,null,null,null,null,null,null,null,null,null,null,null,0,-1000,0]
[null,null,null,null,null,null,null,null,null,null,null,null,0,-1000,0]
[null,null,null,null,null,null,null,null,null,null,null,null,0,-1000,0]
[null,null,null,null,null,null,null,null,null,null,null,null,0,-1000,0]
[null,null,null,null,null,null,null,null,null,null,null,null,0,-1000,0]
[null,null,null,null,null,null,null,null,null,null,null,null,0,-1000,0]
[null,null,null,null,null,null,null,null,null,null,null,null,0,-1000,0]
[null,null,null,null,null,null,null,null,null,null,null,null,0,-1000,0]
[null,null,null,null,null,null,null,null,null,null,null,null,0,-1000,0]
[null,null,null,null,null,null,null,null,null,null,null,null,0,-1000,0]
[null,null,null,null,null,null,null,null,null,null,null,null,0,-1000,0]
[null,null,null,null,null,null,null,null,null,null,null,null,0,-1000,0]
[null,null,null,null,null,null,null,null,null,null,null,null,0,-1000,0]
[null,null,null,null,null,null,null,null,null,null,null,null,0,-1000,0]
[null,null,null,null,null,null,null,null,null,null,null,null,0,-1000,0]
[null,null,null,null,null,null,null,null,null,null,null,null,0,-1000,0]
[null,null,null,null,null,null,null,null,null,null,null,null,0,-1000,0]
[null,null,null,null,null,null,null,null,null,null,null,null,0,-1000,0]
[null,null,null,null,null,null,null,null,null,null,null,null,{"$f":"(G73*$G$4+H73*$H$4+I73*$I$4+J73*$J$4+K73*$K$4+L73*$L$4)","v":0},{"$f":"IF(M73>0,M73*-1,-1000)","v":-1000},{"$f":"IF(M73>0,RANK(N73,N:N),0)","v":0}]
[null,null,null,null,null,null,null,null,null,null,null,null,0,-1000,0]
[null,null,null,null,null,null,null,null,null,null,null,null,0,-1000,0]
[null,null,null,null,null,null,null,null,null,null,null,null,0,-1000,0]
[null,null,null,null,null,null,null,null,null,null,null,null,0,-1000,0]
[null,null,null,null,null,null,null,null,null,null,null,null,0,-1000,0]
[null,null,null,null,null,null,null,null,null,null,null,null,0,-1000,0]
[null,null,null,null,null,null,null,null,null,null,null,null,0,-1000,0]
[null,null,null,null,null,null,null,null,null,null,null,null,0,-1000,0]
[null,null,null,null,null,null,null,null,null,null,null,null,0,-1000,0]
[null,null,null,null,null,null,null,null,null,null,null,null,0,-1000,0]
[null,null,null,null,null,null,null,null,null,null,null,null,0,-1000,0]
[null,null,null,null,null,null,null,null,null,null,null,null,0,-1000,0]
[null,null,null,null,null,null,null,null,null,null,null,null,0,-1000,0]
[null,null,null,null,null,null,null,null,null,null,null,null,0,-1000,0]
[null,null,null,null,null,null,null,null,null,null,null,null,0,-1000,0]
[null,null,null,null,null,null,null,null,null,null,null,null,0,-1000,0]
[null,null,null,null,null,null,null,null,null,null,null,null,0,-1000,0]
[null,null,null,null,null,null,null,null,null,null,null,null,0,-1000,0]
[null,null,null,null,null,null,null,null,null,null,null,null,0,-1000,0]
[null,null,null,null,null,null,null,null,null,null,null,null,0,-1000,0]
[null,null,null,null,null,null,null,null,null,null,null,null,0,-1000,0]
[null,null,null,null,null,null,null,null,null,null,null,null,0,-1000,0]
[null,null,null,null,null,null,null,null,null,null,null,null,0,-1000,0]
[null,null,null,null,null,null,null,null,null,null,null,null,0,-1000,0]
[null,null,null,null,null,null,null,null,null,null,null,null,0,-1000,0]
[null,null,null,null,null,null,null,null,null,null,null,null,0,-1000,0]
[null,null,null,null,null,null,null,null,null,null,null,null,0,-1000,0]
[null,null,null,null,null,null,null,null,null,null,null,null,0,-1000,0]
[null,null,null,null,null,null,null,null,null,null,null,null,0,-1000,0]
[null,null,null,null,null,null,null,null,null,null,null,null,0,-1000,0]
[null,null,null,null,null,null,null,null,null,null,null,null,0,-1000,0]
[null,null,null,null,null,null,null,null,null,null,null,null,{"$f":"(G105*$G$4+H105*$H$4+I105*$I$4+J105*$J$4+K105*$K$4+L105*$L$4)","v":0},{"$f":"IF(M105>0,M105*-1,-1000)","v":-1000},{"$f":"IF(M105>0,RANK(N105,N:N),0)","v":0}]
[null,null,null,null,null,null,null,null,null,null,null,null,0,-1000,0]
[null,null,null,null,null,null,null,null,null,null,null,null,0,-1000,0]
[null,null,null,null,null,null,null,null,null,null,null,null,0,-1000,0]
[null,null,null,null,null,null,null,null,null,null,null,null,0,-1000,0]
[null,null,null,null,null,null,null,null,null,null,null,null,0,-1000,0]
[null,null,null,null,null,null,null,null,null,null,null,null,0,-1000,0]
[null,null,null,null,null,null,null,null,null,null,null,null,0,-1000,0]
[null,null,null,null,null,null,null,null,null,null,null,null,0,-1000,0]
[null,null,null,null,null,null,null,null,null,null,null,null,0,-1000,0]
[null,null,null,null,null,null,null,null,null,null,null,null,0,-1000,0]
[null,null,null,null,null,null,null,null,null,null,null,null,0,-1000,0]
[null,null,null,null,null,null,null,null,null,null,null,null,0,-1000,0]
[null,null,null,null,null,null,null,null,null,null,null,null,0,-1000,0]
[null,null,null,null,null,null,null,null,null,null,null,null,0,-1000,0]
[null,null,null,null,null,null,null,null,null,null,null,null,0,-1000,0]
[null,null,null,null,null,null,null,null,null,null,null,null,0,-1000,0]
[null,null,null,null,null,null,null,null,null,null,null,null,0,-1000,0]
[null,null,null,null,null,null,null,null,null,null,null,null,0,-1000,0]
[null,null,null,null,null,null,null,null,null,null,null,null,0,-1000,0]
[null,null,null,null,null,null,null,null,null,null,null,null,0,-1000,0]
[null,null,null,null,null,null,null,null,null,null,null,null,0,-1000,0]
[null,null,null,null,null,null,null,null,null,null,null,null,0,-1000,0]
[null,null,null,null,null,null,null,null,null,null,null,null,0,-1000,0]
[null,null,null,null,null,null,null,null,null,null,null,null,0,-1000,0]
[null,null,null,null,null,null,null,null,null,null,null,null,0,-1000,0]
[null,null,null,null,null,null,null,null,null,null,null,null,0,-1000,0]
[null,null,null,null,null,null,null,null,null,null,null,null,0,-1000,0]
[null,null,null,null,null,null,null,null,null,null,null,null,0,-1000,0]
[null,null,null,null,null,null,null,null,null,null,null,null,0,-1000,0]
[null,null,null,null,null,null,null,null,null,null,null,null,0,-1000,0]
[null,null,null,null,null,null,null,null,null,null,null,null,0,-1000,0]
[null,null,null,null,null,null,null,null,null,null,null,null,{"$f":"(G137*$G$4+H137*$H$4+I137*$I$4+J137*$J$4+K137*$K$4+L137*$L$4)","v":0},{"$f":"IF(M137>0,M137*-1,-1000)","v":-1000},{"$f":"IF(M137>0,RANK(N137,N:N),0)","v":0}]
[null,null,null,null,null,null,null,null,null,null,null,null,0,-1000,0]
[null,null,null,null,null,null,null,null,null,null,null,null,0,-1000,0]
[null,null,null,null,null,null,null,null,null,null,null,null,0,-1000,0]
[null,null,null,null,null,null,null,null,null,null,null,null,0,-1000,0]
[null,null,null,null,null,null,null,null,null,null,null,null,0,-1000,0]
[null,null,null,null,null,null,null,null,null,null,null,null,0,-1000,0]
[null,null,null,null,null,null,null,null,null,null,null,null,0,-1000,0]
[null,null,null,null,null,null,null,null,null,null,null,null,0,-1000,0]
[null,null,null,null,null,null,null,null,null,null,null,null,0,-1000,0]
[null,null,null,null,null,null,null,null,null,null,null,null,0,-1000,0]
[null,null,null,null,null,null,null,null,null,null,null,null,0,-1000,0]
[null,null,null,null,null,null,null,null,null,null,null,null,0,-1000,0]
[null,null,null,null,null,null,null,null,null,null,null,null,0,-1000,0]
[null,null,null,null,null,null,null,null,null,null,null,null,0,-1000,0]
[null,null,null,null,null,null,null,null,null,null,null,null,0,-1000,0]
[null,null,null,null,null,null,null,null,null,null,null,null,0,-1000,0]
[null,null,null,null,null,null,null,null,null,null,null,null,0,-1000,0]
[null,null,null,null,null,null,null,null,null,null,null,null,0,-1000,0]
[null,null,null,null,null,null,null,null,null,null,null,null,0,-1000,0]
[null,null,null,null,null,null,null,null,null,null,null,null,0,-1000,0]
[null,null,null,null,null,null,null,null,null,null,null,null,0,-1000,0]
[null,null,null,null,null,null,null,null,null,null,null,null,0,-1000,0]
[null,null,null,null,null,null,null,null,null,null,null,null,0,-1000,0]
[null,null,null,null,null,null,null,null,null,null,null,null,0,-1000,0]
[null,null,null,null,null,null,null,null,null,null,null,null,0,-1000,0]
[null,null,null,null,null,null,null,null,null,null,null,null,0,-1000,0]
[null,null,null,null,null,null,null,null,null,null,null,null,0,-1000,0]
[null,null,null,null,null,null,null,null,null,null,null,null,0,-1000,0]
[null,null,null,null,null,null,null,null,null,null,null,null,0,-1000,0]
[null,null,null,null,null,null,null,null,null,null,null,null,0,-1000,0]
[null,null,null,null,null,null,null,null,null,null,null,null,0,-1000,0]
[null,null,null,null,null,null,null,null,null,null,null,null,{"$f":"(G169*$G$4+H169*$H$4+I169*$I$4+J169*$J$4+K169*$K$4+L169*$L$4)","v":0},{"$f":"IF(M169>0,M169*-1,-1000)","v":-1000},{"$f":"IF(M169>0,RANK(N169,N:N),0)","v":0}]
[null,null,null,null,null,null,null,null,null,null,null,null,0,-1000,0]
[null,null,null,null,null,null,null,null,null,null,null,null,0,-1000,0]
[null,null,null,null,null,null,null,null,null,null,null,null,0,-1000,0]
[null,null,null,null,null,null,null,null,null,null,null,null,0,-1000,0]
[null,null,null,null,null,null,null,null,null,null,null,null,0,-1000,0]
[null,null,null,null,null,null,null,null,null,null,null,null,0,-1000,0]
[null,null,null,null,null,null,null,null,null,null,null,null,0,-1000,0]
[null,null,null,null,null,null,null,null,null,null,null,null,0,-1000,0]
[null,null,null,null,null,null,null,null,null,null,null,null,0,-1000,0]
[null,null,null,null,null,null,null,null,null,null,null,null,0,-1000,0]
[null,null,null,null,null,null,null,null,null,null,null,null,0,-1000,0]
[null,null,null,null,null,null,null,null,null,null,null,null,0,-1000,0]
[null,null,null,null,null,null,null,null,null,null,null,null,0,-1000,0]
[null,null,null,null,null,null,null,null,null,null,null,null,0,-1000,0]
[null,null,null,null,null,null,null,null,null,null,null,null,0,-1000,0]
[null,null,null,null,null,null,null,null,null,null,null,null,0,-1000,0]
[null,null,null,null,null,null,null,null,null,null,null,null,0,-1000,0]
[null,null,null,null,null,null,null,null,null,null,null,null,0,-1000,0]
[null,null,null,null,null,null,null,null,null,null,null,null,0,-1000,0]
[null,null,null,null,null,null,null,null,null,null,null,null,0,-1000,0]
[null,null,null,null,null,null,null,null,null,null,null,null,0,-1000,0]
[null,null,null,null,null,null,null,null,null,null,null,null,0,-1000,0]
[null,null,null,null,null,null,null,null,null,null,null,null,0,-1000,0]
[null,null,null,null,null,null,null,null,null,null,null,null,0,-1000,0]
[null,null,null,null,null,null,null,null,null,null,null,null,0,-1000,0]
[null,null,null,null,null,null,null,null,null,null,null,null,0,-1000,0]
[null,null,null,null,null,null,null,null,null,null,null,null,0,-1000,0]
[null,null,null,null,null,null,null,null,null,null,null,null,0,-1000,0]
[null,null,null,null,null,null,null,null,null,null,null,null,0,-1000,0]
[null,null,null,null,null,null,null,null,null,null,null,null,0,-1000,0]
[null,null,null,null,null,null,null,null,null,null,null,null,0,-1000,0]
[null,null,null,null,null,null,null,null,null,null,null,null,{"$f":"(G201*$G$4+H201*$H$4+I201*$I$4+J201*$J$4+K201*$K$4+L201*$L$4)","v":0},{"$f":"IF(M201>0,M201*-1,-1000)","v":-1000},{"$f":"IF(M201>0,RANK(N201,N:N),0)","v":0}]
[null,null,null,null,null,null,null,null,null,null,null,null,0,-1000,0]
[null,null,null,null,null,null,null,null,null,null,null,null,0,-1000,0]

{"sheet":"NRW-Elite-XL","index":4,"n_rows":203,"n_cols":17,"rows_kept":203,"cut":false,"hidden":false,"merged":[]}
[{"$f":"Gesamt!A1","v":"10.06.2018 DSKD  Derby Mettingen"}]
["  NRW-Qualifikation Elite XL - Klasse  "]
[]
["Wird der Lauf gewertet?   dann 0 oder 1 eintragen",null,null,null,null,null,1,1,1,1,1,1]
["Bestzeit je Lauf",null,null,null,null,null,{"$f":"MIN(G9:G203)","v":37.71},37.729999999999997,37.57,37.729999999999997,0,0,null,null,null,"Platz","Urkunde"]
[]
["Start\nNummer","Gruppe","startet","Name","Vorname","Verein","Lauf 1","Lauf 2","Lauf 3","Lauf 4","Lauf 5","Lauf 6","Summe der gewerteten Läufe",null,null,{"$f":"IF(M9>0,RANK(N9,N:N),0)","v":0}]
[null,null,null,null,null,null,null,null,null,null,null,null,null,null,null,{"$f":"IF(M10>0,RANK(N10,N:N),0)","v":1}]
[501,"EXL",null,"Ricker","Jana-Lena","Billerbeck",null,null,null,null,null,null,{"$f":"(G9*$G$4+H9*$H$4+I9*$I$4+J9*$J$4+K9*$K$4+L9*$L$4)","v":0},{"$f":"IF(M9>0,M9*-1,-1000)","v":-1000},{"$f":"IF(M9>0,RANK(N9,N:N),0)","v":0}]
[508,"EXL",null,"Meyer","Henry","Mettingen",37.71,37.729999999999997,37.57,37.729999999999997,null,null,{"$f":"(G10*$G$4+H10*$H$4+I10*$I$4+J10*$J$4+K10*$K$4+L10*$L$4)","v":150.74},{"$f":"IF(M10>0,M10*-1,-1000)","v":-150.74},{"$f":"IF(M10>0,RANK(N10,N:N),0)","v":1}]
[503,"EXL",null,"Niessen","Nicolas","Simmerath",null,null,null,null,null,null,0,-1000,0,{"$f":"IF(M13>0,RANK(N13,N:N),0)","v":3}]
[502,"EXL",null,"Schmidt","Marvin","Varel",37.71,37.840000000000003,37.700000000000003,37.799999999999997,null,null,151.05000000000001,-151.05000000000001,2]
[505,"EXL",null,"Marx","Fabian","ConAction",38.14,38.25,38.08,38.19,null,null,152.66,-152.66,3,{"$f":"IF(M15>0,RANK(N15,N:N),0)","v":0}]
[506,"EXL",null,"Elges","Erik","Stromberg",null,null,null,null,null,null,0,-1000,0]
[507,"EXL",null,"Wetter","Sabrina","Billerbeck",null,null,null,null,null,null,0,-1000,0]
[504,"EXL",null,"Schlösser","Timon","Stromberg",38.19,38.270000000000003,38.17,38.19,null,null,152.82,-152.82,4]
[509,"EXL",null,null,null,null,null,null,null,null,null,null,0,-1000,0]
[510,"EXL",null,null,null,null,null,null,null,null,null,null,0,-1000,0]
[511,"EXL",null,null,null,null,null,null,null,null,null,null,0,-1000,0]
[512,"EXL",null,null,null,null,null,null,null,null,null,null,0,-1000,0]
[513,"EXL",null,null,null,null,null,null,null,null,null,null,0,-1000,0]
[514,"EXL",null,null,null,null,null,null,null,null,null,null,0,-1000,0]
[515,"EXL",null,null,null,null,null,null,null,null,null,null,0,-1000,0]
[516,"EXL",null,null,null,null,null,null,null,null,null,null,0,-1000,0]
[517,"EXL",null,null,null,null,null,null,null,null,null,null,0,-1000,0]
[518,"EXL",null,null,null,null,null,null,null,null,null,null,0,-1000,0]
[519,"EXL",null,null,null,null,null,null,null,null,null,null,0,-1000,0]
[520,"EXL",null,null,null,null,null,null,null,null,null,null,0,-1000,0]
[521,"EXL",null,null,null,null,null,null,null,null,null,null,0,-1000,0]
[522,"EXL",null,null,null,null,null,null,null,null,null,null,0,-1000,0]
[523,"EXL",null,null,null,null,null,null,null,null,null,null,0,-1000,0]
[524,"EXL",null,null,null,null,null,null,null,null,null,null,0,-1000,0]
[525,"EXL",null,null,null,null,null,null,null,null,null,null,0,-1000,0]
[526,"EXL",null,null,null,null,null,null,null,null,null,null,0,-1000,0]
[null,null,null,null,null,null,null,null,null,null,null,null,0,-1000,0]
[null,null,null,null,null,null,null,null,null,null,null,null,0,-1000,0]
[null,null,null,null,null,null,null,null,null,null,null,null,0,-1000,0]
[null,null,null,null,null,null,null,null,null,null,null,null,0,-1000,0]
[null,null,null,null,null,null,null,null,null,null,null,null,0,-1000,0]
[null,null,null,null,null,null,null,null,null,null,null,null,0,-1000,0]
[null,null,null,null,null,null,null,null,null,null,null,null,{"$f":"(G41*$G$4+H41*$H$4+I41*$I$4+J41*$J$4+K41*$K$4+L41*$L$4)","v":0},{"$f":"IF(M41>0,M41*-1,-1000)","v":-1000},{"$f":"IF(M41>0,RANK(N41,N:N),0)","v":0}]
[null,null,null,null,null,null,null,null,null,null,null,null,0,-1000,0]
[null,null,null,null,null,null,null,null,null,null,null,null,0,-1000,0]
[null,null,null,null,null,null,null,null,null,null,null,null,0,-1000,0]
[null,null,null,null,null,null,null,null,null,null,null,null,0,-1000,0]
[null,null,null,null,null,null,null,null,null,null,null,null,0,-1000,0]
[null,null,null,null,null,null,null,null,null,null,null,null,0,-1000,0]
[null,null,null,null,null,null,null,null,null,null,null,null,0,-1000,0]
[null,null,null,null,null,null,null,null,null,null,null,null,0,-1000,0]
[null,null,null,null,null,null,null,null,null,null,null,null,0,-1000,0]
[null,null,null,null,null,null,null,null,null,null,null,null,0,-1000,0]
[null,null,null,null,null,null,null,null,null,null,null,null,0,-1000,0]
[null,null,null,null,null,null,null,null,null,null,null,null,0,-1000,0]
[null,null,null,null,null,null,null,null,null,null,null,null,0,-1000,0]
[null,null,null,null,null,null,null,null,null,null,null,null,0,-1000,0]
[null,null,null,null,null,null,null,null,null,null,null,null,0,-1000,0]
[null,null,null,null,null,null,null,null,null,null,null,null,0,-1000,0]
[null,null,null,null,null,null,null,null,null,null,null,null,0,-1000,0]
[null,null,null,null,null,null,null,null,null,null,null,null,0,-1000,0]
[null,null,null,null,null,null,null,null,null,null,null,null,0,-1000,0]
[null,null,null,null,null,null,null,null,null,null,null,null,0,-1000,0]
[null,null,null,null,null,null,null,null,null,null,null,null,0,-1000,0]
[null,null,null,null,null,null,null,null,null,null,null,null,0,-1000,0]
[null,null,null,null,null,null,null,null,null,null,null,null,0,-1000,0]
[null,null,null,null,null,null,null,null,null,null,null,null,0,-1000,0]
[null,null,null,null,null,null,null,null,null,null,null,null,0,-1000,0]
[null,null,null,null,null,null,null,null,null,null,null,null,0,-1000,0]
[null,null,null,null,null,null,null,null,null,null,null,null,0,-1000,0]
[null,null,null,null,null,null,null,null,null,null,null,null,0,-1000,0]
[null,null,null,null,null,null,null,null,null,null,null,null,0,-1000,0]
[null,null,null,null,null,null,null,null,null,null,null,null,0,-1000,0]
[null,null,null,null,null,null,null,null,null,null,null,null,0,-1000,0]
[null,null,null,null,null,null,null,null,null,null,null,null,{"$f":"(G73*$G$4+H73*$H$4+I73*$I$4+J73*$J$4+K73*$K$4+L73*$L$4)","v":0},{"$f":"IF(M73>0,M73*-1,-1000)","v":-1000},{"$f":"IF(M73>0,RANK(N73,N:N),0)","v":0}]
[null,null,null,null,null,null,null,null,null,null,null,null,0,-1000,0]
[null,null,null,null,null,null,null,null,null,null,null,null,0,-1000,0]
[null,null,null,null,null,null,null,null,null,null,null,null,0,-1000,0]
[null,null,null,null,null,null,null,null,null,null,null,null,0,-1000,0]
[null,null,null,null,null,null,null,null,null,null,null,null,0,-1000,0]
[null,null,null,null,null,null,null,null,null,null,null,null,0,-1000,0]
[null,null,null,null,null,null,null,null,null,null,null,null,0,-1000,0]
[null,null,null,null,null,null,null,null,null,null,null,null,0,-1000,0]
[null,null,null,null,null,null,null,null,null,null,null,null,0,-1000,0]
[null,null,null,null,null,null,null,null,null,null,null,null,0,-1000,0]
[null,null,null,null,null,null,null,null,null,null,null,null,0,-1000,0]
[null,null,null,null,null,null,null,null,null,null,null,null,0,-1000,0]
[null,null,null,null,null,null,null,null,null,null,null,null,0,-1000,0]
[null,null,null,null,null,null,null,null,null,null,null,null,0,-1000,0]
[null,null,null,null,null,null,null,null,null,null,null,null,0,-1000,0]
[null,null,null,null,null,null,null,null,null,null,null,null,0,-1000,0]
[null,null,null,null,null,null,null,null,null,null,null,null,0,-1000,0]
[null,null,null,null,null,null,null,null,null,null,null,null,0,-1000,0]
[null,null,null,null,null,null,null,null,null,null,null,null,0,-1000,0]
[null,null,null,null,null,null,null,null,null,null,null,null,0,-1000,0]
[null,null,null,null,null,null,null,null,null,null,null,null,0,-1000,0]
[null,null,null,null,null,null,null,null,null,null,null,null,0,-1000,0]
[null,null,null,null,null,null,null,null,null,null,null,null,0,-1000,0]
[null,null,null,null,null,null,null,null,null,null,null,null,0,-1000,0]
[null,null,null,null,null,null,null,null,null,null,null,null,0,-1000,0]
[null,null,null,null,null,null,null,null,null,null,null,null,0,-1000,0]
[null,null,null,null,null,null,null,null,null,null,null,null,0,-1000,0]
[null,null,null,null,null,null,null,null,null,null,null,null,0,-1000,0]
[null,null,null,null,null,null,null,null,null,null,null,null,0,-1000,0]
[null,null,null,null,null,null,null,null,null,null,null,null,0,-1000,0]
[null,null,null,null,null,null,null,null,null,null,null,null,0,-1000,0]
[null,null,null,null,null,null,null,null,null,null,null,null,{"$f":"(G105*$G$4+H105*$H$4+I105*$I$4+J105*$J$4+K105*$K$4+L105*$L$4)","v":0},{"$f":"IF(M105>0,M105*-1,-1000)","v":-1000},{"$f":"IF(M105>0,RANK(N105,N:N),0)","v":0}]
[null,null,null,null,null,null,null,null,null,null,null,null,0,-1000,0]
[null,null,null,null,null,null,null,null,null,null,null,null,0,-1000,0]
[null,null,null,null,null,null,null,null,null,null,null,null,0,-1000,0]
[null,null,null,null,null,null,null,null,null,null,null,null,0,-1000,0]
[null,null,null,null,null,null,null,null,null,null,null,null,0,-1000,0]
[null,null,null,null,null,null,null,null,null,null,null,null,0,-1000,0]
[null,null,null,null,null,null,null,null,null,null,null,null,0,-1000,0]
[null,null,null,null,null,null,null,null,null,null,null,null,0,-1000,0]
[null,null,null,null,null,null,null,null,null,null,null,null,0,-1000,0]
[null,null,null,null,null,null,null,null,null,null,null,null,0,-1000,0]
[null,null,null,null,null,null,null,null,null,null,null,null,0,-1000,0]
[null,null,null,null,null,null,null,null,null,null,null,null,0,-1000,0]
[null,null,null,null,null,null,null,null,null,null,null,null,0,-1000,0]
[null,null,null,null,null,null,null,null,null,null,null,null,0,-1000,0]
[null,null,null,null,null,null,null,null,null,null,null,null,0,-1000,0]
[null,null,null,null,null,null,null,null,null,null,null,null,0,-1000,0]
[null,null,null,null,null,null,null,null,null,null,null,null,0,-1000,0]
[null,null,null,null,null,null,null,null,null,null,null,null,0,-1000,0]
[null,null,null,null,null,null,null,null,null,null,null,null,0,-1000,0]
[null,null,null,null,null,null,null,null,null,null,null,null,0,-1000,0]
[null,null,null,null,null,null,null,null,null,null,null,null,0,-1000,0]
[null,null,null,null,null,null,null,null,null,null,null,null,0,-1000,0]
[null,null,null,null,null,null,null,null,null,null,null,null,0,-1000,0]
[null,null,null,null,null,null,null,null,null,null,null,null,0,-1000,0]
[null,null,null,null,null,null,null,null,null,null,null,null,0,-1000,0]
[null,null,null,null,null,null,null,null,null,null,null,null,0,-1000,0]
[null,null,null,null,null,null,null,null,null,null,null,null,0,-1000,0]
[null,null,null,null,null,null,null,null,null,null,null,null,0,-1000,0]
[null,null,null,null,null,null,null,null,null,null,null,null,0,-1000,0]
[null,null,null,null,null,null,null,null,null,null,null,null,0,-1000,0]
[null,null,null,null,null,null,null,null,null,null,null,null,0,-1000,0]
[null,null,null,null,null,null,null,null,null,null,null,null,{"$f":"(G137*$G$4+H137*$H$4+I137*$I$4+J137*$J$4+K137*$K$4+L137*$L$4)","v":0},{"$f":"IF(M137>0,M137*-1,-1000)","v":-1000},{"$f":"IF(M137>0,RANK(N137,N:N),0)","v":0}]
[null,null,null,null,null,null,null,null,null,null,null,null,0,-1000,0]
[null,null,null,null,null,null,null,null,null,null,null,null,0,-1000,0]
[null,null,null,null,null,null,null,null,null,null,null,null,0,-1000,0]
[null,null,null,null,null,null,null,null,null,null,null,null,0,-1000,0]
[null,null,null,null,null,null,null,null,null,null,null,null,0,-1000,0]
[null,null,null,null,null,null,null,null,null,null,null,null,0,-1000,0]
[null,null,null,null,null,null,null,null,null,null,null,null,0,-1000,0]
[null,null,null,null,null,null,null,null,null,null,null,null,0,-1000,0]
[null,null,null,null,null,null,null,null,null,null,null,null,0,-1000,0]
[null,null,null,null,null,null,null,null,null,null,null,null,0,-1000,0]
[null,null,null,null,null,null,null,null,null,null,null,null,0,-1000,0]
[null,null,null,null,null,null,null,null,null,null,null,null,0,-1000,0]
[null,null,null,null,null,null,null,null,null,null,null,null,0,-1000,0]
[null,null,null,null,null,null,null,null,null,null,null,null,0,-1000,0]
[null,null,null,null,null,null,null,null,null,null,null,null,0,-1000,0]
[null,null,null,null,null,null,null,null,null,null,null,null,0,-1000,0]
[null,null,null,null,null,null,null,null,null,null,null,null,0,-1000,0]
[null,null,null,null,null,null,null,null,null,null,null,null,0,-1000,0]
[null,null,null,null,null,null,null,null,null,null,null,null,0,-1000,0]
[null,null,null,null,null,null,null,null,null,null,null,null,0,-1000,0]
[null,null,null,null,null,null,null,null,null,null,null,null,0,-1000,0]
[null,null,null,null,null,null,null,null,null,null,null,null,0,-1000,0]
[null,null,null,null,null,null,null,null,null,null,null,null,0,-1000,0]
[null,null,null,null,null,null,null,null,null,null,null,null,0,-1000,0]
[null,null,null,null,null,null,null,null,null,null,null,null,0,-1000,0]
[null,null,null,null,null,null,null,null,null,null,null,null,0,-1000,0]
[null,null,null,null,null,null,null,null,null,null,null,null,0,-1000,0]
[null,null,null,null,null,null,null,null,null,null,null,null,0,-1000,0]
[null,null,null,null,null,null,null,null,null,null,null,null,0,-1000,0]
[null,null,null,null,null,null,null,null,null,null,null,null,0,-1000,0]
[null,null,null,null,null,null,null,null,null,null,null,null,0,-1000,0]
[null,null,null,null,null,null,null,null,null,null,null,null,{"$f":"(G169*$G$4+H169*$H$4+I169*$I$4+J169*$J$4+K169*$K$4+L169*$L$4)","v":0},{"$f":"IF(M169>0,M169*-1,-1000)","v":-1000},{"$f":"IF(M169>0,RANK(N169,N:N),0)","v":0}]
[null,null,null,null,null,null,null,null,null,null,null,null,0,-1000,0]
[null,null,null,null,null,null,null,null,null,null,null,null,0,-1000,0]
[null,null,null,null,null,null,null,null,null,null,null,null,0,-1000,0]
[null,null,null,null,null,null,null,null,null,null,null,null,0,-1000,0]
[null,null,null,null,null,null,null,null,null,null,null,null,0,-1000,0]
[null,null,null,null,null,null,null,null,null,null,null,null,0,-1000,0]
[null,null,null,null,null,null,null,null,null,null,null,null,0,-1000,0]
[null,null,null,null,null,null,null,null,null,null,null,null,0,-1000,0]
[null,null,null,null,null,null,null,null,null,null,null,null,0,-1000,0]
[null,null,null,null,null,null,null,null,null,null,null,null,0,-1000,0]
[null,null,null,null,null,null,null,null,null,null,null,null,0,-1000,0]
[null,null,null,null,null,null,null,null,null,null,null,null,0,-1000,0]
[null,null,null,null,null,null,null,null,null,null,null,null,0,-1000,0]
[null,null,null,null,null,null,null,null,null,null,null,null,0,-1000,0]
[null,null,null,null,null,null,null,null,null,null,null,null,0,-1000,0]
[null,null,null,null,null,null,null,null,null,null,null,null,0,-1000,0]
[null,null,null,null,null,null,null,null,null,null,null,null,0,-1000,0]
[null,null,null,null,null,null,null,null,null,null,null,null,0,-1000,0]
[null,null,null,null,null,null,null,null,null,null,null,null,0,-1000,0]
[null,null,null,null,null,null,null,null,null,null,null,null,0,-1000,0]
[null,null,null,null,null,null,null,null,null,null,null,null,0,-1000,0]
[null,null,null,null,null,null,null,null,null,null,null,null,0,-1000,0]
[null,null,null,null,null,null,null,null,null,null,null,null,0,-1000,0]
[null,null,null,null,null,null,null,null,null,null,null,null,0,-1000,0]
[null,null,null,null,null,null,null,null,null,null,null,null,0,-1000,0]
[null,null,null,null,null,null,null,null,null,null,null,null,0,-1000,0]
[null,null,null,null,null,null,null,null,null,null,null,null,0,-1000,0]
[null,null,null,null,null,null,null,null,null,null,null,null,0,-1000,0]
[null,null,null,null,null,null,null,null,null,null,null,null,0,-1000,0]
[null,null,null,null,null,null,null,null,null,null,null,null,0,-1000,0]
[null,null,null,null,null,null,null,null,null,null,null,null,0,-1000,0]
[null,null,null,null,null,null,null,null,null,null,null,null,{"$f":"(G201*$G$4+H201*$H$4+I201*$I$4+J201*$J$4+K201*$K$4+L201*$L$4)","v":0},{"$f":"IF(M201>0,M201*-1,-1000)","v":-1000},{"$f":"IF(M201>0,RANK(N201,N:N),0)","v":0}]
[null,null,null,null,null,null,null,null,null,null,null,null,0,-1000,0]
[null,null,null,null,null,null,null,null,null,null,null,null,0,-1000,0]

{"sheet":"NRW-Elite-XL-18","index":5,"n_rows":203,"n_cols":16,"rows_kept":203,"cut":false,"hidden":false,"merged":[]}
[{"$f":"Gesamt!A1","v":"10.06.2018 DSKD  Derby Mettingen"}]
["  NRW-Qualifikation Elite XL ü18 - Klasse  "]
[]
["Wird der Lauf gewertet?   dann 0 oder 1 eintragen",null,null,null,null,null,1,1,1,1,1,1]
["Bestzeit je Lauf",null,null,null,null,null,{"$f":"MIN(G9:G203)","v":37.74},37.76,37.72,37.72,0,0]
[]
["Start\nNummer","Gruppe","startet","Name","Vorname","Verein","Lauf 1","Lauf 2","Lauf 3","Lauf 4","Lauf 5","Lauf 6","Summe der gewerteten Läufe",null,"Platz","Urkunde"]
[]
[701,"EXL18",null,"Voß","Marie-Charlotte","Bergkamen",37.770000000000003,37.799999999999997,37.72,37.72,null,null,{"$f":"(G9*$G$4+H9*$H$4+I9*$I$4+J9*$J$4+K9*$K$4+L9*$L$4)","v":151.01},{"$f":"IF(M9>0,M9*-1,-1000)","v":-151.01},{"$f":"IF(M9>0,RANK(N9,N:N),0)","v":1}]
[702,"EXL18",null,"Schmidt","Imke","Varel",null,null,null,null,null,null,0,-1000,0]
[705,"EXL18",null,"Wettendorf","Kathrin","Stromberg",37.74,37.76,37.729999999999997,37.81,null,null,151.04,-151.04,2]
[704,"EXL18",null,"Wetter","Sebastian","Billerbeck",null,null,null,null,null,null,0,-1000,0]
[709,"EXL18",null,"Lange","Florian","Mettingen",37.76,37.99,37.799999999999997,37.82,null,null,151.37,-151.37,3]
[712,"EXL18",null,"Rohls","Sebastian","Stromberg",37.94,37.99,37.82,37.979999999999997,null,null,151.72999999999999,-151.72999999999999,4]
[707,"EXL18",null,"Freudenstein","Thomas","Mettingen",null,null,null,null,null,null,0,-1000,0]
[719,"EXL18",null,"Lammers","Laura","ConAction",37.94,37.89,38.020000000000003,37.93,null,null,151.78,-151.78,5]
[708,"EXL18",null,"Leismann","Dominik","Mettingen",37.94,37.99,37.97,37.950000000000003,null,null,151.85,-151.85,6]
[710,"EXL18",null,"Ricker","Kristina","Billerbeck",null,null,null,null,null,null,0,-1000,0]
[711,"EXL18",null,"Sulitze","Jessica","Bergkamen",null,null,null,null,null,null,0,-1000,0]
[706,"EXL18",null,"Kelch","Maria","Bergkamen",38.090000000000003,38.11,37.81,37.97,null,null,151.97999999999999,-151.97999999999999,7]
[713,"EXL18",null,"Schröer","Sabrina","Mettingen",37.99,38.119999999999997,38.04,38.1,null,null,152.25,-152.25,8]
[714,"EXL18",null,"Roeben","Frank","Simmerath",null,null,null,null,null,null,0,-1000,0]
[715,"EXL18",null,"Leismann","Pascal","Mettingen",null,null,null,null,null,null,0,-1000,0]
[716,"EXL18",null,"Hollunder","Christina","Billerbeck",null,null,null,null,null,null,0,-1000,0]
[717,"EXL18",null,"Isaac","Marvin","Simmerath",null,null,null,null,null,null,0,-1000,0]
[718,"EXL18",null,"Ricker","Claudia","Billerbeck",null,null,null,null,null,null,0,-1000,0]
[703,"EXL18",null,"van Loo","Julian","ConAction",38.130000000000003,38.11,37.97,38.1,null,null,152.31,-152.31,9]
[720,"EXL18",null,"Helms","Markus","Billerbeck",null,null,null,null,null,null,0,-1000,0]
[721,"EXL18",null,null,null,null,null,null,null,null,null,null,0,-1000,0]
[722,"EXL18",null,null,null,null,null,null,null,null,null,null,0,-1000,0]
[723,"EXL18",null,null,null,null,null,null,null,null,null,null,0,-1000,0]
[724,"EXL18",null,null,null,null,null,null,null,null,null,null,0,-1000,0]
[725,"EXL18",null,null,null,null,null,null,null,null,null,null,0,-1000,0]
[725,"EXL18",null,null,null,null,null,null,null,null,null,null,0,-1000,0]
[726,"EXL18",null,null,null,null,null,null,null,null,null,null,0,-1000,0]
[727,"EXL18",null,null,null,null,null,null,null,null,null,null,0,-1000,0]
[728,"EXL18",null,null,null,null,null,null,null,null,null,null,0,-1000,0]
[729,"EXL18",null,null,null,null,null,null,null,null,null,null,0,-1000,0]
[406,"EXL18","Berlin","Schneider","Ingo","Joker Team",38.19,38.26,38.119999999999997,38.26,null,null,152.83000000000001,-152.83000000000001,10]
[405,"EXL18","Berlin","Gutlowski","Svea","Joker Team",38.32,38.47,38.29,38.28,null,null,153.36000000000001,-153.36000000000001,11]
[null,null,null,null,null,null,null,null,null,null,null,null,{"$f":"(G41*$G$4+H41*$H$4+I41*$I$4+J41*$J$4+K41*$K$4+L41*$L$4)","v":0},{"$f":"IF(M41>0,M41*-1,-1000)","v":-1000},{"$f":"IF(M41>0,RANK(N41,N:N),0)","v":0}]
[null,null,null,null,null,null,null,null,null,null,null,null,0,-1000,0]
[null,null,null,null,null,null,null,null,null,null,null,null,0,-1000,0]
[null,null,null,null,null,null,null,null,null,null,null,null,0,-1000,0]
[null,null,null,null,null,null,null,null,null,null,null,null,0,-1000,0]
[null,null,null,null,null,null,null,null,null,null,null,null,0,-1000,0]
[null,null,null,null,null,null,null,null,null,null,null,null,0,-1000,0]
[null,null,null,null,null,null,null,null,null,null,null,null,0,-1000,0]
[null,null,null,null,null,null,null,null,null,null,null,null,0,-1000,0]
[null,null,null,null,null,"Mettingen",null,null,null,null,null,null,0,-1000,0]
[null,null,null,null,null,null,null,null,null,null,null,null,0,-1000,0]
[null,null,null,null,null,null,null,null,null,null,null,null,0,-1000,0]
[null,null,null,null,null,null,null,null,null,null,null,null,0,-1000,0]
[null,null,null,null,null,null,null,null,null,null,null,null,0,-1000,0]
[null,null,null,null,null,null,null,null,null,null,null,null,0,-1000,0]
[null,null,null,null,null,null,null,null,null,null,null,null,0,-1000,0]
[null,null,null,null,null,null,null,null,null,null,null,null,0,-1000,0]
[null,null,null,null,null,null,null,null,null,null,null,null,0,-1000,0]
[null,null,null,null,null,null,null,null,null,null,null,null,0,-1000,0]
[null,null,null,null,null,null,null,null,null,null,null,null,0,-1000,0]
[null,null,null,null,null,null,null,null,null,null,null,null,0,-1000,0]
[null,null,null,null,null,null,null,null,null,null,null,null,0,-1000,0]
[null,null,null,null,null,null,null,null,null,null,null,null,0,-1000,0]
[null,null,null,null,null,null,null,null,null,null,null,null,0,-1000,0]
[null,null,null,null,null,null,null,null,null,null,null,null,0,-1000,0]
[null,null,null,null,null,null,null,null,null,null,null,null,0,-1000,0]
[null,null,null,null,null,null,null,null,null,null,null,null,0,-1000,0]
[null,null,null,null,null,null,null,null,null,null,null,null,0,-1000,0]
[null,null,null,null,null,null,null,null,null,null,null,null,0,-1000,0]
[null,null,null,null,null,null,null,null,null,null,null,null,0,-1000,0]
[null,null,null,null,null,null,null,null,null,null,null,null,0,-1000,0]
[null,null,null,null,null,null,null,null,null,null,null,null,0,-1000,0]
[null,null,null,null,null,null,null,null,null,null,null,null,{"$f":"(G73*$G$4+H73*$H$4+I73*$I$4+J73*$J$4+K73*$K$4+L73*$L$4)","v":0},{"$f":"IF(M73>0,M73*-1,-1000)","v":-1000},{"$f":"IF(M73>0,RANK(N73,N:N),0)","v":0}]
[null,null,null,null,null,null,null,null,null,null,null,null,0,-1000,0]
[null,null,null,null,null,null,null,null,null,null,null,null,0,-1000,0]
[null,null,null,null,null,null,null,null,null,null,null,null,0,-1000,0]
[null,null,null,null,null,null,null,null,null,null,null,null,0,-1000,0]
[null,null,null,null,null,null,null,null,null,null,null,null,0,-1000,0]
[null,null,null,null,null,null,null,null,null,null,null,null,0,-1000,0]
[null,null,null,null,null,null,null,null,null,null,null,null,0,-1000,0]
[null,null,null,null,null,null,null,null,null,null,null,null,0,-1000,0]
[null,null,null,null,null,null,null,null,null,null,null,null,0,-1000,0]
[null,null,null,null,null,null,null,null,null,null,null,null,0,-1000,0]
[null,null,null,null,null,null,null,null,null,null,null,null,0,-1000,0]
[null,null,null,null,null,null,null,null,null,null,null,null,0,-1000,0]
[null,null,null,null,null,null,null,null,null,null,null,null,0,-1000,0]
[null,null,null,null,null,null,null,null,null,null,null,null,0,-1000,0]
[null,null,null,null,null,null,null,null,null,null,null,null,0,-1000,0]
[null,null,null,null,null,null,null,null,null,null,null,null,0,-1000,0]
[null,null,null,null,null,null,null,null,null,null,null,null,0,-1000,0]
[null,null,null,null,null,null,null,null,null,null,null,null,0,-1000,0]
[null,null,null,null,null,null,null,null,null,null,null,null,0,-1000,0]
[null,null,null,null,null,null,null,null,null,null,null,null,0,-1000,0]
[null,null,null,null,null,null,null,null,null,null,null,null,0,-1000,0]
[null,null,null,null,null,null,null,null,null,null,null,null,0,-1000,0]
[null,null,null,null,null,null,null,null,null,null,null,null,0,-1000,0]
[null,null,null,null,null,null,null,null,null,null,null,null,0,-1000,0]
[null,null,null,null,null,null,null,null,null,null,null,null,0,-1000,0]
[null,null,null,null,null,null,null,null,null,null,null,null,0,-1000,0]
[null,null,null,null,null,null,null,null,null,null,null,null,0,-1000,0]
[null,null,null,null,null,null,null,null,null,null,null,null,0,-1000,0]
[null,null,null,null,null,null,null,null,null,null,null,null,0,-1000,0]
[null,null,null,null,null,null,null,null,null,null,null,null,0,-1000,0]
[null,null,null,null,null,null,null,null,null,null,null,null,0,-1000,0]
[null,null,null,null,null,null,null,null,null,null,null,null,{"$f":"(G105*$G$4+H105*$H$4+I105*$I$4+J105*$J$4+K105*$K$4+L105*$L$4)","v":0},{"$f":"IF(M105>0,M105*-1,-1000)","v":-1000},{"$f":"IF(M105>0,RANK(N105,N:N),0)","v":0}]
[null,null,null,null,null,null,null,null,null,null,null,null,0,-1000,0]
[null,null,null,null,null,null,null,null,null,null,null,null,0,-1000,0]
[null,null,null,null,null,null,null,null,null,null,null,null,0,-1000,0]
[null,null,null,null,null,null,null,null,null,null,null,null,0,-1000,0]
[null,null,null,null,null,null,null,null,null,null,null,null,0,-1000,0]
[null,null,null,null,null,null,null,null,null,null,null,null,0,-1000,0]
[null,null,null,null,null,null,null,null,null,null,null,null,0,-1000,0]
[null,null,null,null,null,null,null,null,null,null,null,null,0,-1000,0]
[null,null,null,null,null,null,null,null,null,null,null,null,0,-1000,0]
[null,null,null,null,null,null,null,null,null,null,null,null,0,-1000,0]
[null,null,null,null,null,null,null,null,null,null,null,null,0,-1000,0]
[null,null,null,null,null,null,null,null,null,null,null,null,0,-1000,0]
[null,null,null,null,null,null,null,null,null,null,null,null,0,-1000,0]
[null,null,null,null,null,null,null,null,null,null,null,null,0,-1000,0]
[null,null,null,null,null,null,null,null,null,null,null,null,0,-1000,0]
[null,null,null,null,null,null,null,null,null,null,null,null,0,-1000,0]
[null,null,null,null,null,null,null,null,null,null,null,null,0,-1000,0]
[null,null,null,null,null,null,null,null,null,null,null,null,0,-1000,0]
[null,null,null,null,null,null,null,null,null,null,null,null,0,-1000,0]
[null,null,null,null,null,null,null,null,null,null,null,null,0,-1000,0]
[null,null,null,null,null,null,null,null,null,null,null,null,0,-1000,0]
[null,null,null,null,null,null,null,null,null,null,null,null,0,-1000,0]
[null,null,null,null,null,null,null,null,null,null,null,null,0,-1000,0]
[null,null,null,null,null,null,null,null,null,null,null,null,0,-1000,0]
[null,null,null,null,null,null,null,null,null,null,null,null,0,-1000,0]
[null,null,null,null,null,null,null,null,null,null,null,null,0,-1000,0]
[null,null,null,null,null,null,null,null,null,null,null,null,0,-1000,0]
[null,null,null,null,null,null,null,null,null,null,null,null,0,-1000,0]
[null,null,null,null,null,null,null,null,null,null,null,null,0,-1000,0]
[null,null,null,null,null,null,null,null,null,null,null,null,0,-1000,0]
[null,null,null,null,null,null,null,null,null,null,null,null,0,-1000,0]
[null,null,null,null,null,null,null,null,null,null,null,null,{"$f":"(G137*$G$4+H137*$H$4+I137*$I$4+J137*$J$4+K137*$K$4+L137*$L$4)","v":0},{"$f":"IF(M137>0,M137*-1,-1000)","v":-1000},{"$f":"IF(M137>0,RANK(N137,N:N),0)","v":0}]
[null,null,null,null,null,null,null,null,null,null,null,null,0,-1000,0]
[null,null,null,null,null,null,null,null,null,null,null,null,0,-1000,0]
[null,null,null,null,null,null,null,null,null,null,null,null,0,-1000,0]
[null,null,null,null,null,null,null,null,null,null,null,null,0,-1000,0]
[null,null,null,null,null,null,null,null,null,null,null,null,0,-1000,0]
[null,null,null,null,null,null,null,null,null,null,null,null,0,-1000,0]
[null,null,null,null,null,null,null,null,null,null,null,null,0,-1000,0]
[null,null,null,null,null,null,null,null,null,null,null,null,0,-1000,0]
[null,null,null,null,null,null,null,null,null,null,null,null,0,-1000,0]
[null,null,null,null,null,null,null,null,null,null,null,null,0,-1000,0]
[null,null,null,null,null,null,null,null,null,null,null,null,0,-1000,0]
[null,null,null,null,null,null,null,null,null,null,null,null,0,-1000,0]
[null,null,null,null,null,null,null,null,null,null,null,null,0,-1000,0]
[null,null,null,null,null,null,null,null,null,null,null,null,0,-1000,0]
[null,null,null,null,null,null,null,null,null,null,null,null,0,-1000,0]
[null,null,null,null,null,null,null,null,null,null,null,null,0,-1000,0]
[null,null,null,null,null,null,null,null,null,null,null,null,0,-1000,0]
[null,null,null,null,null,null,null,null,null,null,null,null,0,-1000,0]
[null,null,null,null,null,null,null,null,null,null,null,null,0,-1000,0]
[null,null,null,null,null,null,null,null,null,null,null,null,0,-1000,0]
[null,null,null,null,null,null,null,null,null,null,null,null,0,-1000,0]
[null,null,null,null,null,null,null,null,null,null,null,null,0,-1000,0]
[null,null,null,null,null,null,null,null,null,null,null,null,0,-1000,0]
[null,null,null,null,null,null,null,null,null,null,null,null,0,-1000,0]
[null,null,null,null,null,null,null,null,null,null,null,null,0,-1000,0]
[null,null,null,null,null,null,null,null,null,null,null,null,0,-1000,0]
[null,null,null,null,null,null,null,null,null,null,null,null,0,-1000,0]
[null,null,null,null,null,null,null,null,null,null,null,null,0,-1000,0]
[null,null,null,null,null,null,null,null,null,null,null,null,0,-1000,0]
[null,null,null,null,null,null,null,null,null,null,null,null,0,-1000,0]
[null,null,null,null,null,null,null,null,null,null,null,null,0,-1000,0]
[null,null,null,null,null,null,null,null,null,null,null,null,{"$f":"(G169*$G$4+H169*$H$4+I169*$I$4+J169*$J$4+K169*$K$4+L169*$L$4)","v":0},{"$f":"IF(M169>0,M169*-1,-1000)","v":-1000},{"$f":"IF(M169>0,RANK(N169,N:N),0)","v":0}]
[null,null,null,null,null,null,null,null,null,null,null,null,0,-1000,0]
[null,null,null,null,null,null,null,null,null,null,null,null,0,-1000,0]
[null,null,null,null,null,null,null,null,null,null,null,null,0,-1000,0]
[null,null,null,null,null,null,null,null,null,null,null,null,0,-1000,0]
[null,null,null,null,null,null,null,null,null,null,null,null,0,-1000,0]
[null,null,null,null,null,null,null,null,null,null,null,null,0,-1000,0]
[null,null,null,null,null,null,null,null,null,null,null,null,0,-1000,0]
[null,null,null,null,null,null,null,null,null,null,null,null,0,-1000,0]
[null,null,null,null,null,null,null,null,null,null,null,null,0,-1000,0]
[null,null,null,null,null,null,null,null,null,null,null,null,0,-1000,0]
[null,null,null,null,null,null,null,null,null,null,null,null,0,-1000,0]
[null,null,null,null,null,null,null,null,null,null,null,null,0,-1000,0]
[null,null,null,null,null,null,null,null,null,null,null,null,0,-1000,0]
[null,null,null,null,null,null,null,null,null,null,null,null,0,-1000,0]
[null,null,null,null,null,null,null,null,null,null,null,null,0,-1000,0]
[null,null,null,null,null,null,null,null,null,null,null,null,0,-1000,0]
[null,null,null,null,null,null,null,null,null,null,null,null,0,-1000,0]
[null,null,null,null,null,null,null,null,null,null,null,null,0,-1000,0]
[null,null,null,null,null,null,null,null,null,null,null,null,0,-1000,0]
[null,null,null,null,null,null,null,null,null,null,null,null,0,-1000,0]
[null,null,null,null,null,null,null,null,null,null,null,null,0,-1000,0]
[null,null,null,null,null,null,null,null,null,null,null,null,0,-1000,0]
[null,null,null,null,null,null,null,null,null,null,null,null,0,-1000,0]
[null,null,null,null,null,null,null,null,null,null,null,null,0,-1000,0]
[null,null,null,null,null,null,null,null,null,null,null,null,0,-1000,0]
[null,null,null,null,null,null,null,null,null,null,null,null,0,-1000,0]
[null,null,null,null,null,null,null,null,null,null,null,null,0,-1000,0]
[null,null,null,null,null,null,null,null,null,null,null,null,0,-1000,0]
[null,null,null,null,null,null,null,null,null,null,null,null,0,-1000,0]
[null,null,null,null,null,null,null,null,null,null,null,null,0,-1000,0]
[null,null,null,null,null,null,null,null,null,null,null,null,0,-1000,0]
[null,null,null,null,null,null,null,null,null,null,null,null,{"$f":"(G201*$G$4+H201*$H$4+I201*$I$4+J201*$J$4+K201*$K$4+L201*$L$4)","v":0},{"$f":"IF(M201>0,M201*-1,-1000)","v":-1000},{"$f":"IF(M201>0,RANK(N201,N:N),0)","v":0}]
[null,null,null,null,null,null,null,null,null,null,null,null,0,-1000,0]
[null,null,null,null,null,null,null,null,null,null,null,null,0,-1000,0]

{"sheet":"NRW-Open","index":7,"n_rows":202,"n_cols":15,"rows_kept":202,"cut":false,"hidden":false,"merged":[]}
[{"$f":"Gesamt!A1","v":"10.06.2018 DSKD  Derby Mettingen"}]
["  NRW-Qualifikation Open - Klasse  "]
[]
["Wird der Lauf gewertet?   dann 0 oder 1 eintragen",null,null,null,null,null,1,1,1,1,1,1,1]
["Bestzeit je Lauf",null,null,null,null,null,{"$f":"MIN(G9:G202)","v":37.58},37.630000000000003,37.68,37.46,0,0,0]
[]
["Start\nNummer","Gruppe","startet","Name","Vorname","Verein","Lauf 1","Lauf 2","Lauf 3","Lauf 4","Lauf 5","Lauf 6","Summe",null,"Platz"]
[]
[901,"Open",null,"Schmidt","Michael","Varel",37.58,37.630000000000003,37.68,37.46,null,null,{"$f":"IF($G$4=1,\nIF(H9>1,(ABS(G9-H9)),0)+\nIF(I9>1,(ABS(G9-I9)),0)+\nIF(J9>1,(ABS(G9-J9)),0)+\nIF(K9>1,(ABS(G9-K9)),0)+\nIF(L9>1,(ABS(G9-L9)),0),\n\nIF(I9>1,(ABS(H9-I9)),0)+\nIF(J9>1,(ABS(H9-J9)),0)+\nIF(K9>1,(ABS(H9-K9)),0) )","v":0.27},{"$f":"IF(M9>0,M9*-1,-1000)","v":-0.27},{"$f":"IF(M9>0,RANK(N9,N:N),0)","v":1}]
[903,"Open",null,"Gerigk-Lorenz","Frank","Overath",38.97,38.89,38.76,38.71,null,null,0.55000000000000004,-0.55000000000000004,2]
[902,"Open",null,"Crook","Florian","Mettingen",null,null,null,null,null,null,0,-1000,0]
[904,"Open",null,"Gaidosch","Udo","Overath",40.090000000000003,40,39.82,39.81,null,null,0.64,-0.64,3]
[919,"Open",null,"Schlösser","Jürgen","Stromberg",43.64,43.99,44.1,43.72,null,null,0.89,-0.89,4]
[905,"Open",null,"Ricker","Andreas","Billerbeck",null,null,null,null,null,null,0,-1000,0]
[906,"Open",null,"Szabowski","Marco","Billerbeck",null,null,null,null,null,null,0,-1000,0]
[907,"Open",null,"Szabowski","Peter","Billerbeck",null,null,null,null,null,null,0,-1000,0]
[908,"Open",null,"Pahlings","Anna","ConAction",null,null,null,null,null,null,0,-1000,0]
[909,"Open",null,"Pahlings","Kai","ConAction",null,null,null,null,null,null,0,-1000,0]
[910,"Open",null,"Drücker","Gavin","Stromberg",null,null,null,null,null,null,0,-1000,0]
[911,"Open",null,"Drücker","Guido","Stromberg",null,null,null,null,null,null,0,-1000,0]
[912,"Open",null,"Wetter","Sabrina","Billerbeck",null,null,null,null,null,null,0,-1000,0]
[913,"Open",null,"Pahlings","Iris","ConAction",null,null,null,null,null,null,0,-1000,0]
[914,"Open",null,"Schulz","Tobias",null,null,null,null,null,null,null,0,-1000,0]
[915,"Open",null,"Enders","Simon","Billerbeck",null,null,null,null,null,null,0,-1000,0]
[916,"Open",null,"Szabowski","Mara","Billerbeck",null,null,null,null,null,null,0,-1000,0]
[917,"Open",null,"Pahlings","Detlev","ConAction",null,null,null,null,null,null,0,-1000,0]
[918,"Open",null,"Thoben","Jonas",null,null,null,null,null,null,null,0,-1000,0]
[407,"Open","Berlin","Schneider","Gabriele","Joker Team",49.78,50.31,49.36,39.81,null,null,10.92,-10.92,5]
[920,"Open",null,"Frede","John",null,null,null,null,null,null,null,0,-1000,0]
[921,"Open",null,"Niessen","Nicolas","Simmerath",null,null,null,null,null,null,0,-1000,0]
[922,"Open",null,"Paradowska","Joana","Mettingen",null,null,null,null,null,null,0,-1000,0]
[923,"Open",null,"Ricker","Oliver","Billerbeck",null,null,null,null,null,null,0,-1000,0]
[924,"Open",null,"Angenendt","Philip","Billerbeck",null,null,null,null,null,null,0,-1000,0]
[925,"Open",null,null,null,null,null,null,null,null,null,null,0,-1000,0]
[926,"Open",null,null,null,null,null,null,null,null,null,null,0,-1000,0]
[927,"Open",null,null,null,null,null,null,null,null,null,null,0,-1000,0]
[928,"Open",null,null,null,null,null,null,null,null,null,null,0,-1000,0]
[null,null,null,null,null,null,null,null,null,null,null,null,0,-1000,0]
[null,null,null,null,null,null,null,null,null,null,null,null,0,-1000,0]
[null,null,null,null,null,null,null,null,null,null,null,null,0,-1000,0]
[null,null,null,null,null,null,null,null,null,null,null,null,{"$f":"IF($G$4=1,\nIF(H41>1,(ABS(G41-H41)),0)+\nIF(I41>1,(ABS(G41-I41)),0)+\nIF(J41>1,(ABS(G41-J41)),0)+\nIF(K41>1,(ABS(G41-K41)),0)+\nIF(L41>1,(ABS(G41-L41)),0),\n\nIF(I41>1,(ABS(H41-I41)),0)+\nIF(J41>1,(ABS(H41-J41)),0)+\nIF(K41>1,(ABS(H41-K41)),0) )","v":0},{"$f":"IF(M41>0,M41*-1,-1000)","v":-1000},{"$f":"IF(M41>0,RANK(N41,N:N),0)","v":0}]
[null,null,null,null,null,null,null,null,null,null,null,null,0,-1000,0]
[null,null,null,null,null,null,null,null,null,null,null,null,0,-1000,0]
[null,null,null,null,null,null,null,null,null,null,null,null,0,-1000,0]
[null,null,null,null,null,null,null,null,null,null,null,null,0,-1000,0]
[null,null,null,null,null,null,null,null,null,null,null,null,0,-1000,0]
[null,null,null,null,null,null,null,null,null,null,null,null,0,-1000,0]
[null,null,null,null,null,null,null,null,null,null,null,null,0,-1000,0]
[null,null,null,null,null,null,null,null,null,null,null,null,0,-1000,0]
[null,null,null,null,null,null,null,null,null,null,null,null,0,-1000,0]
[null,null,null,null,null,null,null,null,null,null,null,null,0,-1000,0]
[null,null,null,null,null,null,null,null,null,null,null,null,0,-1000,0]
[null,null,null,null,null,null,null,null,null,null,null,null,0,-1000,0]
[null,null,null,null,null,null,null,null,null,null,null,null,0,-1000,0]
[null,null,null,null,null,null,null,null,null,null,null,null,0,-1000,0]
[null,null,null,null,null,null,null,null,null,null,null,null,0,-1000,0]
[null,null,null,null,null,null,null,null,null,null,null,null,0,-1000,0]
[null,null,null,null,null,null,null,null,null,null,null,null,0,-1000,0]
[null,null,null,null,null,null,null,null,null,null,null,null,0,-1000,0]
[null,null,null,null,null,null,null,null,null,null,null,null,0,-1000,0]
[null,null,null,null,null,null,null,null,null,null,null,null,0,-1000,0]
[null,null,null,null,null,null,null,null,null,null,null,null,0,-1000,0]
[null,null,null,null,null,null,null,null,null,null,null,null,0,-1000,0]
[null,null,null,null,null,null,null,null,null,null,null,null,0,-1000,0]
[null,null,null,null,null,null,null,null,null,null,null,null,0,-1000,0]
[null,null,null,null,null,null,null,null,null,null,null,null,0,-1000,0]
[null,null,null,null,null,null,null,null,null,null,null,null,0,-1000,0]
[null,null,null,null,null,null,null,null,null,null,null,null,0,-1000,0]
[null,null,null,null,null,null,null,null,null,null,null,null,0,-1000,0]
[null,null,null,null,null,null,null,null,null,null,null,null,0,-1000,0]
[null,null,null,null,null,null,null,null,null,null,null,null,0,-1000,0]
[null,null,null,null,null,null,null,null,null,null,null,null,0,-1000,0]
[null,null,null,null,null,null,null,null,null,null,null,null,{"$f":"IF($G$4=1,\nIF(H73>1,(ABS(G73-H73)),0)+\nIF(I73>1,(ABS(G73-I73)),0)+\nIF(J73>1,(ABS(G73-J73)),0)+\nIF(K73>1,(ABS(G73-K73)),0)+\nIF(L73>1,(ABS(G73-L73)),0),\n\nIF(I73>1,(ABS(H73-I73)),0)+\nIF(J73>1,(ABS(H73-J73)),0)+\nIF(K73>1,(ABS(H73-K73)),0) )","v":0},{"$f":"IF(M73>0,M73*-1,-1000)","v":-1000},{"$f":"IF(M73>0,RANK(N73,N:N),0)","v":0}]
[null,null,null,null,null,null,null,null,null,null,null,null,0,-1000,0]
[null,null,null,null,null,null,null,null,null,null,null,null,0,-1000,0]
[null,null,null,null,null,null,null,null,null,null,null,null,0,-1000,0]
[null,null,null,null,null,null,null,null,null,null,null,null,0,-1000,0]
[null,null,null,null,null,null,null,null,null,null,null,null,0,-1000,0]
[null,null,null,null,null,null,null,null,null,null,null,null,0,-1000,0]
[null,null,null,null,null,null,null,null,null,null,null,null,0,-1000,0]
[null,null,null,null,null,null,null,null,null,null,null,null,0,-1000,0]
[null,null,null,null,null,null,null,null,null,null,null,null,0,-1000,0]
[null,null,null,null,null,null,null,null,null,null,null,null,0,-1000,0]
[null,null,null,null,null,null,null,null,null,null,null,null,0,-1000,0]
[null,null,null,null,null,null,null,null,null,null,null,null,0,-1000,0]
[null,null,null,null,null,null,null,null,null,null,null,null,0,-1000,0]
[null,null,null,null,null,null,null,null,null,null,null,null,0,-1000,0]
[null,null,null,null,null,null,null,null,null,null,null,null,0,-1000,0]
[null,null,null,null,null,null,null,null,null,null,null,null,0,-1000,0]
[null,null,null,null,null,null,null,null,null,null,null,null,0,-1000,0]
[null,null,null,null,null,null,null,null,null,null,null,null,0,-1000,0]
[null,null,null,null,null,null,null,null,null,null,null,null,0,-1000,0]
[null,null,null,null,null,null,null,null,null,null,null,null,0,-1000,0]
[null,null,null,null,null,null,null,null,null,null,null,null,0,-1000,0]
[null,null,null,null,null,null,null,null,null,null,null,null,0,-1000,0]
[null,null,null,null,null,null,null,null,null,null,null,null,0,-1000,0]
[null,null,null,null,null,null,null,null,null,null,null,null,0,-1000,0]
[null,null,null,null,null,null,null,null,null,null,null,null,0,-1000,0]
[null,null,null,null,null,null,null,null,null,null,null,null,0,-1000,0]
[null,null,null,null,null,null,null,null,null,null,null,null,0,-1000,0]
[null,null,null,null,null,null,null,null,null,null,null,null,0,-1000,0]
[null,null,null,null,null,null,null,null,null,null,null,null,0,-1000,0]
[null,null,null,null,null,null,null,null,null,null,null,null,0,-1000,0]
[null,null,null,null,null,null,null,null,null,null,null,null,0,-1000,0]
[null,null,null,null,null,null,null,null,null,null,null,null,{"$f":"IF($G$4=1,\nIF(H105>1,(ABS(G105-H105)),0)+\nIF(I105>1,(ABS(G105-I105)),0)+\nIF(J105>1,(ABS(G105-J105)),0)+\nIF(K105>1,(ABS(G105-K105)),0)+\nIF(L105>1,(ABS(G105-L105)),0),\n\nIF(I105>1,(ABS(H105-I105)),0)+\nIF(J105>1,(ABS(H105-J105)),0)+\nIF(K105>1,(ABS(H105-K105)),0) )","v":0},{"$f":"IF(M105>0,M105*-1,-1000)","v":-1000},{"$f":"IF(M105>0,RANK(N105,N:N),0)","v":0}]
[null,null,null,null,null,null,null,null,null,null,null,null,0,-1000,0]
[null,null,null,null,null,null,null,null,null,null,null,null,0,-1000,0]
[null,null,null,null,null,null,null,null,null,null,null,null,0,-1000,0]
[null,null,null,null,null,null,null,null,null,null,null,null,0,-1000,0]
[null,null,null,null,null,null,null,null,null,null,null,null,0,-1000,0]
[null,null,null,null,null,null,null,null,null,null,null,null,0,-1000,0]
[null,null,null,null,null,null,null,null,null,null,null,null,0,-1000,0]
[null,null,null,null,null,null,null,null,null,null,null,null,0,-1000,0]
[null,null,null,null,null,null,null,null,null,null,null,null,0,-1000,0]
[null,null,null,null,null,null,null,null,null,null,null,null,0,-1000,0]
[null,null,null,null,null,null,null,null,null,null,null,null,0,-1000,0]
[null,null,null,null,null,null,null,null,null,null,null,null,0,-1000,0]
[null,null,null,null,null,null,null,null,null,null,null,null,0,-1000,0]
[null,null,null,null,null,null,null,null,null,null,null,null,0,-1000,0]
[null,null,null,null,null,null,null,null,null,null,null,null,0,-1000,0]
[null,null,null,null,null,null,null,null,null,null,null,null,0,-1000,0]
[null,null,null,null,null,null,null,null,null,null,null,null,0,-1000,0]
[null,null,null,null,null,null,null,null,null,null,null,null,0,-1000,0]
[null,null,null,null,null,null,null,null,null,null,null,null,0,-1000,0]
[null,null,null,null,null,null,null,null,null,null,null,null,0,-1000,0]
[null,null,null,null,null,null,null,null,null,null,null,null,0,-1000,0]
[null,null,null,null,null,null,null,null,null,null,null,null,0,-1000,0]
[null,null,null,null,null,null,null,null,null,null,null,null,0,-1000,0]
[null,null,null,null,null,null,null,null,null,null,null,null,0,-1000,0]
[null,null,null,null,null,null,null,null,null,null,null,null,0,-1000,0]
[null,null,null,null,null,null,null,null,null,null,null,null,0,-1000,0]
[null,null,null,null,null,null,null,null,null,null,null,null,0,-1000,0]
[null,null,null,null,null,null,null,null,null,null,null,null,0,-1000,0]
[null,null,null,null,null,null,null,null,null,null,null,null,0,-1000,0]
[null,null,null,null,null,null,null,null,null,null,null,null,0,-1000,0]
[null,null,null,null,null,null,null,null,null,null,null,null,0,-1000,0]
[null,null,null,null,null,null,null,null,null,null,null,null,{"$f":"IF($G$4=1,\nIF(H137>1,(ABS(G137-H137)),0)+\nIF(I137>1,(ABS(G137-I137)),0)+\nIF(J137>1,(ABS(G137-J137)),0)+\nIF(K137>1,(ABS(G137-K137)),0)+\nIF(L137>1,(ABS(G137-L137)),0),\n\nIF(I137>1,(ABS(H137-I137)),0)+\nIF(J137>1,(ABS(H137-J137)),0)+\nIF(K137>1,(ABS(H137-K137)),0) )","v":0},{"$f":"IF(M137>0,M137*-1,-1000)","v":-1000},{"$f":"IF(M137>0,RANK(N137,N:N),0)","v":0}]
[null,null,null,null,null,null,null,null,null,null,null,null,0,-1000,0]
[null,null,null,null,null,null,null,null,null,null,null,null,0,-1000,0]
[null,null,null,null,null,null,null,null,null,null,null,null,0,-1000,0]
[null,null,null,null,null,null,null,null,null,null,null,null,0,-1000,0]
[null,null,null,null,null,null,null,null,null,null,null,null,0,-1000,0]
[null,null,null,null,null,null,null,null,null,null,null,null,0,-1000,0]
[null,null,null,null,null,null,null,null,null,null,null,null,0,-1000,0]
[null,null,null,null,null,null,null,null,null,null,null,null,0,-1000,0]
[null,null,null,null,null,null,null,null,null,null,null,null,0,-1000,0]
[null,null,null,null,null,null,null,null,null,null,null,null,0,-1000,0]
[null,null,null,null,null,null,null,null,null,null,null,null,0,-1000,0]
[null,null,null,null,null,null,null,null,null,null,null,null,0,-1000,0]
[null,null,null,null,null,null,null,null,null,null,null,null,0,-1000,0]
[null,null,null,null,null,null,null,null,null,null,null,null,0,-1000,0]
[null,null,null,null,null,null,null,null,null,null,null,null,0,-1000,0]
[null,null,null,null,null,null,null,null,null,null,null,null,0,-1000,0]
[null,null,null,null,null,null,null,null,null,null,null,null,0,-1000,0]
[null,null,null,null,null,null,null,null,null,null,null,null,0,-1000,0]
[null,null,null,null,null,null,null,null,null,null,null,null,0,-1000,0]
[null,null,null,null,null,null,null,null,null,null,null,null,0,-1000,0]
[null,null,null,null,null,null,null,null,null,null,null,null,0,-1000,0]
[null,null,null,null,null,null,null,null,null,null,null,null,0,-1000,0]
[null,null,null,null,null,null,null,null,null,null,null,null,0,-1000,0]
[null,null,null,null,null,null,null,null,null,null,null,null,0,-1000,0]
[null,null,null,null,null,null,null,null,null,null,null,null,0,-1000,0]
[null,null,null,null,null,null,null,null,null,null,null,null,0,-1000,0]
[null,null,null,null,null,null,null,null,null,null,null,null,0,-1000,0]
[null,null,null,null,null,null,null,null,null,null,null,null,0,-1000,0]
[null,null,null,null,null,null,null,null,null,null,null,null,0,-1000,0]
[null,null,null,null,null,null,null,null,null,null,null,null,0,-1000,0]
[null,null,null,null,null,null,null,null,null,null,null,null,0,-1000,0]
[null,null,null,null,null,null,null,null,null,null,null,null,{"$f":"IF($G$4=1,\nIF(H169>1,(ABS(G169-H169)),0)+\nIF(I169>1,(ABS(G169-I169)),0)+\nIF(J169>1,(ABS(G169-J169)),0)+\nIF(K169>1,(ABS(G169-K169)),0)+\nIF(L169>1,(ABS(G169-L169)),0),\n\nIF(I169>1,(ABS(H169-I169)),0)+\nIF(J169>1,(ABS(H169-J169)),0)+\nIF(K169>1,(ABS(H169-K169)),0) )","v":0},{"$f":"IF(M169>0,M169*-1,-1000)","v":-1000},{"$f":"IF(M169>0,RANK(N169,N:N),0)","v":0}]
[null,null,null,null,null,null,null,null,null,null,null,null,0,-1000,0]
[null,null,null,null,null,null,null,null,null,null,null,null,0,-1000,0]
[null,null,null,null,null,null,null,null,null,null,null,null,0,-1000,0]
[null,null,null,null,null,null,null,null,null,null,null,null,0,-1000,0]
[null,null,null,null,null,null,null,null,null,null,null,null,0,-1000,0]
[null,null,null,null,null,null,null,null,null,null,null,null,0,-1000,0]
[null,null,null,null,null,null,null,null,null,null,null,null,0,-1000,0]
[null,null,null,null,null,null,null,null,null,null,null,null,0,-1000,0]
[null,null,null,null,null,null,null,null,null,null,null,null,0,-1000,0]
[null,null,null,null,null,null,null,null,null,null,null,null,0,-1000,0]
[null,null,null,null,null,null,null,null,null,null,null,null,0,-1000,0]
[null,null,null,null,null,null,null,null,null,null,null,null,0,-1000,0]
[null,null,null,null,null,null,null,null,null,null,null,null,0,-1000,0]
[null,null,null,null,null,null,null,null,null,null,null,null,0,-1000,0]
[null,null,null,null,null,null,null,null,null,null,null,null,0,-1000,0]
[null,null,null,null,null,null,null,null,null,null,null,null,0,-1000,0]
[null,null,null,null,null,null,null,null,null,null,null,null,0,-1000,0]
[null,null,null,null,null,null,null,null,null,null,null,null,0,-1000,0]
[null,null,null,null,null,null,null,null,null,null,null,null,0,-1000,0]
[null,null,null,null,null,null,null,null,null,null,null,null,0,-1000,0]
[null,null,null,null,null,null,null,null,null,null,null,null,0,-1000,0]
[null,null,null,null,null,null,null,null,null,null,null,null,0,-1000,0]
[null,null,null,null,null,null,null,null,null,null,null,null,0,-1000,0]
[null,null,null,null,null,null,null,null,null,null,null,null,0,-1000,0]
[null,null,null,null,null,null,null,null,null,null,null,null,0,-1000,0]
[null,null,null,null,null,null,null,null,null,null,null,null,0,-1000,0]
[null,null,null,null,null,null,null,null,null,null,null,null,0,-1000,0]
[null,null,null,null,null,null,null,null,null,null,null,null,0,-1000,0]
[null,null,null,null,null,null,null,null,null,null,null,null,0,-1000,0]
[null,null,null,null,null,null,null,null,null,null,null,null,0,-1000,0]
[null,null,null,null,null,null,null,null,null,null,null,null,0,-1000,0]
[null,null,null,null,null,null,null,null,null,null,null,null,{"$f":"IF($G$4=1,\nIF(H201>1,(ABS(G201-H201)),0)+\nIF(I201>1,(ABS(G201-I201)),0)+\nIF(J201>1,(ABS(G201-J201)),0)+\nIF(K201>1,(ABS(G201-K201)),0)+\nIF(L201>1,(ABS(G201-L201)),0),\n\nIF(I201>1,(ABS(H201-I201)),0)+\nIF(J201>1,(ABS(H201-J201)),0)+\nIF(K201>1,(ABS(H201-K201)),0) )","v":0},{"$f":"IF(M201>0,M201*-1,-1000)","v":-1000},{"$f":"IF(M201>0,RANK(N201,N:N),0)","v":0}]
[null,null,null,null,null,null,null,null,null,null,null,null,0,-1000,0]